Nominativi dei beneficiari;Data mandato;Natura economica;Importo;Descrizione mandato;N. mandato;TITNO_BL;2� livello;3� livello;4� livello;5� livello
ETRURIA P.A. SRL;30/05/2017;Accesso a banche dati e a pubblicazioni on line;94,60;IVA Liquidazione Fattura Nr. 603/00000  del 31/03/2017 - ABBONAMENTO ENTI IN LINE 365;1897;1;3;2;5;3
ETRURIA P.A. SRL;30/05/2017;Accesso a banche dati e a pubblicazioni on line;430,00;Liquidazione Fattura Nr. 603/00000  del 31/03/2017 (di cui Split per euro 94,60) - ABBONAMENTO ENTI IN LINE 365;1897;1;3;2;5;3
ACQUE S.P.A.;11/04/2017;Acqua;15,44;IVA - LIQUIDAZIONE FATTURA NR. 6016012000007380  DEL 14/12/2016 (DI CUI SPLIT PER EURO 15,44) - FORNITURA ACQUA POTABILE PER IMMOBILI E SERVIZI COMUNALI ANNO 2016 - IMPEGNO DI SPESA PER ACQUE SPA.;1297;1;3;2;5;5
ACQUE S.P.A.;11/04/2017;Acqua;5,67;IVA - LIQUIDAZIONE FATTURA NR. 6016012000007381  DEL 14/12/2016 (DI CUI SPLIT PER EURO 5,67) - FORNITURA ACQUA POTABILE PER IMMOBILI E SERVIZI COMUNALI ANNO 2016 - IMPEGNO DI SPESA PER ACQUE SPA.;1298;1;3;2;5;5
ACQUE S.P.A.;11/04/2017;Acqua;0,65;IVA - LIQUIDAZIONE FATTURA NR. 6016012000007382  DEL 14/12/2016 (DI CUI SPLIT PER EURO 0,65) - FORNITURA ACQUA POTABILE PER IMMOBILI E SERVIZI COMUNALI ANNO 2016 - IMPEGNO DI SPESA PER ACQUE SPA.;1298;1;3;2;5;5
ACQUE S.P.A.;11/04/2017;Acqua;18,47;IVA - LIQUIDAZIONE FATTURA NR. 6016012000007518  DEL 16/12/2016 - FORNITURA ACQUA POTABILE FONT. VIA MARMUGI;1298;1;3;2;5;5
ACQUE S.P.A.;11/04/2017;Acqua;2,78;IVA - Liquidazione Fattura Nr. 6016012000007519  del 16/12/2016 - FORNITURA ACQUA POTABILE FONTANA VIALE TOGLIATTI;1298;1;3;2;5;5
ACQUE S.P.A.;11/04/2017;Acqua;0,02;IVA - LIQUIDAZIONE FATTURA NR. 6016012000007520  DEL 16/12/2016 - FORNITURA ACQUA POTABILE IDRANTE;1298;1;3;2;5;5
ACQUE S.P.A.;11/04/2017;Acqua;4,51;IVA - LIQUIDAZIONE FATTURA NR. 6016012000007580  DEL 19/12/2016 - FORNITURA ACQUA POTABILE FONTANELLO VIA PIETRAMARINA;1298;1;3;2;5;5
ACQUE S.P.A.;11/04/2017;Acqua;0,06;IVA - LIQUIDAZIONE FATTURA NR. 6016012000007581  DEL 19/12/2016 - FORNITURA ACQUA POTABILE IDRANTE ;1298;1;3;2;5;5
ACQUE S.P.A.;11/04/2017;Acqua;2,73;IVA - LIQUIDAZIONE FATTURA NR. 6016012000007635  DEL 20/12/2016 (DI CUI SPLIT PER EURO 2,73) - FORNITURA ACQUA POTABILE PER IMMOBILI E SERVIZI COMUNALI ANNO 2016 - IMPEGNO DI SPESA PER ACQUE SPA.;1298;1;3;2;5;5
ACQUE S.P.A.;11/04/2017;Acqua;2,73;IVA - LIQUIDAZIONE FATTURA NR. 6016012000007671  DEL 20/12/2016 (DI CUI SPLIT PER EURO 2,73) - FORNITURA ACQUA POTABILE PER IMMOBILI E SERVIZI COMUNALI ANNO 2016 - IMPEGNO DI SPESA PER ACQUE SPA.;1298;1;3;2;5;5
ACQUE S.P.A.;11/04/2017;Acqua;154,43;LIQUIDAZIONE FATTURA NR. 6016012000007380  DEL 14/12/2016 - FORNITURA ACQUA POTABILE PER IMMOBILI E SERVIZI COMUNALI ANNO 2016 - IMPEGNO DI SPESA PER ACQUE SPA.;1297;1;3;2;5;5
ACQUE S.P.A.;11/04/2017;Acqua;56,72;LIQUIDAZIONE FATTURA NR. 6016012000007381  DEL 14/12/2016 - FORNITURA ACQUA POTABILE PER IMMOBILI E SERVIZI COMUNALI ANNO 2016 - IMPEGNO DI SPESA PER ACQUE SPA.;1298;1;3;2;5;5
ACQUE S.P.A.;11/04/2017;Acqua;6,52;LIQUIDAZIONE FATTURA NR. 6016012000007382  DEL 14/12/2016 - FORNITURA ACQUA POTABILE PER IMMOBILI E SERVIZI COMUNALI ANNO 2016 - IMPEGNO DI SPESA PER ACQUE SPA.;1298;1;3;2;5;5
ACQUE S.P.A.;11/04/2017;Acqua;184,66;LIQUIDAZIONE FATTURA NR. 6016012000007518  DEL 16/12/2016 - FORNITURA ACQUA POTABILE FONT. VIA MARMUGI;1298;1;3;2;5;5
ACQUE S.P.A.;11/04/2017;Acqua;27,78;LIQUIDAZIONE FATTURA NR. 6016012000007519  DEL 16/12/2016 - FORNITURA ACQUA POTABILE FONTANA VIALE TOGLIATTI;1298;1;3;2;5;5
ACQUE S.P.A.;11/04/2017;Acqua;0,18;LIQUIDAZIONE FATTURA NR. 6016012000007520  DEL 16/12/2016 - FORNITURA ACQUA POTABILE IDRANTE;1298;1;3;2;5;5
ACQUE S.P.A.;11/04/2017;Acqua;45,11;LIQUIDAZIONE FATTURA NR. 6016012000007580  DEL 19/12/2016 - FORNITURA ACQUA POTABILE FONTANELLO VIA PIETRAMARINA;1298;1;3;2;5;5
ACQUE S.P.A.;11/04/2017;Acqua;0,56;LIQUIDAZIONE FATTURA NR. 6016012000007581  DEL 19/12/2016 - FORNITURA ACQUA POTABILE IDRANTE ;1298;1;3;2;5;5
ACQUE S.P.A.;11/04/2017;Acqua;27,32;LIQUIDAZIONE FATTURA NR. 6016012000007635  DEL 20/12/2016 - FORNITURA ACQUA POTABILE PER IMMOBILI E SERVIZI COMUNALI ANNO 2016 - IMPEGNO DI SPESA PER ACQUE SPA.;1298;1;3;2;5;5
ACQUE S.P.A.;11/04/2017;Acqua;27,32;LIQUIDAZIONE FATTURA NR. 6016012000007671  DEL 20/12/2016 - FORNITURA ACQUA POTABILE PER IMMOBILI E SERVIZI COMUNALI ANNO 2016 - IMPEGNO DI SPESA PER ACQUE SPA.;1298;1;3;2;5;5
ACQUE S.P.A.;02/05/2017;Acqua;0,11;IVA - LIQUIDAZIONE FATTURA NR. 6016012000007183  DEL 07/12/2016 - FORNITURA ACQUA POTABILE FONT. VIA CAVALLOTTI;1575;1;3;2;5;5
ACQUE S.P.A.;02/05/2017;Acqua;1,11;LIQUIDAZIONE FATTURA NR. 6016012000007183  DEL 07/12/2016 - FORNITURA ACQUA POTABILE FONT. VIA CAVALLOTTI;1575;1;3;2;5;5
ACQUE S.P.A.;09/05/2017;Acqua;38,35;IVA - Liquidazione Fattura Nr. 6017012000004111  del 11/04/2017 - FORNITURA ACQUA POTABILE SCUOLA SECONDARIA SOVIGLIANA;1601;1;3;2;5;5
ACQUE S.P.A.;09/05/2017;Acqua;4,40;IVA - Liquidazione Fattura Nr. 6017012000004112  del 11/04/2017 - FORNITURA ACQUA POTABILE PALASPORT 40%;1603;1;3;2;5;5
ACQUE S.P.A.;09/05/2017;Acqua;6,95;IVA - Liquidazione Fattura Nr. 6017012000004112  del 11/04/2017 - FORNITURA ACQUA POTABILE PALASPORT 60%;1603;1;3;2;5;5
ACQUE S.P.A.;09/05/2017;Acqua;8,13;IVA - Liquidazione Fattura Nr. 6017012000004198  del 11/04/2017 - FORNITURA ACQUA POTABILE UFFICI COMUNALI;1596;1;3;2;5;5
ACQUE S.P.A.;09/05/2017;Acqua;2,86;IVA - Liquidazione Fattura Nr. 6017012000004199  del 11/04/2017 - FORNITURA ACQUA POTABILE FONTANELLO VIA BIXIO;1604;1;3;2;5;5
ACQUE S.P.A.;09/05/2017;Acqua;0,20;IVA - Liquidazione Fattura Nr. 6017012000004200  del 11/04/2017 - FORNITURA ACQUA POTABILE FONTANELLO VIA N. SAURO;1604;1;3;2;5;5
ACQUE S.P.A.;09/05/2017;Acqua;383,46;Liquidazione Fattura Nr. 6017012000004111  del 11/04/2017 - FORNITURA ACQUA POTABILE SCUOLA SECONDARIA SOVIGLIANA;1601;1;3;2;5;5
ACQUE S.P.A.;09/05/2017;Acqua;45,60;Liquidazione Fattura Nr. 6017012000004112  del 11/04/2017 - FORNITURA ACQUA POTABILE PALASPORT 40%;1603;1;3;2;5;5
ACQUE S.P.A.;09/05/2017;Acqua;67,93;Liquidazione Fattura Nr. 6017012000004112  del 11/04/2017 - FORNITURA ACQUA POTABILE PALASPORT 60%;1603;1;3;2;5;5
ACQUE S.P.A.;09/05/2017;Acqua;81,31;Liquidazione Fattura Nr. 6017012000004198  del 11/04/2017 - FORNITURA ACQUA POTABILE UFFICI COMUNALI;1596;1;3;2;5;5
ACQUE S.P.A.;09/05/2017;Acqua;28,60;Liquidazione Fattura Nr. 6017012000004199  del 11/04/2017 - FORNITURA ACQUA POTABILE FONTANELLO VIA BIXIO;1604;1;3;2;5;5
ACQUE S.P.A.;09/05/2017;Acqua;1,96;Liquidazione Fattura Nr. 6017012000004200  del 11/04/2017 - FORNITURA ACQUA POTABILE FONTANELLO VIA N. SAURO;1604;1;3;2;5;5
ACQUE S.P.A.;10/05/2017;Acqua;63,30;IVA - Liquidazione Fattura Nr. 6017012000004258  del 12/04/2017 - FORNITURA ACQUA POTABILE SCUOLA PRIMARIA VINCI;1643;1;3;2;5;5
ACQUE S.P.A.;10/05/2017;Acqua;89,31;IVA - Liquidazione Fattura Nr. 6017012000004258  del 12/04/2017 - FORNITURA ACQUA POTABILE SCUOLA PRIMARIA VINCI;1644;1;3;2;5;5
ACQUE S.P.A.;10/05/2017;Acqua;2,87;IVA - Liquidazione Fattura Nr. 6017012000004336  del 12/04/2017 - FORNITURA ACQUA POTABILE FONTANELLO VIA EMPOLESE;1647;1;3;2;5;5
ACQUE S.P.A.;10/05/2017;Acqua;4,59;IVA - Liquidazione Fattura Nr. 6017012000004337  del 12/04/2017 - FORNITURA ACQUA POTABILE FONT. VIA MARMUGI;1647;1;3;2;5;5
ACQUE S.P.A.;10/05/2017;Acqua;2,87;IVA - Liquidazione Fattura Nr. 6017012000004338  del 12/04/2017 - FORNITURA ACQUA POTABILE FONTANA DI VIALE TOGLIATTI;1647;1;3;2;5;5
ACQUE S.P.A.;10/05/2017;Acqua;0,02;IVA - Liquidazione Fattura Nr. 6017012000004339  del 12/04/2017 - FORNITURA ACQUA POTABILE IDRANTE;1647;1;3;2;5;5
ACQUE S.P.A.;10/05/2017;Acqua;3,80;IVA - Liquidazione Fattura Nr. 6017012000004386  del 14/04/2017 - FORNITURA ACQUA POTABILE VILLA REGHINI;1648;1;3;2;5;5
ACQUE S.P.A.;10/05/2017;Acqua;20,34;IVA - Liquidazione Fattura Nr. 6017012000004386  del 14/04/2017 - FORNITURA ACQUA POTABILE VILLA REGHINI;1649;1;3;2;5;5
ACQUE S.P.A.;10/05/2017;Acqua;2,89;IVA - Liquidazione Fattura Nr. 6017012000004454  del 14/04/2017 - FORNITURA ACQUA POTABILE FONTANELLO PARCO DEI MILLE;1647;1;3;2;5;5
ACQUE S.P.A.;10/05/2017;Acqua;2,89;IVA - Liquidazione Fattura Nr. 6017012000004455  del 14/04/2017 - FORNITURA ACQUA POTABILE FONTANELLO VIA SANZIO;1647;1;3;2;5;5
ACQUE S.P.A.;10/05/2017;Acqua;1,95;IVA - Liquidazione Fattura Nr. 6017012000004478  del 14/04/2017 - FORNITURA ACQUA POTABILE FONTANELLO VIA PIATRAMARINA;1647;1;3;2;5;5
ACQUE S.P.A.;10/05/2017;Acqua;0,12;IVA - Liquidazione Fattura Nr. 6017012000004480  del 14/04/2017 - FORNITURA ACQUA POTABILE IDRANTE;1647;1;3;2;5;5
ACQUE S.P.A.;10/05/2017;Acqua;632,99;Liquidazione Fattura Nr. 6017012000004258  del 12/04/2017 - FORNITURA ACQUA POTABILE SCUOLA PRIMARIA VINCI;1643;1;3;2;5;5
ACQUE S.P.A.;10/05/2017;Acqua;893,11;Liquidazione Fattura Nr. 6017012000004258  del 12/04/2017 - FORNITURA ACQUA POTABILE SCUOLA PRIMARIA VINCI;1644;1;3;2;5;5
ACQUE S.P.A.;10/05/2017;Acqua;28,67;Liquidazione Fattura Nr. 6017012000004336  del 12/04/2017 - FORNITURA ACQUA POTABILE FONTANELLO VIA EMPOLESE;1647;1;3;2;5;5
ACQUE S.P.A.;10/05/2017;Acqua;45,92;Liquidazione Fattura Nr. 6017012000004337  del 12/04/2017 - FORNITURA ACQUA POTABILE FONT. VIA MARMUGI;1647;1;3;2;5;5
ACQUE S.P.A.;10/05/2017;Acqua;28,69;Liquidazione Fattura Nr. 6017012000004338  del 12/04/2017 - FORNITURA ACQUA POTABILE FONTANA DI VIALE TOGLIATTI;1647;1;3;2;5;5
ACQUE S.P.A.;10/05/2017;Acqua;0,19;Liquidazione Fattura Nr. 6017012000004339  del 12/04/2017 - FORNITURA ACQUA POTABILE IDRANTE;1647;1;3;2;5;5
ACQUE S.P.A.;10/05/2017;Acqua;37,98;Liquidazione Fattura Nr. 6017012000004386  del 14/04/2017 - FORNITURA ACQUA POTABILE VILLA REGHINI;1648;1;3;2;5;5
ACQUE S.P.A.;10/05/2017;Acqua;203,35;Liquidazione Fattura Nr. 6017012000004386  del 14/04/2017 - FORNITURA ACQUA POTABILE VILLA REGHINI;1649;1;3;2;5;5
ACQUE S.P.A.;10/05/2017;Acqua;28,94;Liquidazione Fattura Nr. 6017012000004454  del 14/04/2017 - FORNITURA ACQUA POTABILE FONTANELLO PARCO DEI MILLE;1647;1;3;2;5;5
ACQUE S.P.A.;10/05/2017;Acqua;28,94;Liquidazione Fattura Nr. 6017012000004455  del 14/04/2017 - FORNITURA ACQUA POTABILE FONTANELLO VIA SANZIO;1647;1;3;2;5;5
ACQUE S.P.A.;10/05/2017;Acqua;19,54;Liquidazione Fattura Nr. 6017012000004478  del 14/04/2017 - FORNITURA ACQUA POTABILE FONTANELLO VIA PIATRAMARINA;1647;1;3;2;5;5
ACQUE S.P.A.;10/05/2017;Acqua;1,16;Liquidazione Fattura Nr. 6017012000004480  del 14/04/2017 - FORNITURA ACQUA POTABILE IDRANTE;1647;1;3;2;5;5
ACQUE S.P.A.;15/05/2017;Acqua;25,26;IVA - Liquidazione Fattura Nr. 6017012000004547  del 18/04/2017 - FORNITURA ACQUA POTABILE SCUOLA INFANZIA VINCI;1662;1;3;2;5;5
ACQUE S.P.A.;15/05/2017;Acqua;40,77;IVA - Liquidazione Fattura Nr. 6017012000004547  del 18/04/2017 - FORNITURA ACQUA POTABILE SCUOLA INFANZIA VINCI;1663;1;3;2;5;5
ACQUE S.P.A.;15/05/2017;Acqua;0,04;IVA - Liquidazione Fattura Nr. 6017012000004581  del 18/04/2017 - FORNITURA ACQUA POTABILE IDRANTE;1682;1;3;2;5;5
ACQUE S.P.A.;15/05/2017;Acqua;19,03;IVA - Liquidazione Fattura Nr. 6017012000004582  del 18/04/2017 - FORNITURA ACQUA POTABILE MAGAZZINO;1657;1;3;2;5;5
ACQUE S.P.A.;15/05/2017;Acqua;51,19;IVA - Liquidazione Fattura Nr. 6017012000004598  del 19/04/2017 - FORNITURA ACQUA POTABILE RESIDENZA ANZIANI;1691;1;3;2;5;5
ACQUE S.P.A.;15/05/2017;Acqua;33,88;IVA - Liquidazione Fattura Nr. 6017012000004598  del 19/04/2017 - FORNITURA ACQUA POTABILE RESIDENZA ANZIANI;1692;1;3;2;5;5
ACQUE S.P.A.;15/05/2017;Acqua;1,13;IVA - Liquidazione Fattura Nr. 6017012000004612  del 19/04/2017 - FORNITURA ACQUA POTABILE COMUNE;1657;1;3;2;5;5
ACQUE S.P.A.;15/05/2017;Acqua;6,33;IVA - Liquidazione Fattura Nr. 6017012000004613  del 19/04/2017 - FORNITURA ACQUA POTABILE BIBLIOTECA;1672;1;3;2;5;5
ACQUE S.P.A.;15/05/2017;Acqua;0,34;IVA - Liquidazione Fattura Nr. 6017012000004614  del 19/04/2017 - FORNITURA ACQUA POTABILE MUSEO;1674;1;3;2;5;5
ACQUE S.P.A.;15/05/2017;Acqua;10,56;IVA - Liquidazione Fattura Nr. 6017012000004614  del 19/04/2017 - FORNITURA ACQUA POTABILE MUSEO;1675;1;3;2;5;5
ACQUE S.P.A.;15/05/2017;Acqua;2,74;IVA - Liquidazione Fattura Nr. 6017012000004615  del 19/04/2017 - FORNITURA ACQUA POTABILE FONTANELLO VIA VAL PUSTERIA;1683;1;3;2;5;5
ACQUE S.P.A.;15/05/2017;Acqua;1,30;IVA - Liquidazione Fattura Nr. 6017012000004616  del 19/04/2017 - FORNITURA ACQUA POTABILE ARCHIVIO IDRANTE;1659;1;3;2;5;5
ACQUE S.P.A.;15/05/2017;Acqua;5,75;IVA - Liquidazione Fattura Nr. 6017012000004616  del 19/04/2017 - FORNITURA ACQUA POTABILE ARCHIVIO IDRANTE;1660;1;3;2;5;5
ACQUE S.P.A.;15/05/2017;Acqua;2,77;IVA - Liquidazione Fattura Nr. 6017012000004617  del 19/04/2017 - FORNITURA ACQUA POTABILE FONT. P.ZZA DELLA LIBERTA';1683;1;3;2;5;5
ACQUE S.P.A.;15/05/2017;Acqua;42,04;IVA - Liquidazione Fattura Nr. 6017012000004618  del 19/04/2017 - FORNITURA ACQUA POTABILE BAGNI PUBBLICI;1685;1;3;2;5;5
ACQUE S.P.A.;15/05/2017;Acqua;6,70;IVA - Liquidazione Fattura Nr. 6017012000004619  del 19/04/2017 - FORNITURA ACQUA POTABILE FONT. VIA GIOVANNI XXIII;1683;1;3;2;5;5
ACQUE S.P.A.;15/05/2017;Acqua;4,93;IVA - Liquidazione Fattura Nr. 6017012000004620  del 19/04/2017 - FORNITURA ACQUA POTABILE UFFICI;1657;1;3;2;5;5
ACQUE S.P.A.;15/05/2017;Acqua;3,16;IVA - Liquidazione Fattura Nr. 6017012000004621  del 19/04/2017 - FORNITURA ACQUA POTABILE FONT. P.ZZA L. DA VINCI;1682;1;3;2;5;5
ACQUE S.P.A.;15/05/2017;Acqua;32,84;IVA - Liquidazione Fattura Nr. 6017012000004623  del 19/04/2017 - FORNITURA ACQUA POTABILE FONTANA P.ZZA DEI GUIDI;1682;1;3;2;5;5
ACQUE S.P.A.;15/05/2017;Acqua;2,98;IVA - Liquidazione Fattura Nr. 6017012000004623  del 19/04/2017 - FORNITURA ACQUA POTABILE FONTANA P.ZZA DEI GUIDI;1683;1;3;2;5;5
ACQUE S.P.A.;15/05/2017;Acqua;8,45;IVA - Liquidazione Fattura Nr. 6017012000004624  del 19/04/2017 - FORNITURA ACQUA POTABILE UFFICI;1659;1;3;2;5;5
ACQUE S.P.A.;15/05/2017;Acqua;2,81;IVA - Liquidazione Fattura Nr. 6017012000004625  del 19/04/2017 - FORNITURA ACQUA POTABILE COMUNE;1657;1;3;2;5;5
ACQUE S.P.A.;15/05/2017;Acqua;20,84;IVA - Liquidazione Fattura Nr. 6017012000004626  del 19/04/2017 - FORNITURA ACQUA POTABILE SCUOLA INFANZIA VINCI;1663;1;3;2;5;5
ACQUE S.P.A.;15/05/2017;Acqua;0,04;IVA - Liquidazione Fattura Nr. 6017012000004720  del 20/04/2017 - FORNITURA ACQUA POTABILE FONT. VIA DEL CASTELLO;1683;1;3;2;5;5
ACQUE S.P.A.;15/05/2017;Acqua;26,65;IVA - Liquidazione Fattura Nr. 6017012000004721  del 20/04/2017 - FORNITURA ACQUA POTABILE SCUOLA PRIMARIA VINCI;1666;1;3;2;5;5
ACQUE S.P.A.;15/05/2017;Acqua;2,74;IVA - Liquidazione Fattura Nr. 6017012000004722  del 20/04/2017 - FORNITURA ACQUA POTABILE FONT. VIA CERRETANA;1683;1;3;2;5;5
ACQUE S.P.A.;15/05/2017;Acqua;14,55;IVA - Liquidazione Fattura Nr. 6017012000004723  del 20/04/2017 - FORNITURA ACQUA POTABILE PALAZZINA;1675;1;3;2;5;5
ACQUE S.P.A.;15/05/2017;Acqua;0,22;IVA - Liquidazione Fattura Nr. 6017012000004725  del 20/04/2017 - FORNITURA ACQUA POTABILE FONT VIA G. CALVI;1683;1;3;2;5;5
ACQUE S.P.A.;15/05/2017;Acqua;3,43;IVA - Liquidazione Fattura Nr. 6017012000004726  del 20/04/2017 - FORNITURA ACQUA POTABILE MISERICORDIA;1678;1;3;2;5;5
ACQUE S.P.A.;15/05/2017;Acqua;28,40;IVA - Liquidazione Fattura Nr. 6017012000004743  del 21/04/2017 - FORNITURA ACQUA POTABILE SCUOLA SECONDARIA VINCI;1669;1;3;2;5;5
ACQUE S.P.A.;15/05/2017;Acqua;34,74;IVA - Liquidazione Fattura Nr. 6017012000004743  del 21/04/2017 - FORNITURA ACQUA POTABILE SCUOLA SECONDARIA VINCI;1670;1;3;2;5;5
ACQUE S.P.A.;15/05/2017;Acqua;2,79;IVA - Liquidazione Fattura Nr. 6017012000004770  del 21/04/2017 - FORNITURA ACQUA POTABILE EX MACELLI;1657;1;3;2;5;5
ACQUE S.P.A.;15/05/2017;Acqua;27,14;IVA - Liquidazione Fattura Nr. 6017012000004829  del 24/04/2017 - FORNITURA ACQUA POTABILE FONT VIA DI S. MARIA;1683;1;3;2;5;5
ACQUE S.P.A.;15/05/2017;Acqua;1,79;IVA - Liquidazione Fattura Nr. 6017012000004830  del 24/04/2017 - FORNITURA ACQUA POTABILE FONT. VIA DI S. MARIA;1683;1;3;2;5;5
ACQUE S.P.A.;15/05/2017;Acqua;2,84;IVA - Liquidazione Fattura Nr. 6017012000004831  del 24/04/2017 - FORNITURA ACQUA POTABILE FONT. VIA LOMBARDIA;1683;1;3;2;5;5
ACQUE S.P.A.;15/05/2017;Acqua;252,54;Liquidazione Fattura Nr. 6017012000004547  del 18/04/2017 - FORNITURA ACQUA POTABILE SCUOLA INFANZIA VINCI;1662;1;3;2;5;5
ACQUE S.P.A.;15/05/2017;Acqua;407,73;Liquidazione Fattura Nr. 6017012000004547  del 18/04/2017 - FORNITURA ACQUA POTABILE SCUOLA INFANZIA VINCI;1663;1;3;2;5;5
ACQUE S.P.A.;15/05/2017;Acqua;0,40;Liquidazione Fattura Nr. 6017012000004581  del 18/04/2017 - FORNITURA ACQUA POTABILE IDRANTE;1682;1;3;2;5;5
ACQUE S.P.A.;15/05/2017;Acqua;190,27;Liquidazione Fattura Nr. 6017012000004582  del 18/04/2017 - FORNITURA ACQUA POTABILE MAGAZZINO;1657;1;3;2;5;5
ACQUE S.P.A.;15/05/2017;Acqua;511,92;Liquidazione Fattura Nr. 6017012000004598  del 19/04/2017 - FORNITURA ACQUA POTABILE RESIDENZA ANZIANI;1691;1;3;2;5;5
ACQUE S.P.A.;15/05/2017;Acqua;338,78;Liquidazione Fattura Nr. 6017012000004598  del 19/04/2017 - FORNITURA ACQUA POTABILE RESIDENZA ANZIANI;1692;1;3;2;5;5
ACQUE S.P.A.;15/05/2017;Acqua;11,33;Liquidazione Fattura Nr. 6017012000004612  del 19/04/2017 - FORNITURA ACQUA POTABILE COMUNE;1657;1;3;2;5;5
ACQUE S.P.A.;15/05/2017;Acqua;63,25;Liquidazione Fattura Nr. 6017012000004613  del 19/04/2017 - FORNITURA ACQUA POTABILE BIBLIOTECA;1672;1;3;2;5;5
ACQUE S.P.A.;15/05/2017;Acqua;3,43;Liquidazione Fattura Nr. 6017012000004614  del 19/04/2017 - FORNITURA ACQUA POTABILE MUSEO;1674;1;3;2;5;5
ACQUE S.P.A.;15/05/2017;Acqua;105,60;Liquidazione Fattura Nr. 6017012000004614  del 19/04/2017 - FORNITURA ACQUA POTABILE MUSEO;1675;1;3;2;5;5
ACQUE S.P.A.;15/05/2017;Acqua;27,40;Liquidazione Fattura Nr. 6017012000004615  del 19/04/2017 - FORNITURA ACQUA POTABILE FONTANELLO VIA VAL PUSTERIA;1683;1;3;2;5;5
ACQUE S.P.A.;15/05/2017;Acqua;12,99;Liquidazione Fattura Nr. 6017012000004616  del 19/04/2017 - FORNITURA ACQUA POTABILE ARCHIVIO IDRANTE;1659;1;3;2;5;5
ACQUE S.P.A.;15/05/2017;Acqua;57,55;Liquidazione Fattura Nr. 6017012000004616  del 19/04/2017 - FORNITURA ACQUA POTABILE ARCHIVIO IDRANTE;1660;1;3;2;5;5
ACQUE S.P.A.;15/05/2017;Acqua;27,65;Liquidazione Fattura Nr. 6017012000004617  del 19/04/2017 - FORNITURA ACQUA POTABILE FONT. P.ZZA DELLA LIBERTA';1683;1;3;2;5;5
ACQUE S.P.A.;15/05/2017;Acqua;420,40;Liquidazione Fattura Nr. 6017012000004618  del 19/04/2017 - FORNITURA ACQUA POTABILE BAGNI PUBBLICI;1685;1;3;2;5;5
ACQUE S.P.A.;15/05/2017;Acqua;67,02;Liquidazione Fattura Nr. 6017012000004619  del 19/04/2017 - FORNITURA ACQUA POTABILE FONT. VIA GIOVANNI XXIII;1683;1;3;2;5;5
ACQUE S.P.A.;15/05/2017;Acqua;49,29;Liquidazione Fattura Nr. 6017012000004620  del 19/04/2017 - FORNITURA ACQUA POTABILE UFFICI;1657;1;3;2;5;5
ACQUE S.P.A.;15/05/2017;Acqua;31,61;Liquidazione Fattura Nr. 6017012000004621  del 19/04/2017 - FORNITURA ACQUA POTABILE FONT. P.ZZA L. DA VINCI;1682;1;3;2;5;5
ACQUE S.P.A.;15/05/2017;Acqua;328,40;Liquidazione Fattura Nr. 6017012000004623  del 19/04/2017 - FORNITURA ACQUA POTABILE FONTANA P.ZZA DEI GUIDI;1682;1;3;2;5;5
ACQUE S.P.A.;15/05/2017;Acqua;29,78;Liquidazione Fattura Nr. 6017012000004623  del 19/04/2017 - FORNITURA ACQUA POTABILE FONTANA P.ZZA DEI GUIDI;1683;1;3;2;5;5
ACQUE S.P.A.;15/05/2017;Acqua;84,54;Liquidazione Fattura Nr. 6017012000004624  del 19/04/2017 - FORNITURA ACQUA POTABILE UFFICI;1659;1;3;2;5;5
ACQUE S.P.A.;15/05/2017;Acqua;28,08;Liquidazione Fattura Nr. 6017012000004625  del 19/04/2017 - FORNITURA ACQUA POTABILE COMUNE;1657;1;3;2;5;5
ACQUE S.P.A.;15/05/2017;Acqua;208,36;Liquidazione Fattura Nr. 6017012000004626  del 19/04/2017 - FORNITURA ACQUA POTABILE SCUOLA INFANZIA VINCI;1663;1;3;2;5;5
ACQUE S.P.A.;15/05/2017;Acqua;0,40;Liquidazione Fattura Nr. 6017012000004720  del 20/04/2017 - FORNITURA ACQUA POTABILE FONT. VIA DEL CASTELLO;1683;1;3;2;5;5
ACQUE S.P.A.;15/05/2017;Acqua;266,53;Liquidazione Fattura Nr. 6017012000004721  del 20/04/2017 - FORNITURA ACQUA POTABILE SCUOLA PRIMARIA VINCI;1666;1;3;2;5;5
ACQUE S.P.A.;15/05/2017;Acqua;27,42;Liquidazione Fattura Nr. 6017012000004722  del 20/04/2017 - FORNITURA ACQUA POTABILE FONT. VIA CERRETANA;1683;1;3;2;5;5
ACQUE S.P.A.;15/05/2017;Acqua;145,49;Liquidazione Fattura Nr. 6017012000004723  del 20/04/2017 - FORNITURA ACQUA POTABILE PALAZZINA;1675;1;3;2;5;5
ACQUE S.P.A.;15/05/2017;Acqua;2,15;Liquidazione Fattura Nr. 6017012000004725  del 20/04/2017 - FORNITURA ACQUA POTABILE FONT VIA G. CALVI;1683;1;3;2;5;5
ACQUE S.P.A.;15/05/2017;Acqua;34,25;Liquidazione Fattura Nr. 6017012000004726  del 20/04/2017 - FORNITURA ACQUA POTABILE MISERICORDIA;1678;1;3;2;5;5
ACQUE S.P.A.;15/05/2017;Acqua;284,00;Liquidazione Fattura Nr. 6017012000004743  del 21/04/2017 - FORNITURA ACQUA POTABILE SCUOLA SECONDARIA VINCI;1669;1;3;2;5;5
ACQUE S.P.A.;15/05/2017;Acqua;347,38;Liquidazione Fattura Nr. 6017012000004743  del 21/04/2017 - FORNITURA ACQUA POTABILE SCUOLA SECONDARIA VINCI;1670;1;3;2;5;5
ACQUE S.P.A.;15/05/2017;Acqua;27,89;Liquidazione Fattura Nr. 6017012000004770  del 21/04/2017 - FORNITURA ACQUA POTABILE EX MACELLI;1657;1;3;2;5;5
ACQUE S.P.A.;15/05/2017;Acqua;271,36;Liquidazione Fattura Nr. 6017012000004829  del 24/04/2017 - FORNITURA ACQUA POTABILE FONT VIA DI S. MARIA;1683;1;3;2;5;5
ACQUE S.P.A.;15/05/2017;Acqua;17,86;Liquidazione Fattura Nr. 6017012000004830  del 24/04/2017 - FORNITURA ACQUA POTABILE FONT. VIA DI S. MARIA;1683;1;3;2;5;5
ACQUE S.P.A.;15/05/2017;Acqua;28,43;Liquidazione Fattura Nr. 6017012000004831  del 24/04/2017 - FORNITURA ACQUA POTABILE FONT. VIA LOMBARDIA;1683;1;3;2;5;5
ACQUE S.P.A.;18/05/2017;Acqua;50,42;IVA - Liquidazione Fattura Nr. 6016012000007225  del 09/12/2016 - FORNITURA ACQUA POTABILE SC. INF. SPICCHIO;1729;1;3;2;5;5
ACQUE S.P.A.;18/05/2017;Acqua;72,33;IVA - Liquidazione Fattura Nr. 6016012000007478  del 15/12/2016 - FORNITURA ACQUA POTABILE PALASPORT 40%;1734;1;3;2;5;5
ACQUE S.P.A.;18/05/2017;Acqua;19,56;IVA - Liquidazione Fattura Nr. 6016012000007478  del 15/12/2016 - FORNITURA ACQUA POTABILE PALASPORT 60%;1733;1;3;2;5;5
ACQUE S.P.A.;18/05/2017;Acqua;88,97;IVA - Liquidazione Fattura Nr. 6016012000007478  del 15/12/2016 - FORNITURA ACQUA POTABILE PALASPORT 60%;1734;1;3;2;5;5
ACQUE S.P.A.;18/05/2017;Acqua;8,50;IVA - Liquidazione Fattura Nr. 6016012000007717  del 21/12/2016 - FORNITURA ACQUA POTABILE MAGAZZINO;1728;1;3;2;5;5
ACQUE S.P.A.;18/05/2017;Acqua;12,88;IVA - Liquidazione Fattura Nr. 6016012000007751  del 21/12/2016 - FORNITURA ACQUA POTABILE VILLA REGHINI;1739;1;3;2;5;5
ACQUE S.P.A.;18/05/2017;Acqua;56,16;IVA - Liquidazione Fattura Nr. 6016012000007787  del 22/12/2016 - FORNITURA ACQUA POTABILE RESIDENZA ANZIANI;1740;1;3;2;5;5
ACQUE S.P.A.;18/05/2017;Acqua;1,49;IVA - Liquidazione Fattura Nr. 6016012000007803  del 22/12/2016 - FORNITURA ACQUA POTABILE UFFICI CULTURA;1728;1;3;2;5;5
ACQUE S.P.A.;18/05/2017;Acqua;0,83;IVA - Liquidazione Fattura Nr. 6016012000007807  del 22/12/2016 - FORNITURA ACQUA POTABILE COMUNE;1728;1;3;2;5;5
ACQUE S.P.A.;18/05/2017;Acqua;78,93;IVA - Liquidazione Fattura Nr. 6016012000007858  del 23/12/2016 - FORNITURA ACQUA POTABILE MUSEO;1732;1;3;2;5;5
ACQUE S.P.A.;18/05/2017;Acqua;2,64;IVA - Liquidazione Fattura Nr. 6017012000000463  del 19/01/2017 - FORNITURA ACQUA POTABILE FONTANELLO VIA N. SAURO;1735;1;3;2;5;5
ACQUE S.P.A.;18/05/2017;Acqua;64,58;IVA - Liquidazione Fattura Nr. 6017012000001712  del 13/02/2017 - FORNITURA ACQUA POTABILE SCUOLA PRIMARIA DI VINCI;1730;1;3;2;5;5
ACQUE S.P.A.;18/05/2017;Acqua;2,54;IVA - Liquidazione Fattura Nr. 6017012000001723  del 13/02/2017 - FORNITURA ACQUA POTABILE FONTANELLO VIA N. SAURO;1735;1;3;2;5;5
ACQUE S.P.A.;18/05/2017;Acqua;35,08;IVA - Liquidazione Fattura Nr. 6017012000001790  del 15/02/2017 - FORNITURA ACQUA POTABILE SCUOLA SEC. DI SOVIGLIANA;1731;1;3;2;5;5
ACQUE S.P.A.;18/05/2017;Acqua;34,07;IVA - Liquidazione Fattura Nr. 6017012000001865  del 16/02/2017 - FORNITURA ACQUA POTABILE PALASPORT 40%;1734;1;3;2;5;5
ACQUE S.P.A.;18/05/2017;Acqua;51,05;IVA - Liquidazione Fattura Nr. 6017012000001865  del 16/02/2017 - FORNITURA ACQUA POTABILE PALASPORT 60%;1734;1;3;2;5;5
ACQUE S.P.A.;18/05/2017;Acqua;15,65;IVA - Liquidazione Fattura Nr. 6017012000001888  del 16/02/2017 - FORNITURA ACQUA POTABILE ROTATORIA VIA PIETRAMARINA;1735;1;3;2;5;5
ACQUE S.P.A.;18/05/2017;Acqua;66,76;IVA - Liquidazione Fattura Nr. 6017012000002025  del 21/02/2017 - FORNITURA ACQUA POTABILE SCUOLA INFANZIA DI VINCI;1729;1;3;2;5;5
ACQUE S.P.A.;18/05/2017;Acqua;79,19;IVA - Liquidazione Fattura Nr. 6017012000002103  del 23/02/2017 - FORNITURA ACQUA POTABILE RESIDENZA ANZIANI;1740;1;3;2;5;5
ACQUE S.P.A.;18/05/2017;Acqua;93,14;IVA - Liquidazione Fattura Nr. 6017012000002104  del 23/02/2017 - FORNITURA ACQUA POTABILE ROTATORIA VIA DEI MARTIRI;1735;1;3;2;5;5
ACQUE S.P.A.;18/05/2017;Acqua;17,12;IVA - Liquidazione Fattura Nr. 6017012000002116  del 23/02/2017 - FORNITURA ACQUA POTABILE BAGNI PUBBLICI;1736;1;3;2;5;5
ACQUE S.P.A.;18/05/2017;Acqua;27,98;IVA - Liquidazione Fattura Nr. 6017012000002117  del 23/02/2017 - FORNITURA ACQUA POTABILE SCUOLA INFANZIA VINCI;1729;1;3;2;5;5
ACQUE S.P.A.;18/05/2017;Acqua;35,00;IVA - Liquidazione Fattura Nr. 6017012000002258  del 24/02/2017 - FORNITURA ACQUA POTABILE PALAZZINA;1732;1;3;2;5;5
ACQUE S.P.A.;18/05/2017;Acqua;53,53;IVA - Liquidazione Fattura Nr. 6017012000002301  del 27/02/2017 - FORNITURA ACQUA POTABILE SCUOLA SEC. DI VINCI;1731;1;3;2;5;5
ACQUE S.P.A.;18/05/2017;Acqua;16,07;IVA - Liquidazione Fattura Nr. 6017012000002392  del 27/02/2017 - FORNITURA ACQUA POTABILE NIDO;1737;1;3;2;5;5
ACQUE S.P.A.;18/05/2017;Acqua;16,60;IVA - Liquidazione Fattura Nr. 6017012000002392  del 27/02/2017 - FORNITURA ACQUA POTABILE NIDO;1738;1;3;2;5;5
ACQUE S.P.A.;18/05/2017;Acqua;11,54;IVA - Liquidazione Fattura Nr. 6017012000002448  del 28/02/2017 - FORNITURA ACQUA POTABILE CASA NATALE LEONARDO;1732;1;3;2;5;5
ACQUE S.P.A.;18/05/2017;Acqua;37,38;IVA - Liquidazione Fattura Nr. 6017012000003965  del 05/04/2017 - FORNITURA ACQUA POTABILE SCUOLA INFANZIA DI SPICCHIO;1729;1;3;2;5;5
ACQUE S.P.A.;18/05/2017;Acqua;0,06;IVA - Liquidazione Fattura Nr. 6017012000003966  del 05/04/2017 - FORNITURA ACQUA POTABILE FONT. VIA CAVALLOTTI;1735;1;3;2;5;5
ACQUE S.P.A.;18/05/2017;Acqua;504,22;Liquidazione Fattura Nr. 6016012000007225  del 09/12/2016 - FORNITURA ACQUA POTABILE SC. INF. SPICCHIO;1729;1;3;2;5;5
ACQUE S.P.A.;18/05/2017;Acqua;723,27;Liquidazione Fattura Nr. 6016012000007478  del 15/12/2016 - FORNITURA ACQUA POTABILE PALASPORT 40%;1734;1;3;2;5;5
ACQUE S.P.A.;18/05/2017;Acqua;195,65;Liquidazione Fattura Nr. 6016012000007478  del 15/12/2016 - FORNITURA ACQUA POTABILE PALASPORT 60%;1733;1;3;2;5;5
ACQUE S.P.A.;18/05/2017;Acqua;889,65;Liquidazione Fattura Nr. 6016012000007478  del 15/12/2016 - FORNITURA ACQUA POTABILE PALASPORT 60%;1734;1;3;2;5;5
ACQUE S.P.A.;18/05/2017;Acqua;84,99;Liquidazione Fattura Nr. 6016012000007717  del 21/12/2016 - FORNITURA ACQUA POTABILE MAGAZZINO;1728;1;3;2;5;5
ACQUE S.P.A.;18/05/2017;Acqua;128,83;Liquidazione Fattura Nr. 6016012000007751  del 21/12/2016 - FORNITURA ACQUA POTABILE VILLA REGHINI;1739;1;3;2;5;5
ACQUE S.P.A.;18/05/2017;Acqua;561,64;Liquidazione Fattura Nr. 6016012000007787  del 22/12/2016 - FORNITURA ACQUA POTABILE RESIDENZA ANZIANI;1740;1;3;2;5;5
ACQUE S.P.A.;18/05/2017;Acqua;14,93;Liquidazione Fattura Nr. 6016012000007803  del 22/12/2016 - FORNITURA ACQUA POTABILE UFFICI CULTURA;1728;1;3;2;5;5
ACQUE S.P.A.;18/05/2017;Acqua;8,26;Liquidazione Fattura Nr. 6016012000007807  del 22/12/2016 - FORNITURA ACQUA POTABILE COMUNE;1728;1;3;2;5;5
ACQUE S.P.A.;18/05/2017;Acqua;789,28;Liquidazione Fattura Nr. 6016012000007858  del 23/12/2016 - FORNITURA ACQUA POTABILE MUSEO;1732;1;3;2;5;5
ACQUE S.P.A.;18/05/2017;Acqua;26,43;Liquidazione Fattura Nr. 6017012000000463  del 19/01/2017 - FORNITURA ACQUA POTABILE FONTANELLO VIA N. SAURO;1735;1;3;2;5;5
ACQUE S.P.A.;18/05/2017;Acqua;0,79;Liquidazione Fattura Nr. 6017012000000566  del 19/01/2017 - FORNITURA ACQUA POTABILE FONT. P.ZZA DEL POPOLO;1735;1;3;2;5;5
ACQUE S.P.A.;18/05/2017;Acqua;645,83;Liquidazione Fattura Nr. 6017012000001712  del 13/02/2017 - FORNITURA ACQUA POTABILE SCUOLA PRIMARIA DI VINCI;1730;1;3;2;5;5
ACQUE S.P.A.;18/05/2017;Acqua;25,38;Liquidazione Fattura Nr. 6017012000001723  del 13/02/2017 - FORNITURA ACQUA POTABILE FONTANELLO VIA N. SAURO;1735;1;3;2;5;5
ACQUE S.P.A.;18/05/2017;Acqua;350,83;Liquidazione Fattura Nr. 6017012000001790  del 15/02/2017 - FORNITURA ACQUA POTABILE SCUOLA SEC. DI SOVIGLIANA;1731;1;3;2;5;5
ACQUE S.P.A.;18/05/2017;Acqua;340,64;Liquidazione Fattura Nr. 6017012000001865  del 16/02/2017 - FORNITURA ACQUA POTABILE PALASPORT 40%;1734;1;3;2;5;5
ACQUE S.P.A.;18/05/2017;Acqua;510,55;Liquidazione Fattura Nr. 6017012000001865  del 16/02/2017 - FORNITURA ACQUA POTABILE PALASPORT 60%;1734;1;3;2;5;5
ACQUE S.P.A.;18/05/2017;Acqua;156,54;Liquidazione Fattura Nr. 6017012000001888  del 16/02/2017 - FORNITURA ACQUA POTABILE ROTATORIA VIA PIETRAMARINA;1735;1;3;2;5;5
ACQUE S.P.A.;18/05/2017;Acqua;667,60;Liquidazione Fattura Nr. 6017012000002025  del 21/02/2017 - FORNITURA ACQUA POTABILE SCUOLA INFANZIA DI VINCI;1729;1;3;2;5;5
ACQUE S.P.A.;18/05/2017;Acqua;791,87;Liquidazione Fattura Nr. 6017012000002103  del 23/02/2017 - FORNITURA ACQUA POTABILE RESIDENZA ANZIANI;1740;1;3;2;5;5
ACQUE S.P.A.;18/05/2017;Acqua;931,36;Liquidazione Fattura Nr. 6017012000002104  del 23/02/2017 - FORNITURA ACQUA POTABILE ROTATORIA VIA DEI MARTIRI;1735;1;3;2;5;5
ACQUE S.P.A.;18/05/2017;Acqua;171,21;Liquidazione Fattura Nr. 6017012000002116  del 23/02/2017 - FORNITURA ACQUA POTABILE BAGNI PUBBLICI;1736;1;3;2;5;5
ACQUE S.P.A.;18/05/2017;Acqua;279,79;Liquidazione Fattura Nr. 6017012000002117  del 23/02/2017 - FORNITURA ACQUA POTABILE SCUOLA INFANZIA VINCI;1729;1;3;2;5;5
ACQUE S.P.A.;18/05/2017;Acqua;349,96;Liquidazione Fattura Nr. 6017012000002258  del 24/02/2017 - FORNITURA ACQUA POTABILE PALAZZINA;1732;1;3;2;5;5
ACQUE S.P.A.;18/05/2017;Acqua;535,28;Liquidazione Fattura Nr. 6017012000002301  del 27/02/2017 - FORNITURA ACQUA POTABILE SCUOLA SEC. DI VINCI;1731;1;3;2;5;5
ACQUE S.P.A.;18/05/2017;Acqua;160,68;Liquidazione Fattura Nr. 6017012000002392  del 27/02/2017 - FORNITURA ACQUA POTABILE NIDO;1737;1;3;2;5;5
ACQUE S.P.A.;18/05/2017;Acqua;166,03;Liquidazione Fattura Nr. 6017012000002392  del 27/02/2017 - FORNITURA ACQUA POTABILE NIDO;1738;1;3;2;5;5
ACQUE S.P.A.;18/05/2017;Acqua;115,38;Liquidazione Fattura Nr. 6017012000002448  del 28/02/2017 - FORNITURA ACQUA POTABILE CASA NATALE LEONARDO;1732;1;3;2;5;5
ACQUE S.P.A.;18/05/2017;Acqua;373,83;Liquidazione Fattura Nr. 6017012000003965  del 05/04/2017 - FORNITURA ACQUA POTABILE SCUOLA INFANZIA DI SPICCHIO;1729;1;3;2;5;5
ACQUE S.P.A.;18/05/2017;Acqua;0,59;Liquidazione Fattura Nr. 6017012000003966  del 05/04/2017 - FORNITURA ACQUA POTABILE FONT. VIA CAVALLOTTI;1735;1;3;2;5;5
ACQUE S.P.A.;24/05/2017;Acqua;52,58;IVA - Liquidazione Fattura Nr. 6017012000004851  del 26/04/2017 - FORNITURA ACQUA POTABILE NIDO;1876;1;3;2;5;5
ACQUE S.P.A.;24/05/2017;Acqua;1,07;IVA - Liquidazione Fattura Nr. 6017012000004877  del 26/04/2017 - FORNITURA ACQUA POTABILE CASA NATALE LEONARDO;1873;1;3;2;5;5
ACQUE S.P.A.;24/05/2017;Acqua;0,02;IVA - Liquidazione Fattura Nr. 6017012000004878  del 26/04/2017 - FORNITURA ACQUA POTABILE FONT. P.ZZA DEL POPOLO;1875;1;3;2;5;5
ACQUE S.P.A.;24/05/2017;Acqua;1,77;IVA - Liquidazione Fattura Nr. 6017012000004879  del 26/04/2017 - FORNITURA ACQUA POTABILE FONT. PARCHEGGIO;1875;1;3;2;5;5
ACQUE S.P.A.;24/05/2017;Acqua;525,79;Liquidazione Fattura Nr. 6017012000004851  del 26/04/2017 - FORNITURA ACQUA POTABILE NIDO;1876;1;3;2;5;5
ACQUE S.P.A.;24/05/2017;Acqua;10,74;Liquidazione Fattura Nr. 6017012000004877  del 26/04/2017 - FORNITURA ACQUA POTABILE CASA NATALE LEONARDO;1873;1;3;2;5;5
ACQUE S.P.A.;24/05/2017;Acqua;0,19;Liquidazione Fattura Nr. 6017012000004878  del 26/04/2017 - FORNITURA ACQUA POTABILE FONT. P.ZZA DEL POPOLO;1875;1;3;2;5;5
ACQUE S.P.A.;24/05/2017;Acqua;17,71;Liquidazione Fattura Nr. 6017012000004879  del 26/04/2017 - FORNITURA ACQUA POTABILE FONT. PARCHEGGIO;1875;1;3;2;5;5
ACQUE S.P.A.;05/06/2017;Acqua;73,01;IVA - Liquidazione Fattura Nr. 6017012000005435  del 10/05/2017 (di cui Split per euro 73,01) - FORNITURA ACQUA POTABILE SCUOLA PRIMARIA VINCI;1921;1;3;2;5;5
ACQUE S.P.A.;05/06/2017;Acqua;3,15;IVA - Liquidazione Fattura Nr. 6017012000005484  del 10/05/2017 (di cui Split per euro 3,15) - FORNITURA ACQUA POTABILE FONTANELLO VIA G. GUIDUCCI;1922;1;3;2;5;5
ACQUE S.P.A.;05/06/2017;Acqua;730,13;Liquidazione Fattura Nr. 6017012000005435  del 10/05/2017 - FORNITURA ACQUA POTABILE SCUOLA PRIMARIA VINCI;1921;1;3;2;5;5
ACQUE S.P.A.;05/06/2017;Acqua;31,47;Liquidazione Fattura Nr. 6017012000005484  del 10/05/2017 - FORNITURA ACQUA POTABILE FONTANELLO VIA G. GUIDUCCI;1922;1;3;2;5;5
ACQUE S.P.A.;14/06/2017;Acqua;66,20;IVA - LIQUIDAZIONE FATTURA NR. 6016012000007959  DEL 27/12/2016 - FORNITURA ACQUA POTABILE PALAZZINA;1989;1;3;2;5;5
ACQUE S.P.A.;14/06/2017;Acqua;0,90;IVA - LIQUIDAZIONE FATTURA NR. 6016012000007968  DEL 27/12/2016 - FORNITURA ACQUA POTABILE EX MACELLI;1988;1;3;2;5;5
ACQUE S.P.A.;14/06/2017;Acqua;8,25;IVA - LIQUIDAZIONE FATTURA NR. 6016012000008044  DEL 28/12/2016 - FORNITURA ACQUA POTABILE BAGNI PUBBLICI;1990;1;3;2;5;5
ACQUE S.P.A.;14/06/2017;Acqua;218,00;IVA - LIQUIDAZIONE FATTURA NR. 6016012000008044  DEL 28/12/2016 - FORNITURA ACQUA POTABILE BAGNI PUBBLICI;1991;1;3;2;5;5
ACQUE S.P.A.;14/06/2017;Acqua;661,99;LIQUIDAZIONE FATTURA NR. 6016012000007959  DEL 27/12/2016 - FORNITURA ACQUA POTABILE PALAZZINA;1989;1;3;2;5;5
ACQUE S.P.A.;14/06/2017;Acqua;8,96;LIQUIDAZIONE FATTURA NR. 6016012000007968  DEL 27/12/2016 - FORNITURA ACQUA POTABILE EX MACELLI;1988;1;3;2;5;5
ACQUE S.P.A.;14/06/2017;Acqua;82,55;LIQUIDAZIONE FATTURA NR. 6016012000008044  DEL 28/12/2016 - FORNITURA ACQUA POTABILE BAGNI PUBBLICI;1990;1;3;2;5;5
ACQUE S.P.A.;14/06/2017;Acqua;2.179,92;LIQUIDAZIONE FATTURA NR. 6016012000008044  DEL 28/12/2016 - FORNITURA ACQUA POTABILE BAGNI PUBBLICI;1991;1;3;2;5;5
ACQUE S.P.A.;16/06/2017;Acqua;2,52;IVA - Liquidazione Fattura Nr. 6017012000002995  del 10/03/2017 - FORNITURA ACQUA POTABILE FONTANELLO VIA N. SAURO;2133;1;3;2;5;5
ACQUE S.P.A.;16/06/2017;Acqua;25,18;Liquidazione Fattura Nr. 6017012000002995  del 10/03/2017 - FORNITURA ACQUA POTABILE FONTANELLO VIA N. SAURO;2133;1;3;2;5;5
ACQUE S.P.A.;16/06/2017;Acqua;0,79;Liquidazione Fattura Nr. 6017012000004878  del 26/04/2017 - FORNITURA ACQUA POTABILE FONT. P.ZZA DEL POPOLO;2133;1;3;2;5;5
ORDINE DEGLI INGEGNERI  DELLA PROVINCIA DI  PISA;26/04/2017;Acquisto di servizi per altre spese per formazione e addestramento n.a.c.;20,00;Liquidazione Fattura Nr. 4 PA  del 20/03/2017 - CORSO 'REGOLAMENTO REGIONALE N64/R UNIFICAZIONE DEI PARAMETRI URBANISTICI ED EDILIZI E DEFINIZIONI TECNICHE IN MATERIA DI GOVERNO DEL TERRITORIO E REGOLAMENTO EDILIZIO-TIPO' PARTECIPANTE CLAU;1535;1;3;2;4;999
AGENZIA PER LO SVILUPPO  EMPOLESE VALDESA S.P.A.;29/05/2017;Acquisto di servizi per altre spese per formazione e addestramento n.a.c.;160,00;"Liquidazione Fattura Nr. 51/03  del 02/05/2017 - PARTECIPAZIONE AL CORSO DI FORMAZIONE ORGANIZZATO DA ASEV PER IL GIORNO 10 APRILE  2017 ""LA SCIA E IL DECRETO MILLE PROROGHE"".";1882;1;3;2;4;999
ORDINE DEGLI INGEGNERI  DELLA PROVINCIA DI  PISA;09/06/2017;Acquisto di servizi per altre spese per formazione e addestramento n.a.c.;25,00;Liquidazione Fattura Nr. 7 PA  del 16/05/2017 - CORSO 'LA NUOVA CLASSIFICAZIONE DEL RISCHIO SISMICO DEGLI EDIFICI' PARTECIPANTE CLAUDIA PERUZZI;1954;1;3;2;4;999
AGENZIA PER LO SVILUPPO  EMPOLESE VALDESA S.P.A.;15/06/2017;Acquisto di servizi per altre spese per formazione e addestramento n.a.c.;140,00;"Liquidazione Fattura Nr. 60/03  del 17/05/2017 - PARTECIPAZIONE AL CORSO DI FORMAZIONE ORGANIZZATO DA ASEV PER IL GIORNO 11 MAGGIO  2017 ""LE GESTIONI INDIRETTE DEI SERVIZI SOCIALI, SCOLASTICI,CULTURALI DEGLI ENTI LOCALI: APPALTI, CONVENZION";1994;1;3;2;4;999
ARTEMEDIA S.R.L.;15/06/2017;Altre licenze;57,20;IVA - Liquidazione Fattura Nr. 226-PA2017  del 29/05/2017 (di cui Split per euro 57,20) - ACQUISTO SERVIZI CALCOLO IMU-TASI 2017 - MEPA;1997;1;3;2;7;7
ARTEMEDIA S.R.L.;15/06/2017;Altre licenze;260,00;Liquidazione Fattura Nr. 226-PA2017  del 29/05/2017 - ACQUISTO SERVIZI CALCOLO IMU-TASI 2017 - MEPA;1997;1;3;2;7;7
CENTRO STUDI BRUNO CIARI;14/04/2017;Altre prestazioni professionali e specialistiche n.a.c.;438,45;IVA-Liquidazione Fattura Nr. FATTPA 2_17  del 14/02/2017 (di cui Split per euro 438,45) - SUPERVISIONE COORDINAMENTO PEDAGOGICO ZONALE PER I SERVIZI PRIMA INFANZIA  ANNO 2015/2016;1357;1;3;2;11;999
CENTRO STUDI BRUNO CIARI;14/04/2017;Altre prestazioni professionali e specialistiche n.a.c.;1.992,96;Liquidazione Fattura Nr. FATTPA 2_17  del 14/02/2017 - SUPERVISIONE COORDINAMENTO PEDAGOGICO ZONALE PER I SERVIZI PRIMA INFANZIA  ANNO 2015/2016;1357;1;3;2;11;999
CENTRO STUDI BRUNO CIARI;20/04/2017;Altre prestazioni professionali e specialistiche n.a.c.;360,65;IVA-Liquidazione Fattura Nr. FATTPA 4_17  del 22/02/2017 (di cui Split per euro 360,65) - COORDINAMENTO PEDAGOGICO COMUNALE PER I SERVIZI PRIMA INFANZIA ANNO 2015/2016;1380;1;3;2;11;999
CENTRO STUDI BRUNO CIARI;20/04/2017;Altre prestazioni professionali e specialistiche n.a.c.;1.639,34;Liquidazione Fattura Nr. FATTPA 4_17  del 22/02/2017 - COORDINAMENTO PEDAGOGICO COMUNALE PER I SERVIZI PRIMA INFANZIA ANNO 2015/2016;1380;1;3;2;11;999
TAMBURINI  GIONNI;09/05/2017;Altre prestazioni professionali e specialistiche n.a.c.;35,00;"LIQUIDAZIONE FATTURA NR. FATTPA 3_17  DEL 04/03/2017 - AFFIDAMENTO DEL SERVIZIO PER LO SVOLGIMENTO DELLE ATTIVITA' DI ""MEDICO COMPETENTE"" AI SENSI DEL D.LGS. 81/2008 - ANNI 2015-2016.2017-VISITA MEDICINA DEL LAVORO";1598;1;3;2;11;999
TAMBURINI  GIONNI;15/05/2017;Altre prestazioni professionali e specialistiche n.a.c.;380,00;LIQUIDAZIONE FATTURA NR. FATTPA 6_17  DEL 15/03/2017 - ATTIVIT� MEDICO COMPETENTE D.LGS.81/2008;1696;1;3;2;11;999
STUDIO PICCHI ASSOCIATO;16/05/2017;Altre prestazioni professionali e specialistiche n.a.c.;2.385,01;LIQUIDAZIONE FATTURA NR. 000003-2017-FATTURE  DEL 13/03/2017 - ELABORAZIONE CEDOLINI MESI DI GENNAIO E FEBBRAIO 2017;1706;1;3;2;11;999
APERTAMENTE S.R.L. A SOCIO UNICO;29/05/2017;Altre prestazioni professionali e specialistiche n.a.c.;500,00;IVA - Liquidazione Fattura Nr. 17/2017  del 26/04/2017 (di cui Split per euro 500,00) - AFFIDAMENTO DEL SERVIZIO DI REALIZZAZIONE DELLO SPETTACOLO TEATRALE PRESSO IL TEATRO DI VINCI ;1895;1;3;2;11;999
APERTAMENTE S.R.L. A SOCIO UNICO;29/05/2017;Altre prestazioni professionali e specialistiche n.a.c.;5.000,00;"Liquidazione Fattura Nr. 17/2017  del 26/04/2017 - AFFIDAMENTO DEL SERVIZIO DI REALIZZAZIONE DELLO SPETTACOLO TEATRALE ""ESSERE LEONARDO DA VINCI. UN'INTERVISTA IMPOSSIBILE"" PRESSO IL TEATRO DI VINCI IL GIORNO 21 APRILE 2017 E AFFIDAMENTO DE";1895;1;3;2;11;999
CENTRO STUDI ENTI LOCALI S.R.L.;29/05/2017;Altre prestazioni professionali e specialistiche n.a.c.;135,25;IVA Liquidazione Fattura Nr. 125/AE  del 31/03/2017 (di cui Split per euro 135,25) - Fattura vendita A Split Pay;1883;1;3;2;11;999
CENTRO STUDI ENTI LOCALI S.R.L.;29/05/2017;Altre prestazioni professionali e specialistiche n.a.c.;614,75;Liquidazione Fattura Nr. 125/AE  del 31/03/2017 - Fattura vendita A Split Pay;1883;1;3;2;11;999
SERRINI ARCH. GOFFREDO;15/06/2017;Altre prestazioni professionali e specialistiche n.a.c.;609,02;LIQUIDAZIONE FATTURA NR. 2PA  DEL 18/04/2017 - INTEGRAZIONE IMPEGNO DI SPESA PER REDAZIONE GRAFICA DEGLI ELABORATI CON LE MODIFICHE OGGETTO DI VARIANTE;1998;1;3;2;11;999
SERRINI ARCH. GOFFREDO;15/06/2017;Altre prestazioni professionali e specialistiche n.a.c.;253,76;LIQUIDAZIONE FATTURA NR. 2PA  DEL 18/04/2017 - INTEGRAZIONE IMPEGNO DI SPESA PER REDAZIONE GRAFICA DEGLI ELABORATI CON LE MODIFICHE OGGETTO DI VARIANTE;2000;1;3;2;11;999
SELF S.R.L.;16/06/2017;Altre prestazioni professionali e specialistiche n.a.c.;1.140,00;Liquidazione Fattura Nr. FATTPA 9_17  del 02/02/2017 - ACCOMPAGNAMENTO FORMATIVO NELLA FORMA DEL TUTORING PER LA GESTIONE DEL PERSONALE;2134;1;3;2;11;999
CO&SO EMPOLI - CONS. DI COOP. SOCIALI - SOCIETA' COOPERATIVA;14/04/2017;Altre spese per contratti di servizio pubblico;709,00;IVA-Liquidazione Fattura Nr. 000035-2C0  del 31/01/2017 (di cui Split per euro 709,00) - SERVIZIO SOSTEGNO HANDICAP NELL'AMBITO SCOLASTICO MESE DI GENNAIO 2017;1358;1;3;2;15;999
CO&SO EMPOLI - CONS. DI COOP. SOCIALI - SOCIETA' COOPERATIVA;14/04/2017;Altre spese per contratti di servizio pubblico;17.725,05;Liquidazione Fattura Nr. 000035-2C0  del 31/01/2017 - SERVIZIO SOSTEGNO HANDICAP NELL'AMBITO SCOLASTICO MESE DI GENNAIO 2017;1358;1;3;2;15;999
PROMOCULTURA SOCIETA' COOPERATIVA A.R.L..;18/04/2017;Altre spese per contratti di servizio pubblico;231,00;IVA (reverse charge) - Liquidazione Fattura Nr. 11-E-2017  del 10/02/2017 - Servizi di pulizie presso i musei del Comune di Vinci. 60 ore;1378;1;3;2;15;999
PROMOCULTURA SOCIETA' COOPERATIVA A.R.L..;18/04/2017;Altre spese per contratti di servizio pubblico;13.160,00;Liquidazione Fattura Nr. 09-E-2017  del 10/02/2017 - Servizi museali Museo Leonardiano. Mese GENNAIO 2017 Totale 752 ore  CIG Z511BE63DB  CAPITOLO 3300 Det. 144-2016;1378;1;3;2;15;999
PROMOCULTURA SOCIETA' COOPERATIVA A.R.L..;18/04/2017;Altre spese per contratti di servizio pubblico;3.237,50;Liquidazione Fattura Nr. 10-E-2017  del 10/02/2017 - SERVIZI MUSEALI CASA NATALE ANCHIANO. Mese di GENNAIO 2017. 185 ore;1378;1;3;2;15;999
PROMOCULTURA SOCIETA' COOPERATIVA A.R.L..;18/04/2017;Altre spese per contratti di servizio pubblico;1.050,00;Liquidazione Fattura Nr. 11-E-2017  del 10/02/2017 - Servizi di pulizie presso i musei del Comune di Vinci. 60 ore;1378;1;3;2;15;999
PROMOCULTURA SOCIETA' COOPERATIVA A.R.L..;18/04/2017;Altre spese per contratti di servizio pubblico;4.165,00;Liquidazione Fattura Nr. 12-E-2017  del 10/02/2017 - Servizi di didattica museale GENNAIO 2017. 238 ore;1378;1;3;2;15;999
ARCA - COOPERATIVA SOCIALE A R.L.;20/04/2017;Altre spese per contratti di servizio pubblico;8,01;IVA-Liquidazione Fattura Nr. E-189  del 16/02/2017 - SERVIZIO DI SOSTEGNO HANDICAP PER UN MINORE PRESSO IL NIDO COMUNALE PICCINO PICCIO' SETTEMBRE-DICEMBRE 2016;1382;1;3;2;15;999
ARCA - COOPERATIVA SOCIALE A R.L.;20/04/2017;Altre spese per contratti di servizio pubblico;85,47;IVA-Liquidazione Fattura Nr. E-189  del 16/02/2017 - SERVIZIO DI SOSTEGNO HANDICAP PER UN MINORE PRESSO IL NIDO COMUNALE PICCINO PICCIO' SETTEMBRE-DICEMBRE 2016;1383;1;3;2;15;999
ARCA - COOPERATIVA SOCIALE A R.L.;20/04/2017;Altre spese per contratti di servizio pubblico;200,21;Liquidazione Fattura Nr. E-189  del 16/02/2017 - SERVIZIO DI SOSTEGNO HANDICAP PER UN MINORE PRESSO IL NIDO COMUNALE PICCINO PICCIO' SETTEMBRE-DICEMBRE 2016;1382;1;3;2;15;999
ARCA - COOPERATIVA SOCIALE A R.L.;20/04/2017;Altre spese per contratti di servizio pubblico;2.136,79;Liquidazione Fattura Nr. E-189  del 16/02/2017 - SERVIZIO DI SOSTEGNO HANDICAP PER UN MINORE PRESSO IL NIDO COMUNALE PICCINO PICCIO' SETTEMBRE-DICEMBRE 2016;1383;1;3;2;15;999
CO&SO EMPOLI - CONS. DI COOP. SOCIALI - SOCIETA' COOPERATIVA;20/04/2017;Altre spese per contratti di servizio pubblico;2.806,36;Liquidazione Fattura Nr. 000071-2C0  del 31/01/2017 - SERVIZI EXTRA SCOLASTICI VILLA REGHINI MESE DI GENNAIO 2017;1385;1;3;2;15;999
CO&SO EMPOLI - CONS. DI COOP. SOCIALI - SOCIETA' COOPERATIVA;26/04/2017;Altre spese per contratti di servizio pubblico;3.784,42;Liquidazione Fattura Nr. 000058-2C0 del 31/01/2017 - Fattura vendita;1526;1;3;2;15;999
ESKIMO COOP. SOCIALE ONLUS;26/04/2017;Altre spese per contratti di servizio pubblico;7.184,50;Liquidazione Fattura Nr. FATTPA 14_17  del 28/02/2017 - SERVIZIO CONCESSIONE SERVIZI EDUCTIVI PER L'INFANZIA ED EXTRA SCOLASTICI VILLA REGHINI MESE DI FEBBRAIO 2017;1529;1;3;2;15;999
ASSOCIAZIONE CULTURALE IL PONTE;16/05/2017;Altre spese per contratti di servizio pubblico;7.886,76;Liquidazione Fattura Nr. 6  del 28/02/2017 - SERVIZIO CONCESSIONE SERVIZI EDUCATIVI PER L'INFANZIA E SERVIZI EXTRA-SCOLASTICI MESI DI GENNAIO E FEBBRAIO 2017;1723;1;3;2;15;999
CO&SO EMPOLI - CONS. DI COOP. SOCIALI - SOCIETA' COOPERATIVA;16/05/2017;Altre spese per contratti di servizio pubblico;460,75;IVA-Liquidazione Fattura Nr. 000139-2C0  del 28/02/2017 - SERVIZIO SOSTEGNO HANDICAP SCOLASTICO MESE DI FEBBRAIO 2017;1721;1;3;2;15;999
CO&SO EMPOLI - CONS. DI COOP. SOCIALI - SOCIETA' COOPERATIVA;16/05/2017;Altre spese per contratti di servizio pubblico;509,31;IVA-Liquidazione Fattura Nr. 000150-2C0  del 28/02/2017 (di cui Split per euro 509,31) - SERVIZIO SOSTEGNO HANDICAP NELL'AMBITO SCOLASTICO DAL 16 AL 28/02/2017;1721;1;3;2;15;999
CO&SO EMPOLI - CONS. DI COOP. SOCIALI - SOCIETA' COOPERATIVA;16/05/2017;Altre spese per contratti di servizio pubblico;11.518,75;Liquidazione Fattura Nr. 000139-2C0  del 28/02/2017 - SERVIZIO SOSTEGNO HANDICAP SCOLASTICO MESE DI FEBBRAIO 2017;1721;1;3;2;15;999
CO&SO EMPOLI - CONS. DI COOP. SOCIALI - SOCIETA' COOPERATIVA;16/05/2017;Altre spese per contratti di servizio pubblico;10.186,26;Liquidazione Fattura Nr. 000150-2C0  del 28/02/2017 - SERVIZIO SOSTEGNO HANDICAP NELL'AMBITO SCOLASTICO DAL 16 AL 28/02/2017;1721;1;3;2;15;999
CO&SO EMPOLI - CONS. DI COOP. SOCIALI - SOCIETA' COOPERATIVA;16/05/2017;Altre spese per contratti di servizio pubblico;2.806,36;Liquidazione Fattura Nr. 000172-2C0  del 28/02/2017 - servizi extra scolastici presso Villa Reghini mese di Febbraio 2017;1723;1;3;2;15;999
ESKIMO COOP. SOCIALE ONLUS;16/05/2017;Altre spese per contratti di servizio pubblico;6.155,96;Liquidazione Fattura Nr. FATTPA 178_16  del 31/12/2016 - QUOTA INTEGRAZIONE ISEE ANNO 2015/2016 CONCESSIONE VILLA REGHINI (DAL 18/9/2015 AL 31/12/2016);1722;1;3;2;15;999
PROMOCULTURA SOCIETA' COOPERATIVA A.R.L..;16/05/2017;Altre spese per contratti di servizio pubblico;539,00;IVA - Liquidazione Fattura Nr. 29-E-2017  del 10/03/2017 (di cui Split per euro 539,00) - Servizi  ufficio turistico mese di FEBBRAIO 2017 140 ore;1727;1;3;2;15;999
PROMOCULTURA SOCIETA' COOPERATIVA A.R.L..;16/05/2017;Altre spese per contratti di servizio pubblico;215,60;IVA reverse charge - Liquidazione Fattura Nr. 27-E-2017  del 10/03/2017 - Servizi di pulizie presso i musei del Comune di Vinci. 56 ore;1725;1;3;2;15;999
PROMOCULTURA SOCIETA' COOPERATIVA A.R.L..;16/05/2017;Altre spese per contratti di servizio pubblico;11.130,00;Liquidazione Fattura Nr. 25-E-2017  del 10/03/2017 - Servizi museali Museo Leonardiano. Mese FEBBRAIO 2017 Totale 636 ore  CIG Z511BE63DB  CAPITOLO 3300 Det. 144-2016;1725;1;3;2;15;999
PROMOCULTURA SOCIETA' COOPERATIVA A.R.L..;16/05/2017;Altre spese per contratti di servizio pubblico;1.995,00;Liquidazione Fattura Nr. 26-E-2017  del 10/03/2017 - SERVIZI MUSEALI CASA NATALE ANCHIANO. Mese di FEBBRAIO 2017. 114 ore;1725;1;3;2;15;999
PROMOCULTURA SOCIETA' COOPERATIVA A.R.L..;16/05/2017;Altre spese per contratti di servizio pubblico;980,00;Liquidazione Fattura Nr. 27-E-2017  del 10/03/2017 - Servizi di pulizie presso i musei del Comune di Vinci. 56 ore;1725;1;3;2;15;999
PROMOCULTURA SOCIETA' COOPERATIVA A.R.L..;16/05/2017;Altre spese per contratti di servizio pubblico;4.200,00;Liquidazione Fattura Nr. 28-E-2017  del 10/03/2017 - Servizi di didattica museale FEBBRAIO 2017. 240 ore;1725;1;3;2;15;999
PROMOCULTURA SOCIETA' COOPERATIVA A.R.L..;16/05/2017;Altre spese per contratti di servizio pubblico;2.450,00;Liquidazione Fattura Nr. 29-E-2017  del 10/03/2017 - Servizi  ufficio turistico mese di FEBBRAIO 2017 140 ore;1727;1;3;2;15;999
CENTRO INTERNAZIONALE DI STUDI E DOCUMENTAZIONE LEONARDO DA VINCI C/O BIBLIOTECA;29/05/2017;Altre spese per contratti di servizio pubblico;26.250,00;Liquidazione Fattura Nr. 2/A del 06/04/2017 - ORGANIZZAZIONE, REALIZZAZIONE E GESTIONE DELL'ESPOSIZIONE 'LEONARDO. UNA MOSTRA IMPOSSIBILE' ANNO 2017. DET. S5 N. 110/2015 IMP. DS05110 CAP. 3300/11 ANNO 2017.;1893;1;3;2;15;999
CO&SO EMPOLI - CONS. DI COOP. SOCIALI - SOCIETA' COOPERATIVA;29/05/2017;Altre spese per contratti di servizio pubblico;3.500,37;Liquidazione Fattura Nr. 000157-2C0 del 28/02/2017 - Servizio al pubblico presso la Biblioteca Leonardiana e sedi distaccate;1894;1;3;2;15;999
ASSOCIAZIONE CULTURALE IL PONTE;07/06/2017;Altre spese per contratti di servizio pubblico;3.943,39;Liquidazione Fattura Nr. 13  del 31/03/2017 - SERVIZI CONCESSIONE SERVIZI EDUCATIVI PER L'INFANZIA E SERVIZI EXTRA-SCOLASTICI  VILLA REGHINI MESE DI MARZO 2017;1939;1;3;2;15;999
CO&SO EMPOLI - CONS. DI COOP. SOCIALI - SOCIETA' COOPERATIVA;07/06/2017;Altre spese per contratti di servizio pubblico;2.806,36;Liquidazione Fattura Nr. 000223-2C0  del 31/03/2017 - SERVIZI EXTRASCOLASTICI E PER L'INFANZIA VILLA REGHINI MESE DI MARZO 2017;1939;1;3;2;15;999
CO&SO EMPOLI - CONS. DI COOP. SOCIALI - SOCIETA' COOPERATIVA;15/06/2017;Altre spese per contratti di servizio pubblico;4.684,64;Liquidazione Fattura Nr. 000285-2C0 del 31/03/2017 - Fattura per servizi al pubblico presso la Biblioteca Leonardiana e sedi distaccate;2014;1;3;2;15;999
PROMOCULTURA SOCIETA' COOPERATIVA A.R.L..;15/06/2017;Altre spese per contratti di servizio pubblico;596,75;IVA - Liquidazione Fattura Nr. 46-E-2017  del 10/04/2017 (di cui Split per euro 596,75) - Servizi  ufficio turistico mese di MARZO 2017 / 155 ore;2015;1;3;2;15;999
PROMOCULTURA SOCIETA' COOPERATIVA A.R.L..;15/06/2017;Altre spese per contratti di servizio pubblico;13.807,50;Liquidazione Fattura Nr. 42-E-2017  del 10/04/2017 - Servizi museali Museo Leonardiano. Mese MARZO 2017 Totale 789 ore.  CIG Z681D91705 - CAPITOLO 3300 - Det. 15 del 2017;2013;1;3;2;15;999
PROMOCULTURA SOCIETA' COOPERATIVA A.R.L..;15/06/2017;Altre spese per contratti di servizio pubblico;2.388,75;Liquidazione Fattura Nr. 43-E-2017  del 10/04/2017 - SERVIZI MUSEALI CASA NATALE ANCHIANO. Mese di MARZO 2017. 136,5 ore;2013;1;3;2;15;999
PROMOCULTURA SOCIETA' COOPERATIVA A.R.L..;15/06/2017;Altre spese per contratti di servizio pubblico;2.695,00;Liquidazione Fattura Nr. 45-E-2017  del 10/04/2017 - Servizi di didattica museale MARZO 2017;2013;1;3;2;15;999
PROMOCULTURA SOCIETA' COOPERATIVA A.R.L..;15/06/2017;Altre spese per contratti di servizio pubblico;2.712,50;Liquidazione Fattura Nr. 46-E-2017  del 10/04/2017 - Servizi  ufficio turistico mese di MARZO 2017 / 155 ore;2015;1;3;2;15;999
ESKIMO COOP. SOCIALE ONLUS;27/06/2017;Altre spese per contratti di servizio pubblico;7.184,50;Liquidazione Fattura Nr. FATTPA 27_17  del 31/03/2017 - SERVIZIO DI CONCESSIONE SERVIZI EDUCATIVI PER L'INFANZIA E EXTRASCOLASTICI VILLA REGHINI MESE DI MARZO 2017;2256;1;3;2;15;999
RISTORANTE  LA TORRETTA  DI BERNI, LARINI E C. S.N.C.;19/05/2017;Altre spese per relazioni pubbliche, convegni e mostre, pubblicit� n.a.c;196,00;PAGAMENTO BUONO ECONOMALE NR. 200033 - SPESE DI RAPPRESENTANZA OSPITALITA' EREDI DEL CONTE MASETTI - OSPITALT� EREDI CONTE MASETTI E RELATORI IN OCCASIONE DEL FESTEGGIAMENTO DEL 22 APRILE;1741;1;3;2;2;999
POSTE ITALIANE SPA SOCIETA' CON SOCIO UNICO;06/04/2017;Altre spese per servizi amministrativi;77,08;IVA Liquidazione Fattura Nr. 8017043028  del 07/03/2017 (di cui Split  e. 77,08) - Servizio notifica mese di dicembre 2016 1 atti 76 Servizio Premium - Predisposizione liste di affissione e deposito atti presso le Case Comunali       - Sec;1291;1;3;2;16;999
POSTE ITALIANE SPA SOCIETA' CON SOCIO UNICO;06/04/2017;Altre spese per servizi amministrativi;350,36;Liquidazione Fattura Nr. 8017043028  del 07/03/2017 - Servizio notifica mese di dicembre 2016 1 atti 76 Servizio Premium - Predisposizione liste di affissione e deposito atti presso le Case Comunali       - Secondo tentativo di notifica    ;1291;1;3;2;16;999
SEZIONE REGIONALE TOSCANA DELL'ALBO GESTORI AMBIENTALI PRESSO SEDE CCIAA DI FIRE;06/04/2017;Altre spese per servizi amministrativi;26,00;VERSAMENTO PER ISCRIZIONE ALL'ALBO DEI GESTORI AMBIENTALI PER IL RILASCIO DELL'AUTORIZZAZIONE AL TRASPORTO DEI RIFIUTI COMUNALI;1289;1;3;2;16;999
POSTE ITALIANE SPA SOCIETA' CON SOCIO UNICO;12/04/2017;Altre spese per servizi amministrativi;86,16;IVA 21% Liquidazione Fattura Nr. 8017033872  del 20/02/2017 (di cui Split per euro 86,16) - Notifica con messo  mese di agosto 2016 atti n. 89 x  euro 4,61;1302;1;3;2;16;999
POSTE ITALIANE SPA SOCIETA' CON SOCIO UNICO;12/04/2017;Altre spese per servizi amministrativi;36,79;IVA 21% Liquidazione Fattura Nr. 8017033873  del 20/02/2017 (di cui Split per euro 36,79) - Notifica con messo periodo dal 01/09 al 19/09/2016 servizio light n. atti 38 x 4.61  euro;1302;1;3;2;16;999
POSTE ITALIANE SPA SOCIETA' CON SOCIO UNICO;12/04/2017;Altre spese per servizi amministrativi;60,99;IVA Liquidazione Fattura Nr. 8017033871  del 20/02/2017 (di cui Split per euro 60,99) - Notifica con messo mese di luglio  2016 atti  63  euro 4,61;1302;1;3;2;16;999
POSTE ITALIANE SPA SOCIETA' CON SOCIO UNICO;12/04/2017;Altre spese per servizi amministrativi;290,43;Liquidazione Fattura Nr. 8017033871  del 20/02/2017 - Notifica con messo mese di luglio  2016 atti  63  euro 4,61;1302;1;3;2;16;999
POSTE ITALIANE SPA SOCIETA' CON SOCIO UNICO;12/04/2017;Altre spese per servizi amministrativi;410,29;LIQUIDAZIONE FATTURA NR. 8017033872  DEL 20/02/2017 - NOTIFICA CON MESSO  MESE DI AGOSTO 2016 ATTI N. 89 X  EURO 4,61;1302;1;3;2;16;999
POSTE ITALIANE SPA SOCIETA' CON SOCIO UNICO;12/04/2017;Altre spese per servizi amministrativi;175,18;Liquidazione Fattura Nr. 8017033873  del 20/02/2017 - Notifica con messo periodo dal 01/09 al 19/09/2016 servizio light n. atti 38 x 4.61  euro;1302;1;3;2;16;999
AGENZIA DELLE ENTRATE - CENTRO OPERATIVO PESCARA - TASSE CONCESSIONE GOVERNATIVE;31/05/2017;Altre spese per servizi amministrativi;168,00;CCGG DEL 09/05/17 VERSAMENTO PER ISCRIZIONE ALL'ALBO DEI GESTORI AMBIENTALI PER IL RILASCIO DELL'AUTORIZZAZIONE AL TRASPORTO DEI RIFIUTI COMUNALI;1898;1;3;2;16;999
SEZIONE REGIONALE TOSCANA DELL'ALBO GESTORI AMBIENTALI PRESSO SEDE CCIAA DI FIRE;31/05/2017;Altre spese per servizi amministrativi;16,00;VERSAMENTO  BOLLI SU PROVVEDIMENTO: PER ISCRIZIONE CAT.2-BIS ALL'ALBO DEI GESTORI AMBIENTALI PER IL RILASCIO DELL'AUTORIZZAZIONE AL TRASPORTO DEI RIFIUTI COMUNALI;1900;1;3;2;16;999
SEZIONE REGIONALE TOSCANA DELL'ALBO GESTORI AMBIENTALI PRESSO SEDE CCIAA DI FIRE;31/05/2017;Altre spese per servizi amministrativi;33,33;VERSAMENTO PER ISCRIZIONE ALL'ALBO DEI GESTORI AMBIENTALI  2-BIS PER IL RILASCIO DELL'AUTORIZZAZIONE AL TRASPORTO DEI RIFIUTI COMUNALI;1899;1;3;2;16;999
SOCIETA' CONSORTILE ENERGIA TOSCANA (C.E.T. S.C.R.L.);05/06/2017;Altre spese per servizi amministrativi;123,86;IVA-Liquidazione Fattura Nr. FATTPA 157_17  del 13/03/2017 - CORRISPETTIVO PER GESTIONE SERVIZI GAS NATURALE, ENERGIA ELETTRICA PUBBLICA ILLUMINAZIONE, ENERGIA ELETTRICA BASSA TENSIONE;1920;1;3;2;16;999
SOCIETA' CONSORTILE ENERGIA TOSCANA (C.E.T. S.C.R.L.);05/06/2017;Altre spese per servizi amministrativi;563,01;Liquidazione Fattura Nr. FATTPA 157_17  del 13/03/2017 - CORRISPETTIVO PER GESTIONE SERVIZI GAS NATURALE, ENERGIA ELETTRICA PUBBLICA ILLUMINAZIONE, ENERGIA ELETTRICA BASSA TENSIONE;1920;1;3;2;16;999
ACCA SOFTWARE S.P.A.;07/06/2017;Altre spese per servizi amministrativi;9,68;IVA - Liquidazione Fattura Nr. P000270/2017  del 04/04/2017 (di cui Split per euro 9,68) - SOSTITUZIONE DELLA CHIAVE DI PROTEZIONE DEL PROGRAMMA DI CONTABILIT� _ DETERMINA A CONTRARRE E AFFIDAMENTO DITTA ACCA SOFTWARE SPA;1943;1;3;2;16;999
ACCA SOFTWARE S.P.A.;07/06/2017;Altre spese per servizi amministrativi;44,00;Liquidazione Fattura Nr. P000270/2017  del 04/04/2017 - SOSTITUZIONE DELLA CHIAVE DI PROTEZIONE DEL PROGRAMMA DI CONTABILIT� _ DETERMINA A CONTRARRE E AFFIDAMENTO DITTA ACCA SOFTWARE SPA;1943;1;3;2;16;999
POSTE ITALIANE SPA SOCIETA' CON SOCIO UNICO;07/06/2017;Altre spese per servizi amministrativi;244,33;COD.PAG. B=034017801709074565 LIQUIDAZIONE FATTURA NR. 8017090745  DEL 12/05/2017 - NOTIFICHE GENNAIO 2017  CONTO  30027076-009 - N. 53 ATTI AD EURO 4,61 (ESCLUSO IVA);1927;1;3;2;16;999
POSTE ITALIANE SPA SOCIETA' CON SOCIO UNICO;07/06/2017;Altre spese per servizi amministrativi;262,77;COD.PAG. B=034017801710518691 LIQUIDAZIONE FATTURA NR. 8017105186  DEL 25/05/2017 - NOTIFICHE FEBBRAIO 2017 CON MESSO 30027076-009 - N. 57 ATTI AD EURO 4,61 IVA ESCLUSA;1927;1;3;2;16;999
POSTE ITALIANE SPA SOCIETA' CON SOCIO UNICO;07/06/2017;Altre spese per servizi amministrativi;53,75;IVA Liquidazione Fattura Nr. 8017090745  del 12/05/2017 (di cui Split per euro 53,75) - NOTIFICHE GENNAIO 2017  CONTO  30027076-009 - N. 53 atti ad EURO 4,61 (escluso IVA);1927;1;3;2;16;999
POSTE ITALIANE SPA SOCIETA' CON SOCIO UNICO;07/06/2017;Altre spese per servizi amministrativi;57,81;IVA Liquidazione Fattura Nr. 8017105186  del 25/05/2017 (di cui Split per euro 57,81) - NOTIFICHE FEBBRAIO 2017 CON MESSO 30027076-009 - n. 57 atti ad euro 4,61 IVA esclusa;1927;1;3;2;16;999
BAZAR CINELLI DI CINELLI ILARIA E PAOLO;04/04/2017;Altri beni e materiali di consumo n.a.c.;12,00;PAGAMENTO BUONO ECONOMALE NR. 200015 - ASSEGNAZIONE PER ACQUISTO DI MATERIALE PER INAUGURAZIONI E CERIMONIE ISTITUZIONALI ACQUISTO NASTRO TRICOLORE PER INAUGURAZIONI ISTITUZIONALI;1284;1;3;1;2;999
OASI VERDE SNC DI GIRALDI SONIA & C.;04/04/2017;Altri beni e materiali di consumo n.a.c.;25,00;PAGAMENTO BUONO ECONOMALE NR. 200021 - ACQUISTO MAZZI DI FIORI PER FESTA CITTADINA CENTENARIA - ACQUISTO MAZZO DI FIORI PER CENTENARIA CITTADINA DI VINCI.;1284;1;3;1;2;999
I.M.E.P. ELETTROFORNITURE SRL;13/04/2017;Altri beni e materiali di consumo n.a.c.;5,65;"IVA - Liquidazione Fattura Nr. 1300001909  del 31/01/2017 - ""Det. 296/2016 _ Museo, palazzina, casa natale, nido e 60% palasport"" AFFIDAMENTO IMEP";1342;1;3;1;2;999
I.M.E.P. ELETTROFORNITURE SRL;13/04/2017;Altri beni e materiali di consumo n.a.c.;25,70;"Liquidazione Fattura Nr. 1300001909  del 31/01/2017 - ""Det. 296/2016 _ Museo, palazzina, casa natale, nido e 60% palasport"" AFFIDAMENTO IMEP";1342;1;3;1;2;999
PUCCI EDILIZIA E STRADE DI ALESSANDRO PUCCI;13/04/2017;Altri beni e materiali di consumo n.a.c.;31,15;IVA-Liquidazione Fattura Nr. 4/PA  del 31/01/2017 (di cui Split per euro 31,15) - FORNITURA STABILIZZATO PER STRADE VICINALI;1345;1;3;1;2;999
PUCCI EDILIZIA E STRADE DI ALESSANDRO PUCCI;13/04/2017;Altri beni e materiali di consumo n.a.c.;31,15;IVA-Liquidazione Fattura Nr. 5/PA  del 17/02/2017 (di cui Split per euro 31,15) - FORNITURA STABILIZZATO PER STRADE VICINALI;1345;1;3;1;2;999
PUCCI EDILIZIA E STRADE DI ALESSANDRO PUCCI;13/04/2017;Altri beni e materiali di consumo n.a.c.;141,60;Liquidazione Fattura Nr. 4/PA  del 31/01/2017 - FORNITURA STABILIZZATO PER STRADE VICINALI;1345;1;3;1;2;999
PUCCI EDILIZIA E STRADE DI ALESSANDRO PUCCI;13/04/2017;Altri beni e materiali di consumo n.a.c.;141,60;Liquidazione Fattura Nr. 5/PA  del 17/02/2017 - FORNITURA STABILIZZATO PER STRADE VICINALI;1345;1;3;1;2;999
I.M.E.P. ELETTROFORNITURE SRL;10/05/2017;Altri beni e materiali di consumo n.a.c.;124,78;"IVA - Liquidazione Fattura Nr. 1300038434  del 31/12/2016 - ""Det. 296/2016 _ Museo, palazzina, casa natale, nido e 60% palasport""";1645;1;3;1;2;999
I.M.E.P. ELETTROFORNITURE SRL;10/05/2017;Altri beni e materiali di consumo n.a.c.;77,92;"IVA - Liquidazione Fattura Nr. 1300038434  del 31/12/2016 - ""Det. 296/2016 _ Museo, palazzina, casa natale, nido e 60% palasport""";1646;1;3;1;2;999
I.M.E.P. ELETTROFORNITURE SRL;10/05/2017;Altri beni e materiali di consumo n.a.c.;10,24;"IVA - Liquidazione Fattura Nr. 1300038434  del 31/12/2016 - ""Det. 296/2016 _ Museo, palazzina, casa natale, nido e 60% palasport""";1650;1;3;1;2;999
I.M.E.P. ELETTROFORNITURE SRL;10/05/2017;Altri beni e materiali di consumo n.a.c.;567,16;"Liquidazione Fattura Nr. 1300038434  del 31/12/2016 - ""Det. 296/2016 _ Museo, palazzina, casa natale, nido e 60% palasport""";1645;1;3;1;2;999
I.M.E.P. ELETTROFORNITURE SRL;10/05/2017;Altri beni e materiali di consumo n.a.c.;354,18;"Liquidazione Fattura Nr. 1300038434  del 31/12/2016 - ""Det. 296/2016 _ Museo, palazzina, casa natale, nido e 60% palasport""";1646;1;3;1;2;999
I.M.E.P. ELETTROFORNITURE SRL;10/05/2017;Altri beni e materiali di consumo n.a.c.;46,56;"Liquidazione Fattura Nr. 1300038434  del 31/12/2016 - ""Det. 296/2016 _ Museo, palazzina, casa natale, nido e 60% palasport""";1650;1;3;1;2;999
AEA S.R. L.;19/05/2017;Altri beni e materiali di consumo n.a.c.;5,00;PAGAMENTO BUONO ECONOMALE NR. 200028 - ACQUISTO MATERIALI PER MANUTENZIONI IMPIANTI SPORTIVI E PALASPORT - ACQUISTO LIQUIDO ANTIFORO PER RIPARAZIONE GOMME MEZZI ADDETTI ALLE MANUTENZIONI DEGLI IMPIANTI SPORTIVI;1745;1;3;1;2;999
AEA S.R. L.;19/05/2017;Altri beni e materiali di consumo n.a.c.;12,00;PAGAMENTO BUONO ECONOMALE NR. 200030 - ACQUISTO MATERIALI PER MANUTENZIONI IMPIANTI SPORTIVI E PALASPORT -ACQUISTO LIQUIDO ANTIFORATURA PER MEZZI ADDETTI ALLA MANUTENZIONE IMPIANTI SPORTIVI;1745;1;3;1;2;999
SELMI DI SELMI ANDREA & SELMI FRANCESCO S.N.C.;19/05/2017;Altri beni e materiali di consumo n.a.c.;12,00;PAGAMENTO BUONO ECONOMALE NR. 200027 - ACQUISTO MATERIALI PER MANUTENZIONI IMPIANTI SPORTIVI E PALASPORT- FATTE N.3 COPIE: N.1 DOPPIA MAPPA E N.2 UNIVERSALI PER 3 PORTE PALASPORT;1745;1;3;1;2;999
SELMI DI SELMI ANDREA & SELMI FRANCESCO S.N.C.;19/05/2017;Altri beni e materiali di consumo n.a.c.;30,00;PAGAMENTO BUONO ECONOMALE NR. 200029 - ACQUISTO MATERIALI PER MANUTENZIONI IMPIANTI SPORTIVI E PALASPORT ACQUISTO MATERIALE PER RIPARAZIONI PALASPORT;1745;1;3;1;2;999
SELMI DI SELMI ANDREA & SELMI FRANCESCO S.N.C.;19/05/2017;Altri beni e materiali di consumo n.a.c.;6,50;PAGAMENTO BUONO ECONOMALE NR. 200034 - ACQUISTO MATERIALI PER MANUTENZIONI IMPIANTI SPORTIVI E PALASPORT FATTE N.2 COPIE CHIAVI PORTE SPOGLIATOI PALASPORT;1745;1;3;1;2;999
PRATESI LORENZO S.R.L.;07/06/2017;Altri beni e materiali di consumo n.a.c.;52,29;IVA - Liquidazione Fattura Nr. 1/E  del 31/03/2017 (di cui Split per euro 52,29) - ACQUISTO MATERIALI EDILI PER LAVORI DI MANUTENZIONE ORDINARIA PRESSO EDIFICI E SCUOLE _ DETERMINA A CONTRARRE E AFFIDAMENTO DITTA PRATESI LORENZO SRL;1944;1;3;1;2;999
PRATESI LORENZO S.R.L.;07/06/2017;Altri beni e materiali di consumo n.a.c.;237,67;Liquidazione Fattura Nr. 1/E  del 31/03/2017 - ACQUISTO MATERIALI EDILI PER LAVORI DI MANUTENZIONE ORDINARIA PRESSO EDIFICI E SCUOLE _ DETERMINA A CONTRARRE E AFFIDAMENTO DITTA PRATESI LORENZO SRL;1944;1;3;1;2;999
L'ELETTRICA S.P.A.;12/06/2017;Altri beni e materiali di consumo n.a.c.;109,16;IVA - Liquidazione Fattura Nr. 0000141PA  del 31/03/2017 (di cui Split per euro 109,16) - DET 38/2017 AFFIDAMENTO ALLA DITTA L'ELETTRICA SPA DELLA FORNITURA LAMPADE DI EMERGENZA PER MAGAZZINO COMUNALE;1962;1;3;1;2;999
L'ELETTRICA S.P.A.;12/06/2017;Altri beni e materiali di consumo n.a.c.;496,17;Liquidazione Fattura Nr. 0000141PA  del 31/03/2017 - DET 38/2017 AFFIDAMENTO ALLA DITTA L'ELETTRICA SPA DELLA FORNITURA LAMPADE DI EMERGENZA PER MAGAZZINO COMUNALE;1962;1;3;1;2;999
DAMAZ S.R.L. - INGROSSO CASALINGHI;15/06/2017;Altri beni e materiali di consumo n.a.c.;57,32;IVA Liquidazione Fattura Nr. 10965P  del 19/04/2017 (di cui Split per euro 57,32) - FORNITURA MATERIALE PULIZIE EDIFICI COMUNALI ORDINE N. 1 RdO 1542152 del 2017- PRIMA CONSEGNA;2009;1;3;1;2;999
DAMAZ S.R.L. - INGROSSO CASALINGHI;15/06/2017;Altri beni e materiali di consumo n.a.c.;40,45;IVA Liquidazione Fattura Nr. 10966P  del 19/04/2017 (di cui Split per euro 40,45) - FORNITURA MATERIALE PULIZIE MUSEI ORDINE N. 1 RdO 1542152 del 2017- PRIMA CONSEGNA;2010;1;3;1;2;999
DAMAZ S.R.L. - INGROSSO CASALINGHI;15/06/2017;Altri beni e materiali di consumo n.a.c.;16,08;IVA Liquidazione Fattura Nr. 10980P  del 20/04/2017 (di cui Split per euro 16,08) - FORNITURA MATERIALE PULIZIE EDIFICI COMUNALI ORDINE N. 1 RdO 1542152 del 2017- SECONDA CONSEGNA;2009;1;3;1;2;999
DAMAZ S.R.L. - INGROSSO CASALINGHI;15/06/2017;Altri beni e materiali di consumo n.a.c.;13,40;IVA Liquidazione Fattura Nr. 10981P  del 20/04/2017 (di cui Split per euro 13,40) - FORNITURA MATERIALE PULIZIE MUSEI ORDINE N. 1 RdO 1542152 del 2017- SECONDA CONSEGNA;2010;1;3;1;2;999
DAMAZ S.R.L. - INGROSSO CASALINGHI;15/06/2017;Altri beni e materiali di consumo n.a.c.;260,53;Liquidazione Fattura Nr. 10965P  del 19/04/2017 - FORNITURA MATERIALE PULIZIE EDIFICI COMUNALI ORDINE N. 1 RdO 1542152 del 2017- PRIMA CONSEGNA;2009;1;3;1;2;999
DAMAZ S.R.L. - INGROSSO CASALINGHI;15/06/2017;Altri beni e materiali di consumo n.a.c.;183,86;Liquidazione Fattura Nr. 10966P  del 19/04/2017 - FORNITURA MATERIALE PULIZIE MUSEI ORDINE N. 1 RdO 1542152 del 2017- PRIMA CONSEGNA;2010;1;3;1;2;999
DAMAZ S.R.L. - INGROSSO CASALINGHI;15/06/2017;Altri beni e materiali di consumo n.a.c.;73,08;Liquidazione Fattura Nr. 10980P  del 20/04/2017 - FORNITURA MATERIALE PULIZIE EDIFICI COMUNALI ORDINE N. 1 RdO 1542152 del 2017- SECONDA CONSEGNA;2009;1;3;1;2;999
DAMAZ S.R.L. - INGROSSO CASALINGHI;15/06/2017;Altri beni e materiali di consumo n.a.c.;60,90;Liquidazione Fattura Nr. 10981P  del 20/04/2017 - FORNITURA MATERIALE PULIZIE MUSEI ORDINE N. 1 RdO 1542152 del 2017- SECONDA CONSEGNA;2010;1;3;1;2;999
NUOVA C. & P. SERRAMENTI S.N.C. DI VALORI V., PUCCI M., PROSPERI A. E MESSERI R.;15/06/2017;Altri beni e materiali di consumo n.a.c.;4,62;IVA Liquidazione Fattura Nr. 02/01  del 26/05/2017 (di cui Split per euro 4,62) - ASSEGNAZIONE FONDI ALL'ECONOMO PER SPESE MINUTE URGENTI;1995;1;3;1;2;999
NUOVA C. & P. SERRAMENTI S.N.C. DI VALORI V., PUCCI M., PROSPERI A. E MESSERI R.;27/06/2017;Altri beni e materiali di consumo n.a.c.;21,00;PAGAMENTO BUONO ECONOMALE NR. 200044 - ACQUISTO BENI PER MANUT.SEDI ISTITUZIONALI ACQUISTO N.7 CERNIERE COMPLETE PER CAMBIO SERRATURE ROTTE;2250;1;3;1;2;999
PEROREL ELETTRONICA DI ORELLI CLAUDIO;27/06/2017;Altri beni e materiali di consumo n.a.c.;3,00;PAGAMENTO BUONO ECONOMALE NR. 200043 - ACQUISTO BENI PER MANUT.SEDI ISTITUZIONALI - ACQUISTO ADATTATORE PER OROLOGIO SEDE POLIZIA MUNICIPALE;2250;1;3;1;2;999
SOC.ING.MAGNANI SRL;27/06/2017;Altri beni e materiali di consumo n.a.c.;158,40;IVA - Liquidazione Fattura Nr. 21/10  del 20/03/2017 - ACQUISTO CONGLOMERATO BITUMINOSO A FREDDO_DET. 37 DEL 14/03/2017;2260;1;3;1;2;999
SOC.ING.MAGNANI SRL;27/06/2017;Altri beni e materiali di consumo n.a.c.;720,00;Liquidazione Fattura Nr. 21/10  del 20/03/2017 - ACQUISTO CONGLOMERATO BITUMINOSO A FREDDO_DET. 37 DEL 14/03/2017;2260;1;3;1;2;999
POSTE ITALIANE SPA SOCIETA' CON SOCIO UNICO;12/04/2017;Altri servizi ausiliari n.a.c.;2,90;IVA 1% Liquidazione Fattura Nr. 8017033871  del 20/02/2017 (di cui Split per euro 2,90) - Notifica con messo mese di luglio  2016 atti  63  euro 4,61;1301;1;3;2;13;999
POSTE ITALIANE SPA SOCIETA' CON SOCIO UNICO;12/04/2017;Altri servizi ausiliari n.a.c.;4,10;IVA 1% Liquidazione Fattura Nr. 8017033872  del 20/02/2017 (di cui Split per euro 4,10) - Notifica con messo  mese di agosto 2016 atti n. 89 x  euro 4,61;1301;1;3;2;13;999
POSTE ITALIANE SPA SOCIETA' CON SOCIO UNICO;12/04/2017;Altri servizi ausiliari n.a.c.;1,75;IVA 1% Liquidazione Fattura Nr. 8017033873  del 20/02/2017 (di cui Split per euro 1,75) - Notifica con messo periodo dal 01/09 al 19/09/2016 servizio light n. atti 38 x 4.61  euro;1301;1;3;2;13;999
OPERA LABORATORI FIORENTINI S.P.A.;27/04/2017;Altri servizi ausiliari n.a.c.;9.000,00;Liquidazione Fattura Nr. 11/0P del 11/03/2016 - Fattura vendita Split Paym. PA;1540;1;3;2;13;999
FRATERNITA MISERICORDIA DI VINCI;19/05/2017;Altri servizi ausiliari n.a.c.;3.208,32;Liquidazione Fattura Nr. FATTPA 3_17  del 30/03/2017 - SERVIZIO DI CUSTODIA, ASSISTENZA AGLI SPETTACOLI E PULIZIA DEI LOCALI DEL TEATRO DI VINCI PER IL PERIODO DAL 1 GIUGNO 2016 AL 31 DICEMBRE 2018 - AFFIDAMENTO TRAMITE START A FRATERNITA D;1759;1;3;2;13;999
CENTRO INTERNAZIONALE DI STUDI E DOCUMENTAZIONE LEONARDO DA VINCI C/O BIBLIOTECA;13/04/2017;Altri servizi diversi n.a.c.;2.885,25;IVA LIQUIDAZIONE FATTURA NR. 5/A  DEL 11/10/2016 - REALIZZAZIONE E COMPLETAMENTO DEL PROGETTO 'ATLANTE TATTILE, VISIVO E LESSICALE DELL'ANATOMIA UMANA TRA MEDIOEVO ARABO E RINASCIMENTO';1334;1;3;2;99;999
CENTRO INTERNAZIONALE DI STUDI E DOCUMENTAZIONE LEONARDO DA VINCI C/O BIBLIOTECA;13/04/2017;Altri servizi diversi n.a.c.;13.114,75;Liquidazione Fattura Nr. 5/A  del 11/10/2016 - REALIZZAZIONE E COMPLETAMENTO DEL PROGETTO 'ATLANTE TATTILE, VISIVO E LESSICALE DELL'ANATOMIA UMANA TRA MEDIOEVO ARABO E RINASCIMENTO';1334;1;3;2;99;999
CRISTOFORO SOC.COOP. SOCIALE ONLUS;14/04/2017;Altri servizi diversi n.a.c.;734,72;IVA-Liquidazione Fattura Nr. 87  del 10/02/2017 (di cui Split per euro 734,72) - SERVIZIO ACCOMPAGNAMENTO SCUOLABUS MESE DI GENNAIO 2017;1355;1;3;2;99;999
CRISTOFORO SOC.COOP. SOCIALE ONLUS;14/04/2017;Altri servizi diversi n.a.c.;87,93;IVA-Liquidazione Fattura Nr. 88  del 10/02/2017 (di cui Split per euro 87,93) - SERVIZIO PRESCUOLA MESE DI GENNAIO 2017;1355;1;3;2;99;999
CRISTOFORO SOC.COOP. SOCIALE ONLUS;14/04/2017;Altri servizi diversi n.a.c.;7.347,22;Liquidazione Fattura Nr. 87  del 10/02/2017 - SERVIZIO ACCOMPAGNAMENTO SCUOLABUS MESE DI GENNAIO 2017;1355;1;3;2;99;999
CRISTOFORO SOC.COOP. SOCIALE ONLUS;14/04/2017;Altri servizi diversi n.a.c.;879,34;Liquidazione Fattura Nr. 88  del 10/02/2017 - SERVIZIO PRESCUOLA MESE DI GENNAIO 2017;1355;1;3;2;99;999
UISP - UNIONE ITALIANA SPORT PER TUTTI COMITATO TERRITORIALE EMPOLI VALDELSA;14/04/2017;Altri servizi diversi n.a.c.;4.651,86;Liquidazione Fattura Nr. 57/2017  del 17/02/2017 - SERVIZIO CUSTODIA E PULIZIA PALASPORT FALCONE E BORSELLINO CIG Z191B08EFF NOVEMBRE 2016 FATTURAZIONE EFFETTUATA DA SOGGETTO CHE SI AVVALE DEL REGIME DI CUI ALLA LAEGGE 16/12/1991 N.398 NON ;1377;1;3;2;99;999
FRATERNITA MISERICORDIA DI VINCI;20/04/2017;Altri servizi diversi n.a.c.;180,00;Liquidazione Fattura Nr. FATTPA 2_17  del 20/03/2017 - SERVIZIO TRSPORTO ALUNNI DISABILI DALL'ABITAZIONE  PRESSO IL CENTRO ESTIVO DEL CENTRO AGGREGAZIONE GIOVANILE DI SOVIGLIANA ANNO 2015;1384;1;3;2;99;999
LEGAMBIENTE PRATO;20/04/2017;Altri servizi diversi n.a.c.;446,00;Liquidazione Fattura Nr. 2017/01 PA  del 21/03/2017 - Campo estivo presso rifugio Le Cave 3-10 Luglio 2016 con Ass. Agrado;1381;1;3;2;99;999
A.N.A.P.O.O. ASSOCIAZIONE NAZIONALE ASSAGGIATORI PROFESSIONISTI DI OLIO DI OLIVA;26/04/2017;Altri servizi diversi n.a.c.;517,00;IVA  Liquidazione Fattura Nr. 1  del 15/03/2017 (di cui Split per euro 517,00) - Organizzazione premio concorso olio di qualit� del Montalbano;1533;1;3;2;99;999
A.N.A.P.O.O. ASSOCIAZIONE NAZIONALE ASSAGGIATORI PROFESSIONISTI DI OLIO DI OLIVA;26/04/2017;Altri servizi diversi n.a.c.;2.350,00;Liquidazione Fattura Nr. 1  del 15/03/2017 - Organizzazione premio concorso olio di qualit� del Montalbano;1533;1;3;2;99;999
COLORI SOCIETA' COOPERATIVA SOCIALE ONLUS;26/04/2017;Altri servizi diversi n.a.c.;14.005,99;Liquidazione Fattura Nr. 193  del 31/12/2011 - ASSISTENZA SCOLASTICA ALUNNI CON HANDICAP NELLE SCUOLE DICEMBRE 2011;1528;1;3;2;99;999
MEDICEA  ASSOCIAZIONE CULTURALE;26/04/2017;Altri servizi diversi n.a.c.;163,53;IVA - Liquidazione Fattura Nr. 4  del 28/02/2017 - servizio attacchinaggio manifesti mese febbraio  cig Z371CAF4A1;1532;1;3;2;99;999
MEDICEA  ASSOCIAZIONE CULTURALE;26/04/2017;Altri servizi diversi n.a.c.;743,33;Liquidazione Fattura Nr. 4  del 28/02/2017 - servizio attacchinaggio manifesti mese febbraio  cig Z371CAF4A1;1532;1;3;2;99;999
TELECOM ITALIA SPA;09/05/2017;Altri servizi diversi n.a.c.;22,44;IVA - Liquidazione Fattura Nr. 7X00735602  del 14/02/2017 (di cui Split per euro 22,44) - 2BIM 2017;1639;1;3;2;99;999
TELECOM ITALIA SPA;09/05/2017;Altri servizi diversi n.a.c.;22,45;IVA - Liquidazione Fattura Nr. 7X05045375  del 15/12/2016 (di cui Split per euro 22,45) - 1BIM 2017 Telefonia mobile;1612;1;3;2;99;999
TELECOM ITALIA SPA;09/05/2017;Altri servizi diversi n.a.c.;102,00;Liquidazione Fattura Nr. 7X00735602  del 14/02/2017 - 2BIM 2017;1639;1;3;2;99;999
TELECOM ITALIA SPA;09/05/2017;Altri servizi diversi n.a.c.;102,00;Liquidazione Fattura Nr. 7X05045375  del 15/12/2016 - 1BIM 2017 Telefonia mobile;1612;1;3;2;99;999
UISP - UNIONE ITALIANA SPORT PER TUTTI COMITATO TERRITORIALE EMPOLI VALDELSA;09/05/2017;Altri servizi diversi n.a.c.;366,00;Liquidazione Fattura Nr. 82/2017 del 07/03/2017 - Predisposizione documento di valutazione rischi (D.U.V.) Palasport Falcone e Borsellino CIG Z191B08EFF fatturazione effettuata da soggetto che si avvale del regime di cui alla Legge 16/12/19;1613;1;3;2;99;999
UISP - UNIONE ITALIANA SPORT PER TUTTI COMITATO TERRITORIALE EMPOLI VALDELSA;09/05/2017;Altri servizi diversi n.a.c.;3.777,12;Liquidazione Fattura Nr. 83/2017 del 07/03/2017 - Servizio custodia e pulizia Palasport Falcone e Borsellino CIG Z191B08EFF dicembre 2016 fatturazione effettuata da soggetto che si avvale del regime di cui alla legge 16/12/1991 n.398 non as;1613;1;3;2;99;999
UISP - UNIONE ITALIANA SPORT PER TUTTI COMITATO TERRITORIALE EMPOLI VALDELSA;09/05/2017;Altri servizi diversi n.a.c.;3.817,38;Liquidazione Fattura Nr. 84/2017 del 14/03/2017 - Servizio custodia e pulizia Palasport Falcone e Borsellino CIG Z111C9C926 gennaio 2017 fatturazione effettuata da soggetto che si avvale del regime di cui alla legge 16/12/1991 n.398 non ass;1614;1;3;2;99;999
UISP - UNIONE ITALIANA SPORT PER TUTTI COMITATO TERRITORIALE EMPOLI VALDELSA;09/05/2017;Altri servizi diversi n.a.c.;4.461,54;Liquidazione Fattura Nr. 85/2017 del 14/03/2017 - Servizio custodia e pulizia Palasport Falcone e Borsellino CIG Z111C9C926 febbraio 2017 fatturazione effettuata da soggetto che si avvale del regime di cui alla legge 16/12/1991 n.398 non as;1614;1;3;2;99;999
UISP - UNIONE ITALIANA SPORT PER TUTTI COMITATO TERRITORIALE EMPOLI VALDELSA;09/05/2017;Altri servizi diversi n.a.c.;1.220,00;Liquidazione Fattura Nr. 86/2017 del 20/03/2017 - Predisposizione documento valutazione rischi (D.V.R) Palasport Falcone e Borsellino settembre 2015-giugno 2016 CIG ZB015F9D4A fatturazione effettuata da soggetto che si avvale rel regime di ;1613;1;3;2;99;999
CRISTOFORO SOC.COOP. SOCIALE ONLUS;16/05/2017;Altri servizi diversi n.a.c.;868,52;IVA-Liquidazione Fattura Nr. 151  del 10/03/2017 (di cui Split per euro 868,52) - SERVIZIO ACCOMPAGNAMENTO SCUOLABUS MESE DI FEBBRAIO 2017;1717;1;3;2;99;999
CRISTOFORO SOC.COOP. SOCIALE ONLUS;16/05/2017;Altri servizi diversi n.a.c.;103,45;IVA-Liquidazione Fattura Nr. 152  del 10/03/2017 - SERVIZIO PRESCUOLA MESE DI FEBBRAIO 2017;1717;1;3;2;99;999
CRISTOFORO SOC.COOP. SOCIALE ONLUS;16/05/2017;Altri servizi diversi n.a.c.;102,17;IVA-Liquidazione Fattura Nr. 174  del 24/03/2017 (di cui Split per euro 102,17) - SORVEGLIANZA PRESCUOLA MESE DI MARZO 2016 E INTEGRAZIONE FEBBRAIO 2016;1716;1;3;2;99;999
CRISTOFORO SOC.COOP. SOCIALE ONLUS;16/05/2017;Altri servizi diversi n.a.c.;99,06;IVA-Liquidazione Fattura Nr. 175  del 24/03/2017 (di cui Split per euro 99,06) - SORVEGLIANZA PRESCUOLA MESE DI APRILE 2016;1716;1;3;2;99;999
CRISTOFORO SOC.COOP. SOCIALE ONLUS;16/05/2017;Altri servizi diversi n.a.c.;8.685,23;Liquidazione Fattura Nr. 151  del 10/03/2017 - SERVIZIO ACCOMPAGNAMENTO SCUOLABUS MESE DI FEBBRAIO 2017;1717;1;3;2;99;999
CRISTOFORO SOC.COOP. SOCIALE ONLUS;16/05/2017;Altri servizi diversi n.a.c.;1.034,51;Liquidazione Fattura Nr. 152  del 10/03/2017 - SERVIZIO PRESCUOLA MESE DI FEBBRAIO 2017;1717;1;3;2;99;999
CRISTOFORO SOC.COOP. SOCIALE ONLUS;16/05/2017;Altri servizi diversi n.a.c.;1.021,74;Liquidazione Fattura Nr. 174  del 24/03/2017 - SORVEGLIANZA PRESCUOLA MESE DI MARZO 2016 E INTEGRAZIONE FEBBRAIO 2016;1716;1;3;2;99;999
CRISTOFORO SOC.COOP. SOCIALE ONLUS;16/05/2017;Altri servizi diversi n.a.c.;990,58;Liquidazione Fattura Nr. 175  del 24/03/2017 - SORVEGLIANZA PRESCUOLA MESE DI APRILE 2016;1716;1;3;2;99;999
VERACINI   ALESSIO;16/05/2017;Altri servizi diversi n.a.c.;11.272,80;LIQUIDAZIONE FATTURA NR. 1/FE  DEL 24/03/2017 - DET. 14/2008 IMP. 710 CONSEGNA 31.12.2015 CIG Z4F1DEFF07;1726;1;3;2;99;999
CAMERA DI COMMERCIO INDUSTRIA E ARTIGIANATO DI FIRENZE;19/05/2017;Altri servizi diversi n.a.c.;16,50;PAGAMENTO BUONO ECONOMALE NR. 200037 - PAGAMENTO DIRITTI PER INVIO MUD 2017 - DIRITTI DI SEGRETERIA MODELLO UNICO AMBIENTALE;1747;1;3;2;99;999
MEDICEA  ASSOCIAZIONE CULTURALE;19/05/2017;Altri servizi diversi n.a.c.;163,53;IVA - Liquidazione Fattura Nr. 7  del 31/03/2017 - servizio attacchinaggio manifesti cig Z371CAF4A1 IMPEGNO SPESA PPAA;1757;1;3;2;99;999
MEDICEA  ASSOCIAZIONE CULTURALE;19/05/2017;Altri servizi diversi n.a.c.;743,33;Liquidazione Fattura Nr. 7  del 31/03/2017 - servizio attacchinaggio manifesti cig Z371CAF4A1 IMPEGNO SPESA PPAA;1757;1;3;2;99;999
ASSOCIAZIONE SPORTIVA DILETTANTISTICA NUOTO VALDINIEVOLE;07/06/2017;Altri servizi diversi n.a.c.;40,70;IVA-Liquidazione Fattura Nr. 18  del 04/05/2017 (di cui Split per euro 40,70) - CENTRI ESTIVI ANNO 2016 AGRADO;1937;1;3;2;99;999
ASSOCIAZIONE SPORTIVA DILETTANTISTICA NUOTO VALDINIEVOLE;07/06/2017;Altri servizi diversi n.a.c.;185,00;Liquidazione Fattura Nr. 18  del 04/05/2017 - CENTRI ESTIVI ANNO 2016 AGRADO;1937;1;3;2;99;999
CENTRO L.I.F.E.;07/06/2017;Altri servizi diversi n.a.c.;640,75;IVA - LIQUIDAZIONE FATTURA NR. 2  DEL 13/04/2017 - SPORTELLO LAVORO PRIMA ACCOGLIENZA SERVIZI PER L' IMPIEGO 2017;1938;1;3;2;99;999
CENTRO L.I.F.E.;07/06/2017;Altri servizi diversi n.a.c.;2.912,52;Liquidazione Fattura Nr. 2  del 13/04/2017 - SPORTELLO LAVORO PRIMA ACCOGLIENZA SERVIZI PER L' IMPIEGO 2017;1938;1;3;2;99;999
EQUITALIA SERVIZI DI RISCOSSIONE SPA;09/06/2017;Altri servizi diversi n.a.c.;2.093,98;"""CODICE ENTE 03491-RIMBORSO SPESE ART. 17 ANNO 2016, EURO 2.093,98"" COMMA 3 DEL DECRETO LEGISLATIVO 13.04.1999, N. 112 - RIMBORSO DELLE SPESE ESECUTIVE MATURATE NEL 2016 A EQUITALIA SERVIZI DI RISCOSSIONE SPA DETERM.N.33/2017 SETT.4";1952;1;3;2;99;999
CRISTOFORO SOC.COOP. SOCIALE ONLUS;15/06/2017;Altri servizi diversi n.a.c.;1.026,86;IVA-Liquidazione Fattura Nr. 210  del 18/04/2017 (di cui Split per euro 1.026,86) - SERVIZIO DI ACCOMPAGNAMENTO MESE DI MARZO 2017;2011;1;3;2;99;999
CRISTOFORO SOC.COOP. SOCIALE ONLUS;15/06/2017;Altri servizi diversi n.a.c.;103,45;IVA-Liquidazione Fattura Nr. 211  del 18/04/2017 (di cui Split per euro 103,45) - SERVIZIO DI PRESCUOLA MESE DI MARZO 2017;2011;1;3;2;99;999
CRISTOFORO SOC.COOP. SOCIALE ONLUS;15/06/2017;Altri servizi diversi n.a.c.;10.268,62;Liquidazione Fattura Nr. 210  del 18/04/2017 - SERVIZIO DI ACCOMPAGNAMENTO MESE DI MARZO 2017;2011;1;3;2;99;999
CRISTOFORO SOC.COOP. SOCIALE ONLUS;15/06/2017;Altri servizi diversi n.a.c.;1.034,51;Liquidazione Fattura Nr. 211  del 18/04/2017 - SERVIZIO DI PRESCUOLA MESE DI MARZO 2017;2011;1;3;2;99;999
MEDICEA  ASSOCIAZIONE CULTURALE;15/06/2017;Altri servizi diversi n.a.c.;163,53;IVA - Liquidazione Fattura Nr. 10 del 28/04/2017 - servizio attacchinaggio manifesti marzo cig Z371CAF4A1 IMPEGNO SPESA PPAA;2005;1;3;2;99;999
MEDICEA  ASSOCIAZIONE CULTURALE;15/06/2017;Altri servizi diversi n.a.c.;743,33;Liquidazione Fattura Nr. 10 del 28/04/2017 - servizio attacchinaggio manifesti marzo cig Z371CAF4A1 IMPEGNO SPESA PPAA;2005;1;3;2;99;999
V.A.B. VIGILANZA ANTICENDI BOSCHIVI;15/06/2017;Altri servizi diversi n.a.c.;6.000,00;Liquidazione Fattura Nr. FATTPA 2_17  del 19/05/2017 - SERVIZIO DI ATTIVITA' INTEGRATIVE E DI SUPPORTO_DET. AFFIDAMENTO VAB N. 245/2015_ ACCONTO 2017;2001;1;3;2;99;999
FIRENZE PUBBLICITA' S.N.C.;27/06/2017;Altri servizi diversi n.a.c.;93,06;IVA LIQUIDAZIONE FATTURA NR. 4/2017/A /00  DEL 26/01/2017 - FORNITURA GENERICA;2264;1;3;2;99;999
FIRENZE PUBBLICITA' S.N.C.;27/06/2017;Altri servizi diversi n.a.c.;423,00;Liquidazione Fattura Nr. 4/2017/a /00 del 26/01/2017 - Fornitura generica;2264;1;3;2;99;999
MEDICEA  ASSOCIAZIONE CULTURALE;28/06/2017;Altri servizi diversi n.a.c.;163,53;IVA - Liquidazione Fattura Nr. 13 del 31/05/2017 - servizio attacchinaggio manifesti cig Z371CAF4A1 IMPEGNO SPESA PPAA;2269;1;3;2;99;999
MEDICEA  ASSOCIAZIONE CULTURALE;28/06/2017;Altri servizi diversi n.a.c.;743,33;Liquidazione Fattura Nr. 13 del 31/05/2017 - servizio attacchinaggio manifesti cig Z371CAF4A1 IMPEGNO SPESA PPAA;2269;1;3;2;99;999
CONSORZIO STRADALE DI GABBIALLA C/O STUDIO OPUS;20/04/2017;Altri trasferimenti a famiglie n.a.c.;3.000,00;contributo anno 2017;1394;1;4;2;5;999
CONSORZIO STRADALE GRAGNANI C/O STUDIO OPUS;20/04/2017;Altri trasferimenti a famiglie n.a.c.;758,00;contributo anno 2017;1394;1;4;2;5;999
VAR GROUP S.P.A. CON SOCIO UNICO;09/05/2017;Attrezzature n.a.c.;1.795,20;IVA-Liquidazione Fattura Nr. P/62  del 28/02/2017 (di cui Split per euro 1.795,20) - Acquisto kit lavagne interattive multimediali (L.I.M.) per le scuole secondarie di primo grado ;1617;2;2;1;5;999
VAR GROUP S.P.A. CON SOCIO UNICO;09/05/2017;Attrezzature n.a.c.;8.160,00;Liquidazione Fattura Nr. P/62  del 28/02/2017 - Acquisto kit lavagne interattive multimediali (L.I.M.) per le scuole secondarie di primo grado ;1617;2;2;1;5;999
RC RADIOCOMUNICAZIONI S.R.L.;16/05/2017;Attrezzature n.a.c.;1.991,88;IVA Liquidazione Fattura Nr. 21-E  del 13/03/2017 (di cui Split per euro 1.991,88) - FORNITURA E POSA IN OPERA DI MATERIALE PER L'AMPLIAMENTO E LA SISTEMAZIONE DEL SISTEMA DI VIDEO SORVEGLIANZA URBANO ESISTENTE - LOTTO 1 ANCHIANO - MEPA;1709;2;2;1;5;999
RC RADIOCOMUNICAZIONI S.R.L.;16/05/2017;Attrezzature n.a.c.;9.054,00;Liquidazione Fattura Nr. 21-E  del 13/03/2017 - FORNITURA E POSA IN OPERA DI MATERIALE PER L'AMPLIAMENTO E LA SISTEMAZIONE DEL SISTEMA DI VIDEO SORVEGLIANZA URBANO ESISTENTE - LOTTO 1 ANCHIANO - MEPA;1709;2;2;1;5;999
PACI SRL;29/05/2017;Attrezzature n.a.c.;180,33;IVA-Liquidazione Fattura Nr. 00027/2017  del 31/03/2017 - ACQUISTI ARREDI SCOLASTICI E ATTREZZATURE PER LA PRIMA INFANZIA ;1889;2;2;1;5;999
PACI SRL;29/05/2017;Attrezzature n.a.c.;819,67;Liquidazione Fattura Nr. 00027/2017  del 31/03/2017 - ACQUISTI ARREDI SCOLASTICI E ATTREZZATURE PER LA PRIMA INFANZIA ;1889;2;2;1;5;999
L'ELETTRICA S.P.A.;15/06/2017;Attrezzature n.a.c.;305,15;"IVA Liquidazione Fattura Nr. 0000075PA del 28/02/2017 - *D.D.T. n.     4085/B21 Del 24.02.17 ** Riferim.N.RdO 1466269          Del 19.01.17  Operazione soggetta alla ""Scissione Pagamenti"" Art.17-ter,";2016;2;2;1;5;999
L'ELETTRICA S.P.A.;15/06/2017;Attrezzature n.a.c.;17,36;"IVA Liquidazione Fattura Nr. 0000076PA  del 28/02/2017 (di cui Split per euro 17,36) - *D.D.T. n.     4947/S21 Del 25.02.17 ** Riferim.N.RdO          Del 19.01.17 --------------------------------------------- Operazione soggetta alla ""S";2016;2;2;1;5;999
L'ELETTRICA S.P.A.;15/06/2017;Attrezzature n.a.c.;19,84;"IVA Liquidazione Fattura Nr. 0000126PA del 28/02/2017 - *D.D.T. n.     4310/B21 Del 28.02.17 ** Riferim.N.RdO 1466269          Del 19.01.17  Operazione soggetta alla ""Scissione Pagamenti"" Art.17-ter,";2016;2;2;1;5;999
L'ELETTRICA S.P.A.;15/06/2017;Attrezzature n.a.c.;52,03;"IVA Liquidazione Fattura Nr. 0000140PA  del 31/03/2017 -   5617/B21 Del 16.03.17 ** Riferim.N.RdO 1466269          Del 19.01.17 --------------------------------------------- Operazione soggetta alla ""Scissione Pagamenti"" Art.17-ter";2016;2;2;1;5;999
L'ELETTRICA S.P.A.;15/06/2017;Attrezzature n.a.c.;1.387,04;"Liquidazione Fattura Nr. 0000075PA del 28/02/2017 - *D.D.T. n.     4085/B21 Del 24.02.17 ** Riferim.N.RdO 1466269          Del 19.01.17  Operazione soggetta alla ""Scissione Pagamenti"" Art.17-ter,";2016;2;2;1;5;999
L'ELETTRICA S.P.A.;15/06/2017;Attrezzature n.a.c.;78,89;"Liquidazione Fattura Nr. 0000076PA  del 28/02/2017 - *D.D.T. n.     4947/S21 Del 25.02.17 ** Riferim.N.RdO 1466269          Del 19.01.17 --------------------------------------------- Operazione soggetta alla ""Scissione Pagamenti"" Art.17-ter";2016;2;2;1;5;999
L'ELETTRICA S.P.A.;15/06/2017;Attrezzature n.a.c.;90,16;"Liquidazione Fattura Nr. 0000126PA del 28/02/2017 - *D.D.T. n.     4310/B21 Del 28.02.17 ** Riferim.N.RdO 1466269          Del 19.01.17 --------------------------------------------- Operazione soggetta alla ""Scissione Pagamenti"" Art.17-ter,";2016;2;2;1;5;999
L'ELETTRICA S.P.A.;15/06/2017;Attrezzature n.a.c.;236,50;"Liquidazione Fattura Nr. 0000140PA  del 31/03/2017 - *D.D.T. n.     5617/B21 Del 16.03.17 ** Riferim.N.RdO 1466269          Del 19.01.17 --------------------------------------------- Operazione soggetta alla ""Scissione Pagamenti"" Art.17-ter";2016;2;2;1;5;999
SINTESI S.R.L. - SISTEMI INTEGRATI PER UFFICIO;15/06/2017;Attrezzature n.a.c.;726,00;IVA Liquidazione Fattura Nr. 3/E  del 31/01/2017 - ACQUISTO MATERIALE ELETTRONICO PER MUSEO LEONARDIANO E CASA NATALE DI LEONARDO;2016;2;2;1;5;999
SINTESI S.R.L. - SISTEMI INTEGRATI PER UFFICIO;15/06/2017;Attrezzature n.a.c.;3.300,00;Liquidazione Fattura Nr. 3/E del 31/01/2017 - ACQUISTO MATERIALE ELETTRONICO PER MUSEO LEONARDIANO E CASA NATALE DI LEONARDO;2016;2;2;1;5;999
MATERIALI EDILI BALDACCI DI BALDACCI RENATO E C. SNC;13/04/2017;Beni immobili n.a.c.;163,27;IVA - Liquidazione Fattura Nr. 1716  del 31/12/2016 (di cui Split per euro 163,27) - SOSTITUZIONE RETE DI PROTEZIONE CAMPO DI CALCETTO DETERMINA 302 DEL 01/12/2016;1347;2;2;1;9;999
MATERIALI EDILI BALDACCI DI BALDACCI RENATO E C. SNC;13/04/2017;Beni immobili n.a.c.;742,15;Liquidazione Fattura Nr. 1716  del 31/12/2016 - SOSTITUZIONE RETE DI PROTEZIONE CAMPO DI CALCETTO DETERMINA 302 DEL 01/12/2016;1347;2;2;1;9;999
BARRET S.R.L.;09/05/2017;Beni immobili n.a.c.;38,79;IVA - Liquidazione Fattura Nr. 9  del 27/02/2017 (di cui Split per euro 38,79) - Acquisto rete di protezione campo di calcetto - Det. 302/2016;1607;2;2;1;9;999
BARRET S.R.L.;09/05/2017;Beni immobili n.a.c.;176,31;Liquidazione Fattura Nr. 9  del 27/02/2017 - Acquisto rete di protezione campo di calcetto - Det. 302/2016;1607;2;2;1;9;999
EDIL GREEN SRL;09/05/2017;Beni immobili n.a.c.;940,50;IVA-Liquidazione Fattura Nr. FATTPA 1_17  del 07/03/2017 - Posa in opera di telefunica e pavimentazione in gomma;1608;2;2;1;9;999
EDIL GREEN SRL;09/05/2017;Beni immobili n.a.c.;4.275,00;Liquidazione Fattura Nr. FATTPA 1_17  del 07/03/2017 - Posa in opera di telefunica e pavimentazione in gomma;1608;2;2;1;9;999
GUIDONI MAURO;19/05/2017;Beni immobili n.a.c.;32,67;IVA - Liquidazione Fattura Nr. 4/PA  del 27/03/2017 (di cui Split per euro 32,67) - FORNITURA PIANTE ORNAMENTALI PER PARCO GIOCHI PIAZZA GARIBALDI _ DETERMINA A CONTRARRE E AFFIDAMENTO DITTA MAURO GUIDONI SRL;1752;2;2;1;9;999
GUIDONI MAURO;19/05/2017;Beni immobili n.a.c.;307,50;Liquidazione Fattura Nr. 4/PA  del 27/03/2017 - FORNITURA PIANTE ORNAMENTALI PER PARCO GIOCHI PIAZZA GARIBALDI _ DETERMINA A CONTRARRE E AFFIDAMENTO DITTA MAURO GUIDONI SRL;1752;2;2;1;9;999
BARSOTTINI COSTRUZIONI S.N.C. DI BARSOTTINI SILVANO & C. S.N.C.;29/05/2017;Beni immobili n.a.c.;161,20;Liquidazione Fattura Nr. 36/2017  del 05/04/2017 - Manutenzione straordinaria presso il Nido d'Infanzia in Loc. Vitolini, la Scuola d'Infanzia di Vinci e la Scuola secondaria di I grado in Loc. Sovigliana CIG Z56172A96A - SAL finale;1880;2;2;1;9;999
BARSOTTINI COSTRUZIONI S.N.C. DI BARSOTTINI SILVANO & C. S.N.C.;29/05/2017;Beni immobili n.a.c.;35,46;Liquidazione Fattura Nr. 36/2017  del 05/04/2017 (di cui Split per euro 35,46) - Manutenzione straordinaria Nido d'Infanzia in Loc. Vitolini, Scuola d'Infanzia di Vinci Scuola secondaria di I grado in Loc. Sovigliana ;1880;2;2;1;9;999
CUENTAME LIBRERIA ED ARTI VARIE DI  CAVALCA MARGHERITA;09/05/2017;Beni per attivit� di rappresentanza ;145,67;Liquidazione Fattura Nr. 000001-2017-A  del 02/03/2017 - ACQUISTO N. 13 LIBRI PER 73� ANNIVERSARIO DELLA DEPORTAZIONE NEL CAMPO DI STERMINIO DI MAUTHAUSEN ;1616;1;3;1;2;9
OASI VERDE SNC DI GIRALDI SONIA & C.;09/05/2017;Beni per attivit� di rappresentanza ;90,00;Liquidazione Fattura Nr. 000001-2017-PA  del 07/03/2017 - 07 Marzo 2017 - Acquisto n.1 corona di alloro;1616;1;3;1;2;9
TIPO-LITOGRAFIA SERBUS F.LLI SERAFINI S.N.C. DI SERAFINI SILVANO & C.;19/05/2017;Beni per attivit� di rappresentanza ;30,00;PAGAMENTO BUONO ECONOMALE NR. 200036 - ACQUISTO BIGLIETTI D DA VISITA PER IL SINDACO-ACQUISTO BIGLIETTI DA VISITA PER IL SINDACO DELL'ENTE;1742;1;3;1;2;9
OASI VERDE SNC DI GIRALDI SONIA & C.;07/06/2017;Beni per attivit� di rappresentanza ;180,00;Liquidazione Fattura Nr. 000002-2017-PA  del 10/04/2017 - Cerimonia 09 Aprile 2017 - Fornitura n.2 corone di alloro;1926;1;3;1;2;9
OASI VERDE SNC DI GIRALDI SONIA & C.;15/06/2017;Beni per attivit� di rappresentanza ;180,00;Liquidazione Fattura Nr. 000003-2017-PA  del 24/04/2017 - Cerimonia 25 Aprile 2017 - Fornitura n. 2 corone di alloro;2006;1;3;1;2;9
TOTALERG SPA;20/04/2017;Carburanti, combustibili e lubrificanti ;58,06;IVA-Liquidazione Fattura Nr. I7087878  del 28/02/2017 - Fornitura carburanti mese febbraio 2017;1388;1;3;1;2;2
TOTALERG SPA;20/04/2017;Carburanti, combustibili e lubrificanti ;122,93;IVA-Liquidazione Fattura Nr. I7087878  del 28/02/2017 - Fornitura carburanti mese febbraio 2017;1389;1;3;1;2;2
TOTALERG SPA;20/04/2017;Carburanti, combustibili e lubrificanti ;51,81;IVALiquidazione Fattura Nr. I7087878  del 28/02/2017 - Fornitura carburanti mese febbraio 2017;1387;1;3;1;2;2
TOTALERG SPA;20/04/2017;Carburanti, combustibili e lubrificanti ;235,48;Liquidazione Fattura Nr. I7087878  del 28/02/2017 - Fornitura carburanti mese febbraio 2017;1387;1;3;1;2;2
TOTALERG SPA;20/04/2017;Carburanti, combustibili e lubrificanti ;263,90;Liquidazione Fattura Nr. I7087878  del 28/02/2017 - Fornitura carburanti mese febbraio 2017;1388;1;3;1;2;2
TOTALERG SPA;20/04/2017;Carburanti, combustibili e lubrificanti ;558,79;Liquidazione Fattura Nr. I7087878  del 28/02/2017 - Fornitura carburanti mese febbraio 2017;1389;1;3;1;2;2
TOTALERG SPA;29/05/2017;Carburanti, combustibili e lubrificanti ;144,99;IVA-Liquidazione Fattura Nr. I7115551  del 31/03/2017 (di cui Split per euro 144,99) - FORNITURA DI CARBURANTE PER AUTOTRAZIONE MEDIANTE FUEL CARD E DEI SERVIZI CONNESSI PER LE PUBBLICHE AMMINISTRAZIONI - marzo 2017;1879;1;3;1;2;2
TOTALERG SPA;29/05/2017;Carburanti, combustibili e lubrificanti ;57,97;IVA-Liquidazione Fattura Nr. I7115551  del 31/03/2017 (di cui Split per euro 57,97) - FORNITURA DI CARBURANTE PER AUTOTRAZIONE MEDIANTE FUEL CARD E DEI SERVIZI CONNESSI PER LE PUBBLICHE AMMINISTRAZIONI - marzo 2017;1878;1;3;1;2;2
TOTALERG SPA;29/05/2017;Carburanti, combustibili e lubrificanti ;70,73;IVA-Liquidazione Fattura Nr. I7115551  del 31/03/2017 (di cui Split per euro 70,73) - FORNITURA DI CARBURANTE PER AUTOTRAZIONE MEDIANTE FUEL CARD E DEI SERVIZI CONNESSI PER LE PUBBLICHE AMMINISTRAZIONI - marzo 2017;1877;1;3;1;2;2
TOTALERG SPA;29/05/2017;Carburanti, combustibili e lubrificanti ;115,98;IVA-Liquidazione Fattura Nr. I7155423  del 30/04/2017 (di cui Split per euro 115,98) - FORNITURA DI CARBURANTE PER AUTOTRAZIONE MEDIANTE FUEL CARD E DEI SERVIZI CONNESSI PER LE PUBBLICHE AMMINISTRAZIONI - mese aprile 2017;1879;1;3;1;2;2
TOTALERG SPA;29/05/2017;Carburanti, combustibili e lubrificanti ;37,18;IVA-Liquidazione Fattura Nr. I7155423  del 30/04/2017 (di cui Split per euro 37,18) - FORNITURA DI CARBURANTE PER AUTOTRAZIONE MEDIANTE FUEL CARD E DEI SERVIZI CONNESSI PER LE PUBBLICHE AMMINISTRAZIONI - mese aprile 2017;1878;1;3;1;2;2
TOTALERG SPA;29/05/2017;Carburanti, combustibili e lubrificanti ;58,96;IVA-Liquidazione Fattura Nr. I7155423  del 30/04/2017 (di cui Split per euro 58,96) - FORNITURA DI CARBURANTE PER AUTOTRAZIONE MEDIANTE FUEL CARD E DEI SERVIZI CONNESSI PER LE PUBBLICHE AMMINISTRAZIONI - mese aprile 2017;1877;1;3;1;2;2
TOTALERG SPA;29/05/2017;Carburanti, combustibili e lubrificanti ;321,51;Liquidazione Fattura Nr. I7115551  del 31/03/2017 - FORNITURA DI CARBURANTE PER AUTOTRAZIONE MEDIANTE FUEL CARD E DEI SERVIZI CONNESSI PER LE PUBBLICHE AMMINISTRAZIONI - marzo 2017;1877;1;3;1;2;2
TOTALERG SPA;29/05/2017;Carburanti, combustibili e lubrificanti ;263,49;Liquidazione Fattura Nr. I7115551  del 31/03/2017 - FORNITURA DI CARBURANTE PER AUTOTRAZIONE MEDIANTE FUEL CARD E DEI SERVIZI CONNESSI PER LE PUBBLICHE AMMINISTRAZIONI - marzo 2017;1878;1;3;1;2;2
TOTALERG SPA;29/05/2017;Carburanti, combustibili e lubrificanti ;659,05;Liquidazione Fattura Nr. I7115551  del 31/03/2017 - FORNITURA DI CARBURANTE PER AUTOTRAZIONE MEDIANTE FUEL CARD E DEI SERVIZI CONNESSI PER LE PUBBLICHE AMMINISTRAZIONI - marzo 2017;1879;1;3;1;2;2
TOTALERG SPA;29/05/2017;Carburanti, combustibili e lubrificanti ;268,00;Liquidazione Fattura Nr. I7155423  del 30/04/2017 - FORNITURA DI CARBURANTE PER AUTOTRAZIONE MEDIANTE FUEL CARD E DEI SERVIZI CONNESSI PER LE PUBBLICHE AMMINISTRAZIONI - mese aprile 2017;1877;1;3;1;2;2
TOTALERG SPA;29/05/2017;Carburanti, combustibili e lubrificanti ;168,99;Liquidazione Fattura Nr. I7155423  del 30/04/2017 - FORNITURA DI CARBURANTE PER AUTOTRAZIONE MEDIANTE FUEL CARD E DEI SERVIZI CONNESSI PER LE PUBBLICHE AMMINISTRAZIONI - mese aprile 2017;1878;1;3;1;2;2
TOTALERG SPA;29/05/2017;Carburanti, combustibili e lubrificanti ;527,17;Liquidazione Fattura Nr. I7155423  del 30/04/2017 - FORNITURA DI CARBURANTE PER AUTOTRAZIONE MEDIANTE FUEL CARD E DEI SERVIZI CONNESSI PER LE PUBBLICHE AMMINISTRAZIONI - mese aprile 2017;1879;1;3;1;2;2
AZ S.A.S. DI MARINAI M. & C. CONCESSIONARIO BUFFETTI;04/04/2017;Carta, cancelleria e stampati;7,90;PAGAMENTO BUONO ECONOMALE NR. 200014 - ASSEGNAZIONE PER ACQUISTO DI CARTA MATERIALE VARIO E STAMPATI MINIMI PER UFFICIO - ACQUISTO PLANNER PER UFFICIO TURISTICO;1285;1;3;1;2;1
B & B UFFICIO SRL;04/04/2017;Carta, cancelleria e stampati;24,50;PAGAMENTO BUONO ECONOMALE NR. 200013 - ACQUISTO BENI PER LA GESTIONE DEL SERVIZIO NAVETTA - ACQUISTO N.5 BLOCCHETTI DI RICEVUTE FISCALI PICCOLE DA CONSEGNARE AGLI UTENTI;1287;1;3;1;2;1
BAZAR CINELLI DI CINELLI ILARIA E PAOLO;04/04/2017;Carta, cancelleria e stampati;8,50;PAGAMENTO BUONO ECONOMALE NR. 200011 - ASSEGNAZIONE ECONOMALE SETTORE II ACQUISTO CALCOLATRICE PER UFFICIO TURISTICO;1285;1;3;1;2;1
BAZAR CINELLI DI CINELLI ILARIA E PAOLO;04/04/2017;Carta, cancelleria e stampati;30,00;PAGAMENTO BUONO ECONOMALE NR. 200016 - ASSEGNAZIONE PER ACQUISTO DI CARTA MATERIALE VARIO E STAMPATI MINIMI PER UFFICIO ACQUISTO CALCOLATRICE PER UFFICIO RAGIONERIA ;1285;1;3;1;2;1
BAZAR CINELLI DI CINELLI ILARIA E PAOLO;04/04/2017;Carta, cancelleria e stampati;5,00;PAGAMENTO BUONO ECONOMALE NR. 200020 - ASSEGNAZIONE PER ACQUISTO DI CARTA MATERIALE VARIO E STAMPATI MINIMI PER UFFICIO - ACQUISTO SCANDENZARIO PER L'UFFICIO RAGIONERIA;1285;1;3;1;2;1
GAP S.R.L.;04/04/2017;Carta, cancelleria e stampati;7,46;PAGAMENTO BUONO ECONOMALE NR. 200017 - ASSEGNAZIONE PER ACQUISTO DI CARTA MATERIALE VARIO E STAMPATI MINIMI PER UFFICIO- ACQUISTO RIPRODUZIONE PER BIBLIOTECA LEONARDIANA;1285;1;3;1;2;1
SINTESI S.R.L. - SISTEMI INTEGRATI PER UFFICIO;04/04/2017;Carta, cancelleria e stampati;106,75;PAGAMENTO BUONO ECONOMALE NR. 200019 - ASSEGNAZIONE PER ACQUISTO DI CARTA MATERIALE VARIO E STAMPATI MINIMI PER UFFICIO-ACQUISTI CARTA A4 RICICLATA PER GLI UFFICI;1285;1;3;1;2;1
UFFICIO TECNICA S.R.L.;04/04/2017;Carta, cancelleria e stampati;64,00;PAGAMENTO BUONO ECONOMALE NR. 200018 - ACQUISTO BENI PER SERVIZIO NAVETTA TPL- ACQUISTO N.3 TIMBRI NECESSARI PER LE RICEVUTE DEL SERVIZIO NAVETTA;1287;1;3;1;2;1
GAP S.R.L.;26/04/2017;Carta, cancelleria e stampati;1,64;IVA Liquidazione Fattura Nr. FE/00016C  del 15/03/2017 (di cui Split per euro 1,64) - Scansione e file Prev. 2017;1536;1;3;1;2;1
PALAGINI PIERO E FIGLI S.P.A.;09/05/2017;Carta, cancelleria e stampati;76,51;Liquidazione Fattura Nr. 18505  del 31/10/2013 - MATERIALE PER MANUTENZIONI IDRAULICHE;1597;1;3;1;2;1
PALAGINI PIERO E FIGLI S.P.A.;09/05/2017;Carta, cancelleria e stampati;297,20;Liquidazione Fattura Nr. 4954  del 31/03/2014 - ACQUISTO MATERIALE PER  MANUTENZIONI MURARIE;1597;1;3;1;2;1
COMAR DI CATIA CORSI;16/05/2017;Carta, cancelleria e stampati;20,86;IVA Liquidazione Fattura Nr. 5/P  del 31/01/2017 (di cui Split per euro 20,86) - ACQUISTO MATERIALE DI CANCELLERIA URGENTE PER GLI UFFICI DELL'ENTE;1707;1;3;1;2;1
COMAR DI CATIA CORSI;16/05/2017;Carta, cancelleria e stampati;94,80;Liquidazione Fattura Nr. 5/P  del 31/01/2017 - ACQUISTO MATERIALE DI CANCELLERIA URGENTE PER GLI UFFICI DELL'ENTE;1707;1;3;1;2;1
MYO SPA;16/05/2017;Carta, cancelleria e stampati;122,43;IVA Liquidazione Fattura Nr. 2040/170009605  del 21/04/2017 (di cui Split per euro 122,43) - DETERMINA A CONTRARRE E DI AFFIDAMENTO PER L'ACQUISTO DI CARTA RICICLATA A4 E DI CARTA BIANCA A3 PER GLI UFFICI DELL'ENTE;1707;1;3;1;2;1
MYO SPA;16/05/2017;Carta, cancelleria e stampati;556,50;Liquidazione Fattura Nr. 2040/170009605  del 21/04/2017 - DETERMINA A CONTRARRE E DI AFFIDAMENTO PER L'ACQUISTO DI CARTA RICICLATA A4 E DI CARTA BIANCA A3 PER GLI UFFICI DELL'ENTE;1707;1;3;1;2;1
SINTESI S.R.L. - SISTEMI INTEGRATI PER UFFICIO;16/05/2017;Carta, cancelleria e stampati;55,00;IVA Liquidazione Fattura Nr. 8/E  del 17/02/2017 (di cui Split per euro 55,00) - ACQUISTO CARTA IN RISME RICICLATA FORMATO A4 PER GLI UFFICI;1707;1;3;1;2;1
SINTESI S.R.L. - SISTEMI INTEGRATI PER UFFICIO;16/05/2017;Carta, cancelleria e stampati;250,00;Liquidazione Fattura Nr. 8/E  del 17/02/2017 - ACQUISTO CARTA IN RISME RICICLATA FORMATO A4 PER GLI UFFICI;1707;1;3;1;2;1
B & B UFFICIO SRL;19/05/2017;Carta, cancelleria e stampati;42,00;PAGAMENTO BUONO ECONOMALE NR. 200032 - ACQUISTO MATERIALE URGENTE PER SERVIZII NAVETTA E TPL ACQUISTO N.10 BLOCCHETTI RICEVUTE FISCALI GENERICHE PER RILASCIO RICEVUTA AD UTENTI;1746;1;3;1;2;1
BAZAR CINELLI DI CINELLI ILARIA E PAOLO;19/05/2017;Carta, cancelleria e stampati;11,00;PAGAMENTO BUONO ECONOMALE NR. 200025 - ASSEGNAZIONE PER ACQUISTO DI CARTA MATERIALE VARIO E STAMPATI MINIMI PER UFFICIO- ACQUISTO N.1 AGENDA PER PLANNER PER LA SEGRETERIA;1743;1;3;1;2;1
BAZAR CINELLI DI CINELLI ILARIA E PAOLO;19/05/2017;Carta, cancelleria e stampati;6,00;PAGAMENTO BUONO ECONOMALE NR. 200035 - ASSEGNAZIONE PER ACQUISTO DI CARTA MATERIALE VARIO E STAMPATI MINIMI PER UFFICIO- ACQUISTO N.4 GOMME PER LAPIS;1743;1;3;1;2;1
CENTRO CARTUCCE DI COTOIA ALESSIO;19/05/2017;Carta, cancelleria e stampati;76,01;IVA Liquidazione Fattura Nr. 03  del 19/04/2017 (di cui Split per euro 76,01) - DETERMINA A CONTRARRE E DI AFFIDAMENTO PER L'ACQUISTO DI TONER RIGENERATI PER ALCUNE STAMPANTI DEGLI UFFICI DELL'ENTE;1754;1;3;1;2;1
CENTRO CARTUCCE DI COTOIA ALESSIO;19/05/2017;Carta, cancelleria e stampati;345,50;Liquidazione Fattura Nr. 03  del 19/04/2017 - DETERMINA A CONTRARRE E DI AFFIDAMENTO PER L'ACQUISTO DI TONER RIGENERATI PER ALCUNE STAMPANTI DEGLI UFFICI DELL'ENTE;1754;1;3;1;2;1
EDICOLA CARTOLERIA STADIO SAS DI MALVOLTI G.S. E C.;19/05/2017;Carta, cancelleria e stampati;6,90;PAGAMENTO BUONO ECONOMALE NR. 200031 - ASSEGNAZIONE PER ACQUISTO DI CARTA MATERIALE VARIO E STAMPATI MINIMI PER UFFICIO ACQUISTO PUBBLICAZIONE SU LEONARDO;1743;1;3;1;2;1
UFFICIO TECNICA S.R.L.;19/05/2017;Carta, cancelleria e stampati;18,00;PAGAMENTO BUONO ECONOMALE NR. 200023 - ASSEGNAZIONE PER ACQUISTO DI CARTA MATERIALE VARIO E STAMPATI MINIMI PER UFFICIO - EFFETTUATE N.6 RILEGATURE PER ELABORATI DELL'UFFICIO TECNICO;1743;1;3;1;2;1
UFFICIO TECNICA S.R.L.;19/05/2017;Carta, cancelleria e stampati;3,00;PAGAMENTO BUONO ECONOMALE NR. 200024 - ASSEGNAZIONE PER ACQUISTO DI CARTA MATERIALE VARIO E STAMPATI MINIMI PER UFFICIO - RILEGATURA N. 1 ELABORATO UFFICIO URBANISTICA;1743;1;3;1;2;1
ALREDY TOSCANA SOC. COOP.;15/06/2017;Carta, cancelleria e stampati;61,60;IVA Liquidazione Fattura Nr. 294  del 30/04/2017 (di cui Split per euro 61,60) - ACQUISTO BOLLETTINI TOSAP ;1996;1;3;1;2;1
ALREDY TOSCANA SOC. COOP.;15/06/2017;Carta, cancelleria e stampati;280,00;Liquidazione Fattura Nr. 294  del 30/04/2017 - ACQUISTO BOLLETTINI TOSAP ;1996;1;3;1;2;1
ETRURIA P.A. SRL;15/06/2017;Carta, cancelleria e stampati;285,12;IVA - Liquidazione Fattura Nr. 875/00000  del 30/04/2017 (di cui Split per euro 285,12) - AFFIDAMENTO FORNITURA DI N. 130.000 BIGLIETTI PER LE CASSE DELLE BIGLIETTERIE DEL MUSEO;2012;1;3;1;2;1
ETRURIA P.A. SRL;15/06/2017;Carta, cancelleria e stampati;17,09;IVA Liquidazione Fattura Nr. 653/00000  del 31/03/2017 (di cui Split per euro 17,09) - Acquisto economale faldoni archivio varie misure;1996;1;3;1;2;1
ETRURIA P.A. SRL;15/06/2017;Carta, cancelleria e stampati;1.296,00;Liquidazione Fattura Nr. 875/00000  del 30/04/2017 - AFFIDAMENTO FORNITURA DI N. 130.000 BIGLIETTI PER LE CASSE DELLE BIGLIETTERIE DEL MUSEO LEONARDIANO DI VINCI E DELLA CASA NATALE DI LEONARDO AD ANCHIANO (RDO MEPA) - IMPEGNO DI SPESA;2012;1;3;1;2;1
MAGGIOLI S.P.A.;15/06/2017;Carta, cancelleria e stampati;25,74;IVA - Liquidazione Fattura Nr. 0002112625 del 31/03/2017 - FORNITURA MATERIALE VARIO PER UFFICIO ANAGRAFE E STATO CIVILE;2008;1;3;1;2;1
MAGGIOLI S.P.A.;15/06/2017;Carta, cancelleria e stampati;117,00;Liquidazione Fattura Nr. 0002112625 del 31/03/2017 - FORNITURA MATERIALE VARIO PER UFFICIO ANAGRAFE E STATO CIVILE;2008;1;3;1;2;1
BAZAR CINELLI DI CINELLI ILARIA E PAOLO;27/06/2017;Carta, cancelleria e stampati;5,00;PAGAMENTO BUONO ECONOMALE NR. 200040 - ASSEGNAZIONE PER ACQUISTO DI CARTA MATERIALE VARIO E STAMPATI MINIMI PER UFFICIO - ACQUISTO QUADERNO FORMATO A4 PER REGISTRAZIONE ORDINI DEL GIORNO ;2251;1;3;1;2;1
BAZAR CINELLI DI CINELLI ILARIA E PAOLO;27/06/2017;Carta, cancelleria e stampati;17,50;PAGAMENTO BUONO ECONOMALE NR. 200041 - ACQUISTO DI FALDONI DA ARCHIVIO VARIE MISURE ACQUISTO N.5 FALDONI PER ARCHIVIAZIONE PRATICHE;2251;1;3;1;2;1
ETRURIA P.A. SRL;27/06/2017;Carta, cancelleria e stampati;77,70;PAGAMENTO BUONO ECONOMALE NR. 200042 - ACQUISTO DI FALDONI DA ARCHIVIO VARIE MISURE ACQUISTO FALDONI VARIE MISURE PER GLI UFFICI;2251;1;3;1;2;1
UFFICIO TECNICA S.R.L.;27/06/2017;Carta, cancelleria e stampati;13,45;PAGAMENTO BUONO ECONOMALE NR. 200039 - ASSEGNAZIONE PER ACQUISTO DI CARTA MATERIALE VARIO E STAMPATI MINIMI PER UFFICIO - ACQUISTO TIMBRO COMPLETO NUOVA STRUTTURA RESPONSABILE AFFARI GENERALI;2251;1;3;1;2;1
STUDIO MANNUCCI DOTTORI COMMERCIALISTI ASSOCIATI;05/05/2017;Compensi agli organi istituzionali di revisione, di controllo ed altri incarichi istituzionali dell'amministrazione;9.777,73;LIQUIDAZIONE FATTURA NR. 5/01  DEL 01/03/2017 - COMPENSO REVISORE UNICO DEI CONTI DOTT.SSA MARTINA CAPANNI PERIODO 01.01.- 31.12.16 COME DA DELIBERAZIONE DEL CONSIGLIO COMUNALE N. 80 DEL 19.12.2014;1594;1;3;2;1;8
STUDIO MANNUCCI DOTTORI COMMERCIALISTI ASSOCIATI;05/05/2017;Compensi agli organi istituzionali di revisione, di controllo ed altri incarichi istituzionali dell'amministrazione;38,11;LIQUIDAZIONE FATTURA NR. 5/01  DEL 01/03/2017 - COMPENSO REVISORE UNICO DEI CONTI DOTT.SSA MARTINA CAPANNI PERIODO 01.01.- 31.12.16 COME DA DELIBERAZIONE DEL CONSIGLIO COMUNALE N. 80 DEL 19.12.2014;1595;1;3;2;1;8
CRESCIOLI  CECILIA;19/05/2017;Compensi agli organi istituzionali di revisione, di controllo ed altri incarichi istituzionali dell'amministrazione;2.000,00;LIQUIDAZIONE FATTURA NR. 10845  DEL 23/01/2017 - COMPENSO PER COMPONENTE NUCLEO DI VALUTAZIONE ANNO 2015;1753;1;3;2;1;8
ARCA - COOPERATIVA SOCIALE A R.L.;20/04/2017;Contratti di servizio di asilo nido;1.403,39;IVA-Liquidazione Fattura Nr. E-226  del 22/02/2017 - GESTIONE SERVIZIO EDUCATIVO NIDO COMUNALE GENNAIO 2017;1379;1;3;2;15;10
ARCA - COOPERATIVA SOCIALE A R.L.;20/04/2017;Contratti di servizio di asilo nido;202,50;IVA-Liquidazione Fattura Nr. E-227  del 22/02/2017 (di cui Split per euro 202,50) - GESTIONE SERVIZIO REFEZIONE NIDO COMUNALE GENNAIO 2017;1379;1;3;2;15;10
ARCA - COOPERATIVA SOCIALE A R.L.;20/04/2017;Contratti di servizio di asilo nido;35.084,67;Liquidazione Fattura Nr. E-226  del 22/02/2017 - GESTIONE SERVIZIO EDUCATIVO NIDO COMUNALE GENNAIO 2017;1379;1;3;2;15;10
ARCA - COOPERATIVA SOCIALE A R.L.;20/04/2017;Contratti di servizio di asilo nido;5.062,57;Liquidazione Fattura Nr. E-227  del 22/02/2017 - GESTIONE SERVIZIO REFEZIONE NIDO COMUNALE GENNAIO 2017;1379;1;3;2;15;10
ARCA - COOPERATIVA SOCIALE A R.L.;16/05/2017;Contratti di servizio di asilo nido;1.403,39;IVA-Liquidazione Fattura Nr. E-317  del 15/03/2017 (di cui Split per euro 1.403,39) - SERVIZIO EDUCATIVO NIDO COMUNALE MESE DI FEBBRAIO 2017;1720;1;3;2;15;10
ARCA - COOPERATIVA SOCIALE A R.L.;16/05/2017;Contratti di servizio di asilo nido;202,50;IVA-Liquidazione Fattura Nr. E-318  del 15/03/2017 (di cui Split per euro 202,50) - GESTIONE SERVIZIO REFEZIONE MESE DI FEBBRAIO 2017;1720;1;3;2;15;10
ARCA - COOPERATIVA SOCIALE A R.L.;16/05/2017;Contratti di servizio di asilo nido;35.084,67;Liquidazione Fattura Nr. E-317  del 15/03/2017 - SERVIZIO EDUCATIVO NIDO COMUNALE MESE DI FEBBRAIO 2017;1720;1;3;2;15;10
ARCA - COOPERATIVA SOCIALE A R.L.;16/05/2017;Contratti di servizio di asilo nido;5.062,57;Liquidazione Fattura Nr. E-318  del 15/03/2017 - GESTIONE SERVIZIO REFEZIONE MESE DI FEBBRAIO 2017;1720;1;3;2;15;10
ARCA - COOPERATIVA SOCIALE A R.L.;07/06/2017;Contratti di servizio di asilo nido;1.403,39;IVA-Liquidazione Fattura Nr. E-454  del 13/04/2017 (di cui Split per euro 1.403,39) - GESTIONE SERVIZIO EDUCATIVO NIDO MESE DI MARZO 2017;1936;1;3;2;15;10
ARCA - COOPERATIVA SOCIALE A R.L.;07/06/2017;Contratti di servizio di asilo nido;202,50;IVA-Liquidazione Fattura Nr. E-455  del 13/04/2017 (di cui Split per euro 202,50) - GESTIONE SERVIZIO REFEZIONE NIDO MESE DI MARZO 2017;1936;1;3;2;15;10
ARCA - COOPERATIVA SOCIALE A R.L.;07/06/2017;Contratti di servizio di asilo nido;35.084,67;Liquidazione Fattura Nr. E-454  del 13/04/2017 - GESTIONE SERVIZIO EDUCATIVO NIDO MESE DI MARZO 2017;1936;1;3;2;15;10
ARCA - COOPERATIVA SOCIALE A R.L.;07/06/2017;Contratti di servizio di asilo nido;5.062,57;Liquidazione Fattura Nr. E-455  del 13/04/2017 - GESTIONE SERVIZIO REFEZIONE NIDO MESE DI MARZO 2017;1936;1;3;2;15;10
EREDI LEPORATTI S.A.S.;26/04/2017;Contratti di servizio di trasporto pubblico;224,60;IVA Liquidazione Fattura Nr. 2/E  del 28/02/2017 (di cui Split per euro 224,60) - FATTURA TPL FEBBRAIO 2017;1527;1;3;2;15;1
EREDI LEPORATTI S.A.S.;26/04/2017;Contratti di servizio di trasporto pubblico;2.245,97;Liquidazione Fattura Nr. 2/E  del 28/02/2017 - FATTURA TPL FEBBRAIO 2017;1527;1;3;2;15;1
EREDI LEPORATTI S.A.S.;16/05/2017;Contratti di servizio di trasporto pubblico;224,60;IVA Liquidazione Fattura Nr. 1/EL  del 01/02/2017 (di cui Split per euro 224,60) - FATTURA TPL MENSLITA' GENNAIO 2017;1719;1;3;2;15;1
EREDI LEPORATTI S.A.S.;16/05/2017;Contratti di servizio di trasporto pubblico;2.245,96;Liquidazione Fattura Nr. 1/EL  del 01/02/2017 - FATTURA TPL MENSLITA' GENNAIO 2017;1719;1;3;2;15;1
EREDI LEPORATTI S.A.S.;29/05/2017;Contratti di servizio di trasporto pubblico;224,60;IVA Liquidazione Fattura Nr. 3/E  del 02/04/2017 (di cui Split per euro 224,60) - FATTURA TPL MENSLITA' MARZO 2017;1885;1;3;2;15;1
EREDI LEPORATTI S.A.S.;29/05/2017;Contratti di servizio di trasporto pubblico;2.245,96;Liquidazione Fattura Nr. 3/E  del 02/04/2017 - FATTURA TPL MENSLITA' MARZO 2017;1885;1;3;2;15;1
"PENSIONE PER CANI E GATTI ""CERTOSA"" S.R.L.";09/05/2017;Contratti di servizio per la lotta al randagismo ;374,44;IVA Liquidazione Fattura Nr. FATTPA 19_17  del 08/03/2017 (di cui Split per euro 374,44) - AGGIUDIC DEF ED EFFICACE DELL'APPALTO DEL SERVIZIO DI RICOVERO, CUSTODIA, MANTENIMENTO E CURA DI CANI ABBANDONATI E FERITI AI SENSI DELLA LE;1615;1;3;2;15;11
"PENSIONE PER CANI E GATTI ""CERTOSA"" S.R.L.";09/05/2017;Contratti di servizio per la lotta al randagismo ;1.702,00;Liquidazione Fattura Nr. FATTPA 19_17  del 08/03/2017 - AGGIUDICAZIONE DEFINITIVA ED EFFICACE DELL'APPALTO DEL SERVIZIO DI RICOVERO, CUSTODIA, MANTENIMENTO E CURA DI CANI ABBANDONATI E FERITI AI SENSI DELLA LEGGE REGIONALE TOSCANA N. 59 DEL;1615;1;3;2;15;11
PUBLIAMBIENTE S.P.A.;27/04/2017;Contratti di servizio per la raccolta rifiuti;18.077,26;IVA-LIQUIDAZIONE FATTURA NR. V-FTE-2016-000281  DEL 13/10/2016 (DI CUI SPLIT PER EURO 18.077,26) - SERVIZIO I.U.SETTEMBRE 2016;1541;1;3;2;15;4
PUBLIAMBIENTE S.P.A.;27/04/2017;Contratti di servizio per la raccolta rifiuti;180.772,56;LIQUIDAZIONE FATTURA NR. V-FTE-2016-000281  DEL 13/10/2016 - SERVIZIO I.U.SETTEMBRE 2016;1541;1;3;2;15;4
PUBLIAMBIENTE S.P.A.;05/05/2017;Contratti di servizio per la raccolta rifiuti;18.077,26;IVA-Liquidazione Fattura Nr. V-FTE-2016-000319  del 08/11/2016 (di cui Split per euro 18.077,26) - SERVIZIO I.U.OTTOBRE 2016;1593;1;3;2;15;4
PUBLIAMBIENTE S.P.A.;05/05/2017;Contratti di servizio per la raccolta rifiuti;18.077,26;IVA-Liquidazione Fattura Nr. V-FTE-2016-000357  del 05/12/2016 (di cui Split per euro 18.077,26) - SERVIZIO I.U.NOVEMBRE 2016;1593;1;3;2;15;4
PUBLIAMBIENTE S.P.A.;05/05/2017;Contratti di servizio per la raccolta rifiuti;12.481,70;IVA-Liquidazione Fattura Nr. V-FTE-2016-000390  del 28/12/2016 - SERVIZIO I.U.DICEMBRE 2016;1593;1;3;2;15;4
PUBLIAMBIENTE S.P.A.;05/05/2017;Contratti di servizio per la raccolta rifiuti;5.595,55;IVALiquidazione Fattura Nr. V-FTE-2016-000390  del 28/12/2016 - SERVIZIO I.U.DICEMBRE 2016;1593;1;3;2;15;4
PUBLIAMBIENTE S.P.A.;05/05/2017;Contratti di servizio per la raccolta rifiuti;180.772,56;Liquidazione Fattura Nr. V-FTE-2016-000319  del 08/11/2016 - SERVIZIO I.U.OTTOBRE 2016;1593;1;3;2;15;4
PUBLIAMBIENTE S.P.A.;05/05/2017;Contratti di servizio per la raccolta rifiuti;180.772,56;Liquidazione Fattura Nr. V-FTE-2016-000357  del 05/12/2016 - SERVIZIO I.U.NOVEMBRE 2016;1593;1;3;2;15;4
PUBLIAMBIENTE S.P.A.;05/05/2017;Contratti di servizio per la raccolta rifiuti;180.772,47;Liquidazione Fattura Nr. V-FTE-2016-000390  del 28/12/2016 - SERVIZIO I.U.DICEMBRE 2016;1593;1;3;2;15;4
CIR FOOD S.C. DIVISIONE EUDANIA;14/04/2017;Contratti di servizio per le mense scolastiche;893,07;IVA Liquid. Fattura Nr. 5200002488  del 31/01/2017 al netto di Nota: N. 5200002487 del 31/01/2017 di 94,03 (di cui Split per euro 896,69) - Trattenute DPR RIT 0,5 % ART. 4 C.3 DPR 207/2010 di 112,65- SERVIZIO REFEZIONE SCOLASTICA MESE DI G ;1356;1;3;2;15;6
CIR FOOD S.C. DIVISIONE EUDANIA;14/04/2017;Contratti di servizio per le mense scolastiche;22.326,72;Liquidazione Fattura Nr. 5200002488  del 31/01/2017 al netto di Nota: N. 5200002487 del 31/01/2017 di 94,03 - Trattenute DPR RIT 0,5 % ART. 4 C.3 DPR 207/2010 di 112,65- SERVIZIO REFEZIONE SCOLASTICA MESE DI GENNAIO 2017;1356;1;3;2;15;6
CIR FOOD S.C. DIVISIONE EUDANIA;16/05/2017;Contratti di servizio per le mense scolastiche;1.054,31;IVA-Liquidazione Fattura Nr. 5200006878  del 15/03/2017 (di cui Split per euro 1.054,31) - SERVIZIO REFEZIONE SCOLASTICA MESE DI FEBBRAIO 2017;1718;1;3;2;15;6
CIR FOOD S.C. DIVISIONE EUDANIA;16/05/2017;Contratti di servizio per le mense scolastiche;26.357,63;Liquidazione Fattura Nr. 5200006878  del 15/03/2017 - SERVIZIO REFEZIONE SCOLASTICA MESE DI FEBBRAIO 2017;1718;1;3;2;15;6
CIR FOOD S.C. DIVISIONE EUDANIA;07/06/2017;Contratti di servizio per le mense scolastiche;1.185,12;IVA-Liquidazione Fattura Nr. 5200008145  del 31/03/2017 (di cui Split per euro 1.185,12) - SERVIZIO REFEZIONE  SCOLASTICA  MESE DI MARZO 2017;1935;1;3;2;15;6
CIR FOOD S.C. DIVISIONE EUDANIA;07/06/2017;Contratti di servizio per le mense scolastiche;29.627,94;Liquidazione Fattura Nr. 5200008145  del 31/03/2017 - SERVIZIO REFEZIONE  SCOLASTICA  MESE DI MARZO 2017;1935;1;3;2;15;6
ENERGRID S.P.A.;06/04/2017;Energia elettrica;3.405,48;IVA-Liqu. Fattura Nr. 174007948  del 11/03/2017 (di cui Split per euro 3.405,48) - FORNITURA ENERGIA ELETTRICA PER P.I. FEBBRAIO 2017 Fattura Nr. 174007948 del 11-03-2017;1290;1;3;2;5;4
ENERGRID S.P.A.;06/04/2017;Energia elettrica;15.479,46;Liquidazione Fattura Nr. 174007948  del 11/03/2017 - FORNITURA ENERGIA ELETTRICA PER P.I. FEBBRAIO 2017;1290;1;3;2;5;4
EDISON ENERGIA S.P.A.;13/04/2017;Energia elettrica;264,72;IVA-Liquidazione Fattura Nr. 5750395235  del 13/03/2017 (di cui Split per euro 264,72) - FORNITURA ENERGIA ELETTRICA PALAZZINA UZIELLI MESE DI FEBBRAIO 2017;1318;1;3;2;5;4
EDISON ENERGIA S.P.A.;13/04/2017;Energia elettrica;226,34;IVA-Liquidazione Fattura Nr. 5750395529  del 13/03/2017 (di cui Split per euro 226,34) - FORNITURA ENERGIA ELETTRICA MUSEO LEONARDIANO MESE DI FEBBRAIO 2017;1318;1;3;2;5;4
EDISON ENERGIA S.P.A.;13/04/2017;Energia elettrica;216,72;IVA-Liquidazione Fattura Nr. 5750395601  del 13/03/2017 (di cui Split per euro 216,72) - FORNITURA ENERGIA ELETTRICA EDIFICIO COMUNALE MESE DI FEBBRAIO 2017;1312;1;3;2;5;4
EDISON ENERGIA S.P.A.;13/04/2017;Energia elettrica;193,01;IVA-Liquidazione Fattura Nr. 5750395825  del 13/03/2017 (di cui Split per euro 193,01) - FORNITURA ENERGIA ELETTRICA SCUOLA SECONDARIA DI 1� GRADO DI SOVIGLIANA MESE DI FEBBRAIO 2017;1316;1;3;2;5;4
EDISON ENERGIA S.P.A.;13/04/2017;Energia elettrica;95,30;IVA-Liquidazione Fattura Nr. 5750395850  del 13/03/2017 (di cui Split per euro 95,30) - FORNITURA ENERGIA ELETTRICA SCUOLA ELEMENTARE E SECONDARIA DI 1� GRADO DI VINCI MESE DI FEBBRAIO 2017;1315;1;3;2;5;4
EDISON ENERGIA S.P.A.;13/04/2017;Energia elettrica;95,30;IVA-Liquidazione Fattura Nr. 5750395850  del 13/03/2017 (di cui Split per euro 95,30) - FORNITURA ENERGIA ELETTRICA SCUOLA ELEMENTARE E SECONDARIA DI 1� GRADO DI VINCI MESE DI FEBBRAIO 2017;1316;1;3;2;5;4
EDISON ENERGIA S.P.A.;13/04/2017;Energia elettrica;165,94;IVA-Liquidazione Fattura Nr. 5750396151  del 13/03/2017 (di cui Split per euro 165,94) - FORNITURA ENERGIA ELETTRICA SCUOLA ELEMENTARE DI SPICCHIO MESE DI FEBBRAIO 2017;1315;1;3;2;5;4
EDISON ENERGIA S.P.A.;13/04/2017;Energia elettrica;127,61;IVA-Liquidazione Fattura Nr. 5750396668  del 13/03/2017 (di cui Split per euro 127,61) - FORNITURA ENERGIA ELETTRICA SCUOLA INFANZIA SOVIGLIANA MESE DI FEBBRAIO 2017;1314;1;3;2;5;4
EDISON ENERGIA S.P.A.;13/04/2017;Energia elettrica;75,38;IVA-Liquidazione Fattura Nr. 5750396699  del 13/03/2017 (di cui Split per euro 125,64) - FORNITURA ENERGIA ELETTRICA PALASPORT MESE DI FEBBRAIO 2017;1320;1;3;2;5;4
EDISON ENERGIA S.P.A.;13/04/2017;Energia elettrica;50,26;IVA-Liquidazione Fattura Nr. 5750396699  del 13/03/2017 (di cui Split per euro 50,26) - FORNITURA ENERGIA ELETTRICA PALASPORT MESE DI FEBBRAIO 2017;1320;1;3;2;5;4
EDISON ENERGIA S.P.A.;13/04/2017;Energia elettrica;117,85;IVA-Liquidazione Fattura Nr. 5750396886  del 13/03/2017 (di cui Split per euro 117,85) - FORNITURA ENERGIA ELETTRICA BIBLIOTECA  MESE DI FEBBRAIO 2017;1317;1;3;2;5;4
EDISON ENERGIA S.P.A.;13/04/2017;Energia elettrica;98,71;IVA-Liquidazione Fattura Nr. 5750397325  del 13/03/2017 (di cui Split per euro 98,71) - FORNITURA ENERGIA ELETTRICA TEATRO MISERICORDIA MESE DI FEBBRAIO 2017;1319;1;3;2;5;4
EDISON ENERGIA S.P.A.;13/04/2017;Energia elettrica;93,22;IVA-Liquidazione Fattura Nr. 5750397458  del 13/03/2017 (di cui Split per euro 93,22) - FORNITURA ENERGIA ELETTRICA RESIDENZA PER ANZIANI MESE DI FEBBRAIO 2017;1326;1;3;2;5;4
EDISON ENERGIA S.P.A.;13/04/2017;Energia elettrica;86,25;IVA-Liquidazione Fattura Nr. 5750397663  del 13/03/2017 (di cui Split per euro 86,25) - FORNITURA ENERGIA ELETTRICA CASA NATALE LEONARDO MESE DI FEBBRAIO 2017;1318;1;3;2;5;4
EDISON ENERGIA S.P.A.;13/04/2017;Energia elettrica;84,28;IVA-Liquidazione Fattura Nr. 5750397757  del 13/03/2017 (di cui Split per euro 84,28) - FORNITURA ENERGIA ELETTRICA SCUOLA INFANZIA VINCI  MESE DI FEBBRAIO 2017;1314;1;3;2;5;4
EDISON ENERGIA S.P.A.;13/04/2017;Energia elettrica;74,53;IVA-Liquidazione Fattura Nr. 5750398153  del 13/03/2017 (di cui Split per euro 74,53) - FORNITURA ENERGIA ELETTRICA MAGAZZINO COMUNALE MESE DI FEBBRAIO 2017;1312;1;3;2;5;4
EDISON ENERGIA S.P.A.;13/04/2017;Energia elettrica;73,79;IVA-Liquidazione Fattura Nr. 5750398184  del 13/03/2017 (di cui Split per euro 73,79) - FORNITURA ENERGIA ELETTRICA NIDO COMUNALE MESE DI FEBBRAIO 2017;1324;1;3;2;5;4
EDISON ENERGIA S.P.A.;13/04/2017;Energia elettrica;70,71;IVA-Liquidazione Fattura Nr. 5750398298  del 13/03/2017 (di cui Split per euro 70,71) - FORNITURA ENERGIA ELETTRICA VILLA REGHINI MESE DI FEBBRAIO 2017;1325;1;3;2;5;4
EDISON ENERGIA S.P.A.;13/04/2017;Energia elettrica;62,99;IVA-Liquidazione Fattura Nr. 5750398647  del 13/03/2017 (di cui Split per euro 62,99) - FORNITURA ENERGIA ELETTRICA UFFICI COMUNALI VIA BATTISTI MESE DI FEBBRAIO 2017;1312;1;3;2;5;4
EDISON ENERGIA S.P.A.;13/04/2017;Energia elettrica;51,09;IVA-Liquidazione Fattura Nr. 5750399198  del 13/03/2017 (di cui Split per euro 51,09) - FORNITURA ENERGIA ELETTRICA URP VIA FUCINI MESE DI FEBBRAIO 2017;1313;1;3;2;5;4
EDISON ENERGIA S.P.A.;13/04/2017;Energia elettrica;42,74;IVA-Liquidazione Fattura Nr. 5750399814  del 13/03/2017 (di cui Split per euro 42,74) - FORNITURA ENERGIA ELETTRICA UFFICIO TURISTICO NUOVO MESE DI FEBBRAIO 2017;1322;1;3;2;5;4
EDISON ENERGIA S.P.A.;13/04/2017;Energia elettrica;41,71;IVA-Liquidazione Fattura Nr. 5750399935  del 13/03/2017 (di cui Split per euro 41,71) - FORNITURA ENERGIA ELETTRICA SCUOLA INFANZIA SPICCHIO MESE DI FEBBRAIO 2017;1314;1;3;2;5;4
EDISON ENERGIA S.P.A.;13/04/2017;Energia elettrica;20,14;IVA-Liquidazione Fattura Nr. 5750400984  del 13/03/2017 (di cui Split per euro 20,14) - FORNITURA ENERGIA ELETTRICA AREA ESTERNA CAMPO SPORTIVO PETROIO MESE DI FEBBRAIO 2017;1320;1;3;2;5;4
EDISON ENERGIA S.P.A.;13/04/2017;Energia elettrica;18,10;IVA-Liquidazione Fattura Nr. 5750401070  del 13/03/2017 (di cui Split per euro 18,10) - FORNITURA ENERGIA ELETTRICA CASSA ESPANSIONE PICCARATICO MESE DI FEBBRAIO 2017;1321;1;3;2;5;4
EDISON ENERGIA S.P.A.;13/04/2017;Energia elettrica;14,49;IVA-Liquidazione Fattura Nr. 5750401261  del 13/03/2017 (di cui Split per euro 14,49) - FORNITURA ENERGIA ELETTRICA UFFICI COMUNALI VIA TORRE, 9 - MESE DI FEBBRAIO 2017;1312;1;3;2;5;4
EDISON ENERGIA S.P.A.;13/04/2017;Energia elettrica;12,41;IVA-Liquidazione Fattura Nr. 5750401374  del 13/03/2017 (di cui Split per euro 12,41) - FORNITURA ENERGIA ELETTRICA MERCATO SETTIMANALE E IMPIANTO IRRIGAZIONE MESE DI FEBBRAIO 2017;1321;1;3;2;5;4
EDISON ENERGIA S.P.A.;13/04/2017;Energia elettrica;11,35;IVA-Liquidazione Fattura Nr. 5750401473  del 13/03/2017 (di cui Split per euro 11,35) - FORNITURA ENERGIA ELETTRICA PILOMAT MESE DI FEBBRAIO 2017;1321;1;3;2;5;4
EDISON ENERGIA S.P.A.;13/04/2017;Energia elettrica;10,57;IVA-Liquidazione Fattura Nr. 5750401527  del 13/03/2017 (di cui Split per euro 10,57) - FORNITURA ENERGIA ELETTRICA FONTANELLO PARCO MILLE MESE DI FEBBRAIO 2017;1323;1;3;2;5;4
EDISON ENERGIA S.P.A.;13/04/2017;Energia elettrica;9,94;IVA-Liquidazione Fattura Nr. 5750401573  del 13/03/2017 (di cui Split per euro 9,94) - FORNITURA ENERGIA ELETTRICA ARCHIVIO COMUNALE MESE DI FEBBRAIO 2017;1313;1;3;2;5;4
EDISON ENERGIA S.P.A.;13/04/2017;Energia elettrica;8,02;IVA-Liquidazione Fattura Nr. 5750401820  del 13/03/2017 (di cui Split per euro 8,02) - FORNITURA ENERGIA ELETTRICA EX SCUOLA DI ANCHIANO MESE DI FEBBRAIO 2017;1312;1;3;2;5;4
EDISON ENERGIA S.P.A.;13/04/2017;Energia elettrica;2,67;IVA-Liquidazione Fattura Nr. 5750402159  del 13/03/2017 (di cui Split per euro 2,67) - FORNITURA ENERGIA ELETTRICA ALLOGGI PETROIO MESE DI FEBBRAIO 2017;1312;1;3;2;5;4
EDISON ENERGIA S.P.A.;13/04/2017;Energia elettrica;4,71;IVA-Liquidazione Fattura Nr. 5750402409  del 13/03/2017 (di cui Split per euro 4,71) - FORNITURA ENERGIA ELETTRICA UFFICIO DISMESSO VIA TORRE, 3 - MESE DI FEBBRAIO 2017;1312;1;3;2;5;4
EDISON ENERGIA S.P.A.;13/04/2017;Energia elettrica;4,65;IVA-Liquidazione Fattura Nr. 5750402527  del 13/03/2017 (di cui Split per euro 4,65) - FORNITURA ENERGIA ELETTRICA LOCALI EX MACELLI MESE DI FEBBRAIO 2017;1312;1;3;2;5;4
EDISON ENERGIA S.P.A.;13/04/2017;Energia elettrica;4,65;IVA-Liquidazione Fattura Nr. 5750402528  del 13/03/2017 (di cui Split per euro 4,65) - FORNITURA ENERGIA ELETTRICA CASA COMPARINI MESE DI FEBBRAIO 2017;1312;1;3;2;5;4
EDISON ENERGIA S.P.A.;13/04/2017;Energia elettrica;1,32;IVA-Liquidazione Fattura Nr. 5750402992  del 13/03/2017 (di cui Split per euro 1,32) - FORNITURA ENERGIA ELETTRICA BAGNI PUBBLICI MESE DI FEBBRAIO 2017;1322;1;3;2;5;4
EDISON ENERGIA S.P.A.;13/04/2017;Energia elettrica;1.203,29;Liquidazione Fattura Nr. 5750395235  del 13/03/2017 - FORNITURA ENERGIA ELETTRICA PALAZZINA UZIELLI MESE DI FEBBRAIO 2017;1318;1;3;2;5;4
EDISON ENERGIA S.P.A.;13/04/2017;Energia elettrica;1.028,80;Liquidazione Fattura Nr. 5750395529  del 13/03/2017 - FORNITURA ENERGIA ELETTRICA MUSEO LEONARDIANO MESE DI FEBBRAIO 2017;1318;1;3;2;5;4
EDISON ENERGIA S.P.A.;13/04/2017;Energia elettrica;985,07;Liquidazione Fattura Nr. 5750395601  del 13/03/2017 - FORNITURA ENERGIA ELETTRICA EDIFICIO COMUNALE MESE DI FEBBRAIO 2017;1312;1;3;2;5;4
EDISON ENERGIA S.P.A.;13/04/2017;Energia elettrica;877,34;Liquidazione Fattura Nr. 5750395825  del 13/03/2017 - FORNITURA ENERGIA ELETTRICA SCUOLA SECONDARIA DI 1� GRADO DI SOVIGLIANA MESE DI FEBBRAIO 2017;1316;1;3;2;5;4
EDISON ENERGIA S.P.A.;13/04/2017;Energia elettrica;433,19;Liquidazione Fattura Nr. 5750395850  del 13/03/2017 - FORNITURA ENERGIA ELETTRICA SCUOLA ELEMENTARE E SECONDARIA DI 1� GRADO DI VINCI MESE DI FEBBRAIO 2017;1315;1;3;2;5;4
EDISON ENERGIA S.P.A.;13/04/2017;Energia elettrica;433,19;Liquidazione Fattura Nr. 5750395850  del 13/03/2017 - FORNITURA ENERGIA ELETTRICA SCUOLA ELEMENTARE E SECONDARIA DI 1� GRADO DI VINCI MESE DI FEBBRAIO 2017;1316;1;3;2;5;4
EDISON ENERGIA S.P.A.;13/04/2017;Energia elettrica;754,29;Liquidazione Fattura Nr. 5750396151  del 13/03/2017 - FORNITURA ENERGIA ELETTRICA SCUOLA ELEMENTARE DI SPICCHIO MESE DI FEBBRAIO 2017;1315;1;3;2;5;4
EDISON ENERGIA S.P.A.;13/04/2017;Energia elettrica;580,05;Liquidazione Fattura Nr. 5750396668  del 13/03/2017 - FORNITURA ENERGIA ELETTRICA SCUOLA INFANZIA SOVIGLIANA MESE DI FEBBRAIO 2017;1314;1;3;2;5;4
EDISON ENERGIA S.P.A.;13/04/2017;Energia elettrica;571,11;Liquidazione Fattura Nr. 5750396699  del 13/03/2017 - FORNITURA ENERGIA ELETTRICA PALASPORT MESE DI FEBBRAIO 2017;1320;1;3;2;5;4
EDISON ENERGIA S.P.A.;13/04/2017;Energia elettrica;535,66;Liquidazione Fattura Nr. 5750396886  del 13/03/2017 - FORNITURA ENERGIA ELETTRICA BIBLIOTECA  MESE DI FEBBRAIO 2017;1317;1;3;2;5;4
EDISON ENERGIA S.P.A.;13/04/2017;Energia elettrica;448,67;Liquidazione Fattura Nr. 5750397325  del 13/03/2017 - FORNITURA ENERGIA ELETTRICA TEATRO MISERICORDIA MESE DI FEBBRAIO 2017;1319;1;3;2;5;4
EDISON ENERGIA S.P.A.;13/04/2017;Energia elettrica;423,71;Liquidazione Fattura Nr. 5750397458  del 13/03/2017 - FORNITURA ENERGIA ELETTRICA RESIDENZA PER ANZIANI MESE DI FEBBRAIO 2017;1326;1;3;2;5;4
EDISON ENERGIA S.P.A.;13/04/2017;Energia elettrica;392,06;Liquidazione Fattura Nr. 5750397663  del 13/03/2017 - FORNITURA ENERGIA ELETTRICA CASA NATALE LEONARDO MESE DI FEBBRAIO 2017;1318;1;3;2;5;4
EDISON ENERGIA S.P.A.;13/04/2017;Energia elettrica;383,11;Liquidazione Fattura Nr. 5750397757  del 13/03/2017 - FORNITURA ENERGIA ELETTRICA SCUOLA INFANZIA VINCI  MESE DI FEBBRAIO 2017;1314;1;3;2;5;4
EDISON ENERGIA S.P.A.;13/04/2017;Energia elettrica;338,78;Liquidazione Fattura Nr. 5750398153  del 13/03/2017 - FORNITURA ENERGIA ELETTRICA MAGAZZINO COMUNALE MESE DI FEBBRAIO 2017;1312;1;3;2;5;4
EDISON ENERGIA S.P.A.;13/04/2017;Energia elettrica;335,40;Liquidazione Fattura Nr. 5750398184  del 13/03/2017 - FORNITURA ENERGIA ELETTRICA NIDO COMUNALE MESE DI FEBBRAIO 2017;1324;1;3;2;5;4
EDISON ENERGIA S.P.A.;13/04/2017;Energia elettrica;321,39;Liquidazione Fattura Nr. 5750398298  del 13/03/2017 - FORNITURA ENERGIA ELETTRICA VILLA REGHINI MESE DI FEBBRAIO 2017;1325;1;3;2;5;4
EDISON ENERGIA S.P.A.;13/04/2017;Energia elettrica;286,34;Liquidazione Fattura Nr. 5750398647  del 13/03/2017 - FORNITURA ENERGIA ELETTRICA UFFICI COMUNALI VIA BATTISTI MESE DI FEBBRAIO 2017;1312;1;3;2;5;4
EDISON ENERGIA S.P.A.;13/04/2017;Energia elettrica;232,24;Liquidazione Fattura Nr. 5750399198  del 13/03/2017 - FORNITURA ENERGIA ELETTRICA URP VIA FUCINI MESE DI FEBBRAIO 2017;1313;1;3;2;5;4
EDISON ENERGIA S.P.A.;13/04/2017;Energia elettrica;194,26;Liquidazione Fattura Nr. 5750399814  del 13/03/2017 - FORNITURA ENERGIA ELETTRICA UFFICIO TURISTICO NUOVO MESE DI FEBBRAIO 2017;1322;1;3;2;5;4
EDISON ENERGIA S.P.A.;13/04/2017;Energia elettrica;189,61;Liquidazione Fattura Nr. 5750399935  del 13/03/2017 - FORNITURA ENERGIA ELETTRICA SCUOLA INFANZIA SPICCHIO MESE DI FEBBRAIO 2017;1314;1;3;2;5;4
EDISON ENERGIA S.P.A.;13/04/2017;Energia elettrica;91,56;Liquidazione Fattura Nr. 5750400984  del 13/03/2017 - FORNITURA ENERGIA ELETTRICA AREA ESTERNA CAMPO SPORTIVO PETROIO MESE DI FEBBRAIO 2017;1320;1;3;2;5;4
EDISON ENERGIA S.P.A.;13/04/2017;Energia elettrica;82,28;Liquidazione Fattura Nr. 5750401070  del 13/03/2017 - FORNITURA ENERGIA ELETTRICA CASSA ESPANSIONE PICCARATICO MESE DI FEBBRAIO 2017;1321;1;3;2;5;4
EDISON ENERGIA S.P.A.;13/04/2017;Energia elettrica;65,87;Liquidazione Fattura Nr. 5750401261  del 13/03/2017 - FORNITURA ENERGIA ELETTRICA UFFICI COMUNALI VIA TORRE, 9 - MESE DI FEBBRAIO 2017;1312;1;3;2;5;4
EDISON ENERGIA S.P.A.;13/04/2017;Energia elettrica;56,39;Liquidazione Fattura Nr. 5750401374  del 13/03/2017 - FORNITURA ENERGIA ELETTRICA MERCATO SETTIMANALE E IMPIANTO IRRIGAZIONE MESE DI FEBBRAIO 2017;1321;1;3;2;5;4
EDISON ENERGIA S.P.A.;13/04/2017;Energia elettrica;51,57;Liquidazione Fattura Nr. 5750401473  del 13/03/2017 - FORNITURA ENERGIA ELETTRICA PILOMAT MESE DI FEBBRAIO 2017;1321;1;3;2;5;4
EDISON ENERGIA S.P.A.;13/04/2017;Energia elettrica;48,05;Liquidazione Fattura Nr. 5750401527  del 13/03/2017 - FORNITURA ENERGIA ELETTRICA FONTANELLO PARCO MILLE MESE DI FEBBRAIO 2017;1323;1;3;2;5;4
EDISON ENERGIA S.P.A.;13/04/2017;Energia elettrica;45,20;Liquidazione Fattura Nr. 5750401573  del 13/03/2017 - FORNITURA ENERGIA ELETTRICA ARCHIVIO COMUNALE MESE DI FEBBRAIO 2017;1313;1;3;2;5;4
EDISON ENERGIA S.P.A.;13/04/2017;Energia elettrica;36,44;Liquidazione Fattura Nr. 5750401820  del 13/03/2017 - FORNITURA ENERGIA ELETTRICA EX SCUOLA DI ANCHIANO MESE DI FEBBRAIO 2017;1312;1;3;2;5;4
EDISON ENERGIA S.P.A.;13/04/2017;Energia elettrica;26,66;Liquidazione Fattura Nr. 5750402159  del 13/03/2017 - FORNITURA ENERGIA ELETTRICA ALLOGGI PETROIO MESE DI FEBBRAIO 2017;1312;1;3;2;5;4
EDISON ENERGIA S.P.A.;13/04/2017;Energia elettrica;21,41;Liquidazione Fattura Nr. 5750402409  del 13/03/2017 - FORNITURA ENERGIA ELETTRICA UFFICIO DISMESSO VIA TORRE, 3 - MESE DI FEBBRAIO 2017;1312;1;3;2;5;4
EDISON ENERGIA S.P.A.;13/04/2017;Energia elettrica;21,12;Liquidazione Fattura Nr. 5750402527  del 13/03/2017 - FORNITURA ENERGIA ELETTRICA LOCALI EX MACELLI MESE DI FEBBRAIO 2017;1312;1;3;2;5;4
EDISON ENERGIA S.P.A.;13/04/2017;Energia elettrica;21,12;Liquidazione Fattura Nr. 5750402528  del 13/03/2017 - FORNITURA ENERGIA ELETTRICA CASA COMPARINI MESE DI FEBBRAIO 2017;1312;1;3;2;5;4
EDISON ENERGIA S.P.A.;13/04/2017;Energia elettrica;6,00;Liquidazione Fattura Nr. 5750402992  del 13/03/2017 - FORNITURA ENERGIA ELETTRICA BAGNI PUBBLICI MESE DI FEBBRAIO 2017;1322;1;3;2;5;4
GALA S.P.A.;26/04/2017;Energia elettrica;18,33;IVA LIQUIDAZIONE FATTURA NR. E000533372  DEL 14/12/2016 - FORNITURA ENERGIA ELETTRICA AREA ESTERNA CAMPO SPORTIVO PETROIO MESE DI NOVEMBRE 2016;1538;1;3;2;5;4
GALA S.P.A.;26/04/2017;Energia elettrica;16,50;IVA LIQUIDAZIONE FATTURA NR. E000533372  DEL 14/12/2016 - FORNITURA ENERGIA ELETTRICA AREA ESTERNA CAMPO SPORTIVO PETROIO MESE DI NOVEMBRE 2016;1539;1;3;2;5;4
GALA S.P.A.;26/04/2017;Energia elettrica;83,28;LIQUIDAZIONE FATTURA NR. E000533372  DEL 14/12/2016 - FORNITURA ENERGIA ELETTRICA AREA ESTERNA CAMPO SPORTIVO PETROIO MESE DI NOVEMBRE 2016;1538;1;3;2;5;4
GALA S.P.A.;26/04/2017;Energia elettrica;75,02;LIQUIDAZIONE FATTURA NR. E000533372  DEL 14/12/2016 - FORNITURA ENERGIA ELETTRICA AREA ESTERNA CAMPO SPORTIVO PETROIO MESE DI NOVEMBRE 2016;1539;1;3;2;5;4
GALA S.P.A.;02/05/2017;Energia elettrica;123,47;IVA-LIQUIDAZIONE FATTURA NR. E000022422  DEL 16/01/2017 - FORNITURA ENERGIA ELETTRICA PALASPORT MESE DI DICEMBRE 2016;1574;1;3;2;5;4
GALA S.P.A.;02/05/2017;Energia elettrica;34,69;IVA-LIQUIDAZIONE FATTURA NR. E000022424  DEL 16/01/2017 - FORNITURA ENERGIA ELETTRICA AREA ESTERNA CAMPO SPORTIVO PETROIO MESE DI DICEMBRE 2016;1574;1;3;2;5;4
GALA S.P.A.;02/05/2017;Energia elettrica;561,23;LIQUIDAZIONE FATTURA NR. E000022422  DEL 16/01/2017 - FORNITURA ENERGIA ELETTRICA PALASPORT MESE DI DICEMBRE 2016;1574;1;3;2;5;4
GALA S.P.A.;02/05/2017;Energia elettrica;157,67;LIQUIDAZIONE FATTURA NR. E000022424  DEL 16/01/2017 - FORNITURA ENERGIA ELETTRICA AREA ESTERNA CAMPO SPORTIVO PETROIO MESE DI DICEMBRE 2016;1574;1;3;2;5;4
GALA S.P.A.;03/05/2017;Energia elettrica;78,94;IVA-LIQUID. FATTURA NR. E000533340  DEL 14/12/2016 (DI CUI SPLIT PER EURO 78,94) - PRESA D'ATTO ESITO GARA FORN. ENER.ELETT.ANNO 2016 SCUOLE ELEMENTARI SPICCHIO E IMPEGNO DELLE SOMME PER IL RELATIVO PAGAM.ALLE DITTE AGGIUDICAT. GALA SPA PE ;1579;1;3;2;5;4
GALA S.P.A.;03/05/2017;Energia elettrica;18,59;IVA-LIQUID. FATTURA NR. E000533341  DEL 14/12/2016 (DI CUI SPLIT PER EURO 18,59) - FORN..ENER.ELETT.ANNO 2016 CASSA ESPANSIONE PICCARATICO PER ALTRI USI IN BASSA TENSIONE, AGGIUDICATA ALLA DITTA GALA SPA E PER LA PUBBLICA ILLUMIN. AGGIUDIC ;1585;1;3;2;5;4
GALA S.P.A.;03/05/2017;Energia elettrica;2,52;IVA-LIQUID. FATTURA NR. E000533342  DEL 14/12/2016 AL NETTO DI NOTA: N. E000478499 DEL 11/10/2016 DI 19,41 - FORNITURA ENERGIA ELETTRICA PILOMAT MESE DI NOVEMBRE 2016 FATTURA NR. E000533342 DEL 14-12-2016;1585;1;3;2;5;4
GALA S.P.A.;03/05/2017;Energia elettrica;46,21;IVA-LIQUID. FATTURA NR. E000533343  DEL 14/12/2016 (DI CUI SPLIT PER EURO 46,21) - PRESA D'ATTO ESITO GARA FORN.ENER.ELET.ANNO 2016 UFF. COMUNALI VIA FUCINI E IMPEGNO DELLE SOMME PER IL RELATIVO PAGAM.ALLE DITTE AGGIUDICATARIE GALA SPA PER ;1578;1;3;2;5;4
GALA S.P.A.;03/05/2017;Energia elettrica;42,95;IVA-LIQUID. FATTURA NR. E000533344  DEL 14/12/2016 - PRESA D'ATTO ESITO GARA FORN.ENER.ELET.ANNO 2016 SCUOLA ELEM. E MEDIA VINCI E IMPEGNO DELLE SOMME PER IL RELATIVO PAG.ALLE DITTE AGGIUDICATARIE GALA SPA PER IL LOTTO 2 (ALTRI USI IN BASS ;1579;1;3;2;5;4
GALA S.P.A.;03/05/2017;Energia elettrica;42,96;IVA-LIQUID. FATTURA NR. E000533344  DEL 14/12/2016 - PRESA D'ATTO ESITO GARA FORN.ENER.ELET.ANNO 2016 SCUOLA ELEM. E MEDIA VINCI E IMPEGNO DELLE SOMME PER IL RELATIVO PAG.ALLE DITTE AGGIUDICATARIE GALA SPA PER IL LOTTO 2 (ALTRI USI IN BASS ;1580;1;3;2;5;4
GALA S.P.A.;03/05/2017;Energia elettrica;87,97;IVA-LIQUID. FATTURA NR. E000533345  DEL 14/12/2016 (DI CUI SPLIT PER EURO 87,97) - FORNITURA ENERGIA ELETT..ANNO 2016 BIBLIOTECA PER ALTRI USI IN BASSA TENSIONE, AGGIUDICATA ALLA DITTA GALA SPA E PER LA PUBBLICA ILLUMINAZIONE AGGIUDICATA A ;1581;1;3;2;5;4
GALA S.P.A.;03/05/2017;Energia elettrica;4,94;IVA-LIQUID. FATTURA NR. E000533346  DEL 14/12/2016 (DI CUI SPLIT PER EURO 4,94) - FORNIT.ENERGIA ELETT.ANNO 2016 LOCALI EX MACELLI PER ALTRI USI IN BASSA TENSIONE, AGGIUDICATA ALLA DITTA GALA SPA E PER LA PUBBLICA ILLUMINAZIONE AGGIUDICATA ;1577;1;3;2;5;4
GALA S.P.A.;03/05/2017;Energia elettrica;255,01;IVA-LIQUID. FATTURA NR. E000533347  DEL 14/12/2016 (DI CUI SPLIT PER EURO 255,01) - FORNIT.ENERGIA ELETTR. ANNO 2016 EDIFICIO COMUNALE PER ALTRI USI IN BASSA TENSIONE, AGGIUDICATA ALLA DITTA GALA SPA E PER LA PUBBLICA ILLUMINAZIONE AGGIUDI ;1577;1;3;2;5;4
GALA S.P.A.;03/05/2017;Energia elettrica;93,04;IVA-LIQUID. FATTURA NR. E000533348  DEL 14/12/2016 (DI CUI SPLIT PER EURO 93,04) - FORNIT.ENERGIA ELETT.ANNO 2016 MAGAZZINO COMUNALE PER ALTRI USI IN BASSA TENSIONE, AGGIUDICATA ALLA DITTA GALA SPA E PER LA PUBBLICA ILLUMINAZIONE AGGIUDICA ;1577;1;3;2;5;4
GALA S.P.A.;03/05/2017;Energia elettrica;38,10;IVA-LIQUID. FATTURA NR. E000533349  DEL 14/12/2016 (DI CUI SPLIT PER EURO 38,10) - FORN. ENERGIA ELETT.ANNO 2016 UFF. TURISTICO NUOVO PER ALTRI USI IN BASSA TENSIONE, AGGIUDICATA ALLA DITTA GALA SPA E PER LA PUBBLICA ILLUMINAZIONE AGGIUDIC ;1586;1;3;2;5;4
GALA S.P.A.;03/05/2017;Energia elettrica;1,36;IVA-LIQUID. FATTURA NR. E000533350  DEL 14/12/2016 (DI CUI SPLIT PER EURO 1,36) - FORNITURA ENERGIA ELETT.ANNO 2016 BAGNI PUBBLICI PER ALTRI USI IN BASSA TENSIONE, AGGIUDICATA ALLA DITTA GALA SPA E PER LA PUBBLICA ILLUMINAZIONE AGGIUDICATA ;1586;1;3;2;5;4
GALA S.P.A.;03/05/2017;Energia elettrica;10,21;IVA-LIQUID. FATTURA NR. E000533351  DEL 14/12/2016 (DI CUI SPLIT PER EURO 10,21) - PRESA D'ATTO ESITO GARA FORNIT.ENER.ELETTRICA ANNO 2016 ARCHIVIO COMUNALE E IMPEGNO DELLE SOMME PER IL RELATIVO PAGAM.ALLE DITTE AGGIUDICATARIE GALA SPA PER ;1578;1;3;2;5;4
GALA S.P.A.;03/05/2017;Energia elettrica;296,62;IVA-LIQUID. FATTURA NR. E000533352  DEL 14/12/2016 (DI CUI SPLIT PER EURO 296,62) - PRESA D'ATTO ESITO GARA FORNIT.ENER.ELET.ANNO 2016 PALAZZINA UZIELLI E IMPEGNO DELLE SOMME PER IL RELATIVO PAGAMENTO ALLE DITTE AGGIUDICATARIE GALA SPA PER ;1582;1;3;2;5;4
GALA S.P.A.;03/05/2017;Energia elettrica;9,37;IVA-LIQUID. FATTURA NR. E000533354  DEL 14/12/2016 (DI CUI SPLIT PER EURO 9,37) - FORNIT.ENERGIA ELETT. ANNO 2016 EX SCUOLA ANCHIANO PER ALTRI USI IN BASSA TENSIONE, AGGIUDICATA ALLA DITTA GALA SPA E PER LA PUBBLICA ILLUMINAZIONE AGGIUDICA ;1577;1;3;2;5;4
GALA S.P.A.;03/05/2017;Energia elettrica;236,12;IVA-LIQUID. FATTURA NR. E000533355  DEL 14/12/2016 (DI CUI SPLIT PER EURO 236,12) - PRESA D'ATTO ESITO GARA FORN.ENERGIA ELET.ANNO 2016 MUSEO LEONARDIANO E IMPEGNO DELLE SOMME PER IL RELATIVO PAGAMENTO ALLE DITTE AGGIUDICATARIE GALA SPA PE ;1582;1;3;2;5;4
GALA S.P.A.;03/05/2017;Energia elettrica;11,02;IVA-LIQUID. FATTURA NR. E000533356  DEL 14/12/2016 (DI CUI SPLIT PER EURO 11,02) - FORNIT.ENERGIA ELETT.ANNO 2016 UFF. COMUNALI VIA TORRE 9 PER ALTRI USI IN BASSA TENSIONE, AGGIUDICATA ALLA DITTA GALA SPA E PER LA PUBBLICA ILLUMIN. AGGIUDI ;1577;1;3;2;5;4
GALA S.P.A.;03/05/2017;Energia elettrica;5,91;IVA-LIQUID. FATTURA NR. E000533357  DEL 14/12/2016 (DI CUI SPLIT PER EURO 5,91) - FORNIT.ENERGIA ELETT.ANNO 2016 UFF. DISMESSO VIA TORRE 3 PER ALTRI USI IN BASSA TENSIONE, AGGIUDICATA ALLA DITTA GALA SPA E PER LA PUBBLICA ILLUMIN. AGGIUDIC ;1577;1;3;2;5;4
GALA S.P.A.;03/05/2017;Energia elettrica;39,99;IVA-LIQUID. FATTURA NR. E000533358  DEL 14/12/2016 (DI CUI SPLIT PER EURO 39,99) - FORN.ENERGIA ELETT. ANNO 2016 RESIDENZA PER ANZIANI PER ALTRI USI IN BASSA TENSIONE, AGGIUDICATA ALLA DITTA GALA SPA E PER LA PUBBLICA ILLUMINAZIONE AGGIUDI ;1590;1;3;2;5;4
GALA S.P.A.;03/05/2017;Energia elettrica;72,01;IVA-LIQUID. FATTURA NR. E000533360  DEL 14/12/2016 (DI CUI SPLIT PER EURO 72,01) - FORN.ENERGIA ELETT.ANNO 2016 UFF. COMUNALI VIA BATTISTI PER ALTRI USI IN BASSA TENSIONE, AGGIUDICATA ALLA DITTA GALA SPA E PER LA PUBBLICA ILLUMINAZ.AGGIUDI ;1577;1;3;2;5;4
GALA S.P.A.;03/05/2017;Energia elettrica;50,72;IVA-LIQUID. FATTURA NR. E000533362  DEL 14/12/2016 (DI CUI SPLIT PER EURO 50,72) - FORNIT.ENERGIA ELETT.ANNO 2016 VILLA REGHINI PER ALTRI USI IN BASSA TENSIONE, AGGIUDICATA ALLA DITTA GALA SPA E PER LA PUBBLICA ILLUMINAZIONE AGGIUDICATA AL ;1589;1;3;2;5;4
GALA S.P.A.;03/05/2017;Energia elettrica;13,67;IVA-LIQUID. FATTURA NR. E000533363  DEL 14/12/2016 (DI CUI SPLIT PER EURO 13,67) - FORN.ENER.ELETT.ANNO 2016 MERCATO SETT. E IMPIANTO IRRIGAZIONE PER ALTRI USI IN BASSA TENSIONE, AGGIUDICATA ALLA DITTA GALA SPA E PER LA PUBB.ILLUM. AGGIUDI ;1585;1;3;2;5;4
GALA S.P.A.;03/05/2017;Energia elettrica;34,52;IVA-LIQUID. FATTURA NR. E000533364  DEL 14/12/2016 (DI CUI SPLIT PER EURO 34,52) - PRESA D'ATTO ESITO GARA FORN.ENERGIA ELETTRICA ANNO 2016 NIDO COMUNALE E IMPEGNO DELLE SOMME PER IL RELATIVO PAGAMENTO ALLE DITTE AGGIUDICATARIE GALA SPA PE ;1588;1;3;2;5;4
GALA S.P.A.;03/05/2017;Energia elettrica;85,03;IVA-LIQUID. FATTURA NR. E000533365  DEL 14/12/2016 (DI CUI SPLIT PER EURO 85,03) - PRESA D'ATTO ESITO GARA FORN.ENER.ELETT. ANNO 2016 SCUOLA MEDIA SOVIGLIANA E IMPEGNO DELLE SOMME PER IL RELATIVO PAG.ALLE DITTE AGGIUDICATARIE GALA SPA PER  ;1580;1;3;2;5;4
GALA S.P.A.;03/05/2017;Energia elettrica;4,94;IVA-LIQUID. FATTURA NR. E000533366  DEL 14/12/2016 (DI CUI SPLIT PER EURO 4,94) - FORNIT.ENERGIA ELETT. ANNO 2016 CASA COMPARINI PER ALTRI USI IN BASSA TENSIONE, AGGIUDICATA ALLA DITTA GALA SPA E PER LA PUBBLICA ILLUMINAZIONE AGGIUDICATA A ;1577;1;3;2;5;4
GALA S.P.A.;03/05/2017;Energia elettrica;2,25;IVA-LIQUID. FATTURA NR. E000533368  DEL 14/12/2016 (DI CUI SPLIT PER EURO 2,25) - FORNIT.ENERGIA ELETT.ANNO 2016 AULA OTTICA PER ALTRI USI IN BASSA TENSIONE, AGGIUDICATA ALLA DITTA GALA SPA E PER LA PUBBLICA ILLUMINAZIONE AGGIUDICATA ALLA  ;1577;1;3;2;5;4
GALA S.P.A.;03/05/2017;Energia elettrica;12,22;IVA-LIQUID. FATTURA NR. E000533369  DEL 14/12/2016 (DI CUI SPLIT PER EURO 12,22) - FORN.ENERGIA ELETT.ANNO 2016 FONTANELLO PARCO MILLE PER ALTRI USI IN BASSA TENSIONE, AGGIUDICATA ALLA DITTA GALA SPA E PER LA PUBBLICA ILLUMINAZIONE AGGIUDI ;1587;1;3;2;5;4
GALA S.P.A.;03/05/2017;Energia elettrica;127,65;IVA-LIQUID. FATTURA NR. E000533370  DEL 14/12/2016 - FORNITURA ENERGIA ELETTRICA PALASPORT MESE DI NOVEMBRE 2016 FATTURA NR. E000533370 DEL 14-12-2016;1584;1;3;2;5;4
GALA S.P.A.;03/05/2017;Energia elettrica;2,91;IVA-LIQUID. FATTURA NR. E000533371  DEL 14/12/2016 (DI CUI SPLIT PER EURO 2,91) - FORNIT.ENERGIA ELETT.ANNO 2016 ALLOGGI PETROIO PER ALTRI USI IN BASSA TENSIONE, AGGIUDICATA ALLA DITTA GALA SPA E PER LA PUBBLICA ILLUMINAZIONE AGGIUDICATA A ;1577;1;3;2;5;4
GALA S.P.A.;03/05/2017;Energia elettrica;106,69;IVA-LIQUID.FATTURA NR. E000533353  DEL 14/12/2016 (DI CUI SPLIT PER EURO 106,69) - PRESA D'ATTO ESITO GARA FORNIT.ENERGIA ELET.ANNO 2016 CASA NATALE LEONARDO E IMPEGNO DELLE SOMME PER IL RELATIVO PAGAM.ALLE DITTE AGGIUDICATARIE GALA SPA P F;1582;1;3;2;5;4
GALA S.P.A.;03/05/2017;Energia elettrica;34,21;IVA-LIQUIDAZIONE FATTURA NR. E000533367  DEL 14/12/2016 - FORNITURA ENERGIA ELETTRICA TEATRO MISERICORDIA MESE DI NOVEMBRE 2016;1583;1;3;2;5;4
GALA S.P.A.;03/05/2017;Energia elettrica;789,37;LIQUIDAZIONE FATTURA NR. E000533340  DEL 14/12/2016 - PRESA D'ATTO ESITO GARA FORN. ENER.ELETT.ANNO 2016 SCUOLE ELEMENTARI SPICCHIO E IMPEGNO DELLE SOMME PER IL RELATIVO PAGAM.ALLE DITTE AGGIUDICAT. GALA SPA PER IL LOTTO 2 (ALTRI USI IN BAS;1579;1;3;2;5;4
GALA S.P.A.;03/05/2017;Energia elettrica;84,52;LIQUIDAZIONE FATTURA NR. E000533341  DEL 14/12/2016 - FORN..ENER.ELETT.ANNO 2016 CASSA ESPANSIONE PICCARATICO PER ALTRI USI IN BASSA TENSIONE, AGGIUDICATA ALLA DITTA GALA SPA E PER LA PUBBLICA ILLUMIN. AGGIUDICATA ALLA DITTA EDISON ENERGIA ;1585;1;3;2;5;4
GALA S.P.A.;03/05/2017;Energia elettrica;11,44;LIQUIDAZIONE FATTURA NR. E000533342  DEL 14/12/2016 AL NETTO DI NOTA: N. E000478499 DEL 11/10/2016 DI 19,41 - FORNITURA ENERGIA ELETTRICA PILOMAT MESE DI NOVEMBRE 2016;1585;1;3;2;5;4
GALA S.P.A.;03/05/2017;Energia elettrica;210,04;LIQUIDAZIONE FATTURA NR. E000533343  DEL 14/12/2016 - PRESA D'ATTO ESITO GARA FORN.ENER.ELET.ANNO 2016 UFF. COMUNALI VIA FUCINI E IMPEGNO DELLE SOMME PER IL RELATIVO PAGAM.ALLE DITTE AGGIUDICATARIE GALA SPA PER IL LOTTO 2 (ALTRI USI IN BASS;1578;1;3;2;5;4
GALA S.P.A.;03/05/2017;Energia elettrica;429,56;LIQUIDAZIONE FATTURA NR. E000533344  DEL 14/12/2016 - PRESA D'ATTO ESITO GARA FORN.ENER.ELET.ANNO 2016 SCUOLA ELEM. E MEDIA VINCI E IMPEGNO DELLE SOMME PER IL RELATIVO PAG.ALLE DITTE AGGIUDICATARIE GALA SPA PER IL LOTTO 2 (ALTRI USI IN BASS;1579;1;3;2;5;4
GALA S.P.A.;03/05/2017;Energia elettrica;429,56;LIQUIDAZIONE FATTURA NR. E000533344  DEL 14/12/2016 - PRESA D'ATTO ESITO GARA FORN.ENER.ELET.ANNO 2016 SCUOLA ELEM. E MEDIA VINCI E IMPEGNO DELLE SOMME PER IL RELATIVO PAG.ALLE DITTE AGGIUDICATARIE GALA SPA PER IL LOTTO 2 (ALTRI USI IN BASS;1580;1;3;2;5;4
GALA S.P.A.;03/05/2017;Energia elettrica;399,86;LIQUIDAZIONE FATTURA NR. E000533345  DEL 14/12/2016 - FORNITURA ENERGIA ELETT..ANNO 2016 BIBLIOTECA PER ALTRI USI IN BASSA TENSIONE, AGGIUDICATA ALLA DITTA GALA SPA E PER LA PUBBLICA ILLUMINAZIONE AGGIUDICATA ALLA DITTA EDISON ENERGIA SPA -;1581;1;3;2;5;4
GALA S.P.A.;03/05/2017;Energia elettrica;22,47;LIQUIDAZIONE FATTURA NR. E000533346  DEL 14/12/2016 - FORNIT.ENERGIA ELETT.ANNO 2016 LOCALI EX MACELLI PER ALTRI USI IN BASSA TENSIONE, AGGIUDICATA ALLA DITTA GALA SPA E PER LA PUBBLICA ILLUMINAZIONE AGGIUDICATA ALLA DITTA EDISON ENERGIA SP;1577;1;3;2;5;4
GALA S.P.A.;03/05/2017;Energia elettrica;1.159,14;LIQUIDAZIONE FATTURA NR. E000533347  DEL 14/12/2016 - FORNIT.ENERGIA ELETTR. ANNO 2016 EDIFICIO COMUNALE PER ALTRI USI IN BASSA TENSIONE, AGGIUDICATA ALLA DITTA GALA SPA E PER LA PUBBLICA ILLUMINAZIONE AGGIUDICATA ALLA DITTA EDISON ENERGIA ;1577;1;3;2;5;4
GALA S.P.A.;03/05/2017;Energia elettrica;422,93;LIQUIDAZIONE FATTURA NR. E000533348  DEL 14/12/2016 - FORNIT.ENERGIA ELETT.ANNO 2016 MAGAZZINO COMUNALE PER ALTRI USI IN BASSA TENSIONE, AGGIUDICATA ALLA DITTA GALA SPA E PER LA PUBBLICA ILLUMINAZIONE AGGIUDICATA ALLA DITTA EDISON ENERGIA S;1577;1;3;2;5;4
GALA S.P.A.;03/05/2017;Energia elettrica;173,16;LIQUIDAZIONE FATTURA NR. E000533349  DEL 14/12/2016 - FORN. ENERGIA ELETT.ANNO 2016 UFF. TURISTICO NUOVO PER ALTRI USI IN BASSA TENSIONE, AGGIUDICATA ALLA DITTA GALA SPA E PER LA PUBBLICA ILLUMINAZIONE AGGIUDICATA ALLA DITTA EDISON ENERGIA ;1586;1;3;2;5;4
GALA S.P.A.;03/05/2017;Energia elettrica;6,19;LIQUIDAZIONE FATTURA NR. E000533350  DEL 14/12/2016 - FORNITURA ENERGIA ELETT.ANNO 2016 BAGNI PUBBLICI PER ALTRI USI IN BASSA TENSIONE, AGGIUDICATA ALLA DITTA GALA SPA E PER LA PUBBLICA ILLUMINAZIONE AGGIUDICATA ALLA DITTA EDISON ENERGIA SP;1586;1;3;2;5;4
GALA S.P.A.;03/05/2017;Energia elettrica;46,41;LIQUIDAZIONE FATTURA NR. E000533351  DEL 14/12/2016 - PRESA D'ATTO ESITO GARA FORNIT.ENER.ELETTRICA ANNO 2016 ARCHIVIO COMUNALE E IMPEGNO DELLE SOMME PER IL RELATIVO PAGAM.ALLE DITTE AGGIUDICATARIE GALA SPA PER IL LOTTO 2 (ALTRI USI IN BASS;1578;1;3;2;5;4
GALA S.P.A.;03/05/2017;Energia elettrica;1.348,29;LIQUIDAZIONE FATTURA NR. E000533352  DEL 14/12/2016 - PRESA D'ATTO ESITO GARA FORNIT.ENER.ELET.ANNO 2016 PALAZZINA UZIELLI E IMPEGNO DELLE SOMME PER IL RELATIVO PAGAMENTO ALLE DITTE AGGIUDICATARIE GALA SPA PER IL LOTTO 2 (ALTRI USI IN BASSA;1582;1;3;2;5;4
GALA S.P.A.;03/05/2017;Energia elettrica;484,96;LIQUIDAZIONE FATTURA NR. E000533353  DEL 14/12/2016 - PRESA D'ATTO ESITO GARA FORNIT.ENERGIA ELET.ANNO 2016 CASA NATALE LEONARDO E IMPEGNO DELLE SOMME PER IL RELATIVO PAGAM.ALLE DITTE AGGIUDICATARIE GALA SPA PER IL LOTTO 2 (ALTRI USI IN BAS;1582;1;3;2;5;4
GALA S.P.A.;03/05/2017;Energia elettrica;42,58;LIQUIDAZIONE FATTURA NR. E000533354  DEL 14/12/2016 - FORNIT.ENERGIA ELETT. ANNO 2016 EX SCUOLA ANCHIANO PER ALTRI USI IN BASSA TENSIONE, AGGIUDICATA ALLA DITTA GALA SPA E PER LA PUBBLICA ILLUMINAZIONE AGGIUDICATA ALLA DITTA EDISON ENERGIA ;1577;1;3;2;5;4
GALA S.P.A.;03/05/2017;Energia elettrica;1.073,25;LIQUIDAZIONE FATTURA NR. E000533355  DEL 14/12/2016 - PRESA D'ATTO ESITO GARA FORN.ENERGIA ELET.ANNO 2016 MUSEO LEONARDIANO E IMPEGNO DELLE SOMME PER IL RELATIVO PAGAMENTO ALLE DITTE AGGIUDICATARIE GALA SPA PER IL LOTTO 2 (ALTRI USI IN BASS;1582;1;3;2;5;4
GALA S.P.A.;03/05/2017;Energia elettrica;50,08;LIQUIDAZIONE FATTURA NR. E000533356  DEL 14/12/2016 - FORNIT.ENERGIA ELETT.ANNO 2016 UFF. COMUNALI VIA TORRE 9 PER ALTRI USI IN BASSA TENSIONE, AGGIUDICATA ALLA DITTA GALA SPA E PER LA PUBBLICA ILLUMIN. AGGIUDICATA ALLA DITTA EDISON ENERGIA;1577;1;3;2;5;4
GALA S.P.A.;03/05/2017;Energia elettrica;26,88;LIQUIDAZIONE FATTURA NR. E000533357  DEL 14/12/2016 - FORNIT.ENERGIA ELETT.ANNO 2016 UFF. DISMESSO VIA TORRE 3 PER ALTRI USI IN BASSA TENSIONE, AGGIUDICATA ALLA DITTA GALA SPA E PER LA PUBBLICA ILLUMIN. AGGIUDICATA ALLA DITTA EDISON ENERGIA;1577;1;3;2;5;4
GALA S.P.A.;03/05/2017;Energia elettrica;399,86;LIQUIDAZIONE FATTURA NR. E000533358  DEL 14/12/2016 - FORN.ENERGIA ELETT. ANNO 2016 RESIDENZA PER ANZIANI PER ALTRI USI IN BASSA TENSIONE, AGGIUDICATA ALLA DITTA GALA SPA E PER LA PUBBLICA ILLUMINAZIONE AGGIUDICATA ALLA DITTA EDISON ENERGIA;1590;1;3;2;5;4
GALA S.P.A.;03/05/2017;Energia elettrica;327,34;LIQUIDAZIONE FATTURA NR. E000533360  DEL 14/12/2016 - FORN.ENERGIA ELETT.ANNO 2016 UFF. COMUNALI VIA BATTISTI PER ALTRI USI IN BASSA TENSIONE, AGGIUDICATA ALLA DITTA GALA SPA E PER LA PUBBLICA ILLUMINAZ.AGGIUDICATA ALLA DITTA EDISON ENERGIA;1577;1;3;2;5;4
GALA S.P.A.;03/05/2017;Energia elettrica;230,53;LIQUIDAZIONE FATTURA NR. E000533362  DEL 14/12/2016 - FORNIT.ENERGIA ELETT.ANNO 2016 VILLA REGHINI PER ALTRI USI IN BASSA TENSIONE, AGGIUDICATA ALLA DITTA GALA SPA E PER LA PUBBLICA ILLUMINAZIONE AGGIUDICATA ALLA DITTA EDISON ENERGIA SPA - ;1589;1;3;2;5;4
GALA S.P.A.;03/05/2017;Energia elettrica;62,13;LIQUIDAZIONE FATTURA NR. E000533363  DEL 14/12/2016 - FORN.ENER.ELETT.ANNO 2016 MERCATO SETT. E IMPIANTO IRRIGAZIONE PER ALTRI USI IN BASSA TENSIONE, AGGIUDICATA ALLA DITTA GALA SPA E PER LA PUBB.ILLUM. AGGIUDICATA ALLA DITTA EDISON ENERGIA;1585;1;3;2;5;4
GALA S.P.A.;03/05/2017;Energia elettrica;345,15;LIQUIDAZIONE FATTURA NR. E000533364  DEL 14/12/2016 - PRESA D'ATTO ESITO GARA FORN.ENERGIA ELETTRICA ANNO 2016 NIDO COMUNALE E IMPEGNO DELLE SOMME PER IL RELATIVO PAGAMENTO ALLE DITTE AGGIUDICATARIE GALA SPA PER IL LOTTO 2 (ALTRI USI IN BAS;1588;1;3;2;5;4
GALA S.P.A.;03/05/2017;Energia elettrica;850,26;LIQUIDAZIONE FATTURA NR. E000533365  DEL 14/12/2016 - PRESA D'ATTO ESITO GARA FORN.ENER.ELETT. ANNO 2016 SCUOLA MEDIA SOVIGLIANA E IMPEGNO DELLE SOMME PER IL RELATIVO PAG.ALLE DITTE AGGIUDICATARIE GALA SPA PER IL LOTTO 2 (ALTRI USI IN BASSA;1580;1;3;2;5;4
GALA S.P.A.;03/05/2017;Energia elettrica;22,47;LIQUIDAZIONE FATTURA NR. E000533366  DEL 14/12/2016 - FORNIT.ENERGIA ELETT. ANNO 2016 CASA COMPARINI PER ALTRI USI IN BASSA TENSIONE, AGGIUDICATA ALLA DITTA GALA SPA E PER LA PUBBLICA ILLUMINAZIONE AGGIUDICATA ALLA DITTA EDISON ENERGIA SPA ;1577;1;3;2;5;4
GALA S.P.A.;03/05/2017;Energia elettrica;155,50;LIQUIDAZIONE FATTURA NR. E000533367  DEL 14/12/2016 - FORNITURA ENERGIA ELETTRICA TEATRO MISERICORDIA MESE DI NOVEMBRE 2016;1583;1;3;2;5;4
GALA S.P.A.;03/05/2017;Energia elettrica;22,47;LIQUIDAZIONE FATTURA NR. E000533368  DEL 14/12/2016 - FORNIT.ENERGIA ELETT.ANNO 2016 AULA OTTICA PER ALTRI USI IN BASSA TENSIONE, AGGIUDICATA ALLA DITTA GALA SPA E PER LA PUBBLICA ILLUMINAZIONE AGGIUDICATA ALLA DITTA EDISON ENERGIA SPA - RE;1577;1;3;2;5;4
GALA S.P.A.;03/05/2017;Energia elettrica;55,56;LIQUIDAZIONE FATTURA NR. E000533369  DEL 14/12/2016 - FORN.ENERGIA ELETT.ANNO 2016 FONTANELLO PARCO MILLE PER ALTRI USI IN BASSA TENSIONE, AGGIUDICATA ALLA DITTA GALA SPA E PER LA PUBBLICA ILLUMINAZIONE AGGIUDICATA ALLA DITTA EDISON ENERGIA;1587;1;3;2;5;4
GALA S.P.A.;03/05/2017;Energia elettrica;580,24;LIQUIDAZIONE FATTURA NR. E000533370  DEL 14/12/2016 - FORNITURA ENERGIA ELETTRICA PALASPORT MESE DI NOVEMBRE 2016;1584;1;3;2;5;4
GALA S.P.A.;03/05/2017;Energia elettrica;29,09;LIQUIDAZIONE FATTURA NR. E000533371  DEL 14/12/2016 - FORNIT.ENERGIA ELETT.ANNO 2016 ALLOGGI PETROIO PER ALTRI USI IN BASSA TENSIONE, AGGIUDICATA ALLA DITTA GALA SPA E PER LA PUBBLICA ILLUMINAZIONE AGGIUDICATA ALLA DITTA EDISON ENERGIA SPA ;1577;1;3;2;5;4
GALA S.P.A.;04/05/2017;Energia elettrica;20,80;IVA-LIQUID. FATTURA NR. E000533339  DEL 14/12/2016 (DI CUI SPLIT PER EURO 20,80) - PRESA D'ATTO ESITO GARA FORN.ENERGIA ELET.ANNO 2016 SCUOLA MATERNA SPICCHIO E IMPEGNO DELLE SOMME PER IL RELATIVO PAGAM.ALLE DITTE AGGIUDICATARIE GALA SPA P ;1591;1;3;2;5;4
GALA S.P.A.;04/05/2017;Energia elettrica;38,49;IVA-LIQUID. FATTURA NR. E000533359  DEL 14/12/2016 (DI CUI SPLIT PER EURO 38,49) - PRESA D'ATTO ESITO GARA FORNIT.ENERGIA ELET.ANNO 2016 SCUOLA MATERNA VINCI E IMPEGNO DELLE SOMME PER IL RELATIVO PAGAM.ALLE DITTE AGGIUDICATARIE GALA SPA PE ;1591;1;3;2;5;4
GALA S.P.A.;04/05/2017;Energia elettrica;62,75;IVA-LIQUID. FATTURA NR. E000533361  DEL 14/12/2016 (DI CUI SPLIT PER EURO 62,75) - PRESA D'ATTO ESITO GARA FORNIT.ENER.ELET.'ANNO 2016 SCUOLA MATERNA SOVIGLIANA E IMPEGNO DELLE SOMME PER IL RELATIVO PAGAM.ALLE DITTE AGGIUDICATARIE GALA SPA ;1591;1;3;2;5;4
GALA S.P.A.;04/05/2017;Energia elettrica;208,01;LIQUIDAZIONE FATTURA NR. E000533339  DEL 14/12/2016 - PRESA D'ATTO ESITO GARA FORN.ENERGIA ELET.ANNO 2016 SCUOLA MATERNA SPICCHIO E IMPEGNO DELLE SOMME PER IL RELATIVO PAGAM.ALLE DITTE AGGIUDICATARIE GALA SPA PER IL LOTTO 2 (ALTRI USI IN BA;1591;1;3;2;5;4
GALA S.P.A.;04/05/2017;Energia elettrica;384,94;LIQUIDAZIONE FATTURA NR. E000533359  DEL 14/12/2016 - PRESA D'ATTO ESITO GARA FORNIT.ENERGIA ELET.ANNO 2016 SCUOLA MATERNA VINCI E IMPEGNO DELLE SOMME PER IL RELATIVO PAGAM.ALLE DITTE AGGIUDICATARIE GALA SPA PER IL LOTTO 2 (ALTRI USI IN BAS;1591;1;3;2;5;4
GALA S.P.A.;04/05/2017;Energia elettrica;627,52;LIQUIDAZIONE FATTURA NR. E000533361  DEL 14/12/2016 - PRESA D'ATTO ESITO GARA FORNIT.ENER.ELET.'ANNO 2016 SCUOLA MATERNA SOVIGLIANA E IMPEGNO DELLE SOMME PER IL RELATIVO PAGAM.ALLE DITTE AGGIUDICATARIE GALA SPA PER IL LOTTO 2 (ALTRI USI IN ;1591;1;3;2;5;4
EDISON ENERGIA S.P.A.;05/05/2017;Energia elettrica;8,59;IVA-Liquidazione Fattura Nr. 5750401767  del 13/03/2017 (di cui Split per euro 8,59) - FORNITURA ENERGIA ELETTRICA VIA POGGIO ALLA CAVALLA MESE DI FEBBRAIO 2017;1592;1;3;2;5;4
EDISON ENERGIA S.P.A.;05/05/2017;Energia elettrica;39,03;Liquidazione Fattura Nr. 5750401767  del 13/03/2017 - FORNITURA ENERGIA ELETTRICA VIA POGGIO ALLA CAVALLA MESE DI FEBBRAIO 2017;1592;1;3;2;5;4
ENERGRID S.P.A.;09/05/2017;Energia elettrica;3.321,25;IVA-Liquidazione Fattura Nr. 174010844  del 12/04/2017 (di cui Split per euro 3.321,25) - FORNITURA ENERGIA ELETTRICA PER PUBBLICA ILLUMINAZIONE MARZO 2017;1605;1;3;2;5;4
ENERGRID S.P.A.;09/05/2017;Energia elettrica;15.096,58;Liquidazione Fattura Nr. 174010844  del 12/04/2017 - FORNITURA ENERGIA ELETTRICA PER PUBBLICA ILLUMINAZIONE MARZO 2017;1605;1;3;2;5;4
EDISON ENERGIA S.P.A.;15/05/2017;Energia elettrica;1,32;IVA-Liquidazione Fattura Nr. 5750404928  del 12/04/2017 - Fornitura energia elettrica bagni pubblici mese di marzo 2017;1684;1;3;2;5;4
EDISON ENERGIA S.P.A.;15/05/2017;Energia elettrica;4,65;IVA-Liquidazione Fattura Nr. 5750405683  del 12/04/2017 - Fornitura energia elettrica locali ex macelli mese di marzo 2017;1656;1;3;2;5;4
EDISON ENERGIA S.P.A.;15/05/2017;Energia elettrica;4,65;IVA-Liquidazione Fattura Nr. 5750405718  del 12/04/2017 - Fornitura energia elettrica casa comparini mese di marzo 2017;1656;1;3;2;5;4
EDISON ENERGIA S.P.A.;15/05/2017;Energia elettrica;4,65;IVA-Liquidazione Fattura Nr. 5750405731  del 12/04/2017 - Fornitura energia elettrica uff. dismesso Via Torre, 3 mese di marzo 2017;1656;1;3;2;5;4
EDISON ENERGIA S.P.A.;15/05/2017;Energia elettrica;2,66;IVA-Liquidazione Fattura Nr. 5750406034  del 12/04/2017 - Fornitura energia elettrica alloggi Petroio mese di marzo 2017;1656;1;3;2;5;4
EDISON ENERGIA S.P.A.;15/05/2017;Energia elettrica;8,11;IVA-Liquidazione Fattura Nr. 5750406615  del 12/04/2017 - Fornitura energia elettrica ex scuola di Anchiano mese di marzo 2017;1656;1;3;2;5;4
EDISON ENERGIA S.P.A.;15/05/2017;Energia elettrica;8,42;IVA-Liquidazione Fattura Nr. 5750406639  del 12/04/2017 (di cui Split per euro 8,42) - fornitura  energia elettrica Via Poggio alla Cavalla;1656;1;3;2;5;4
EDISON ENERGIA S.P.A.;15/05/2017;Energia elettrica;9,70;IVA-Liquidazione Fattura Nr. 5750406795  del 12/04/2017 - Fornitura energia elettrica archivio comunale mese di marzo 2017;1658;1;3;2;5;4
EDISON ENERGIA S.P.A.;15/05/2017;Energia elettrica;10,00;IVA-Liquidazione Fattura Nr. 5750406826  del 12/04/2017 - Fornitura energia elettrica mercato settimanale e impianto irrigazione mese di Marzo 2017;1681;1;3;2;5;4
EDISON ENERGIA S.P.A.;15/05/2017;Energia elettrica;11,16;IVA-Liquidazione Fattura Nr. 5750406951  del 12/04/2017 - Fornitura energia elettrica uff. comunali Via Torre, 9 mese di marzo 2017;1656;1;3;2;5;4
EDISON ENERGIA S.P.A.;15/05/2017;Energia elettrica;11,19;IVA-Liquidazione Fattura Nr. 5750406954  del 12/04/2017 - Fornitura energia elettrica mese di marzo 2017;1686;1;3;2;5;4
EDISON ENERGIA S.P.A.;15/05/2017;Energia elettrica;17,96;IVA-Liquidazione Fattura Nr. 5750407775  del 12/04/2017 - Fornitura energia elettrica Cassa Espansione Piccaratico mese di Marzo 2017;1681;1;3;2;5;4
EDISON ENERGIA S.P.A.;15/05/2017;Energia elettrica;33,01;IVA-Liquidazione Fattura Nr. 5750408825  del 12/04/2017 - Fornitura energia elettrica area esterna campo sportivo Petroio mese di Marzo 2017;1680;1;3;2;5;4
EDISON ENERGIA S.P.A.;15/05/2017;Energia elettrica;34,03;IVA-Liquidazione Fattura Nr. 5750408857  del 12/04/2017 - Fornitura energia elettrica fontanello parco mille mese di marzo 2017;1684;1;3;2;5;4
EDISON ENERGIA S.P.A.;15/05/2017;Energia elettrica;43,54;IVA-Liquidazione Fattura Nr. 5750409168  del 12/04/2017 - Fornitura energia elettrica uffici comunali URP Via Fucini;1658;1;3;2;5;4
EDISON ENERGIA S.P.A.;15/05/2017;Energia elettrica;43,68;IVA-Liquidazione Fattura Nr. 5750409171  del 12/04/2017 - Fornitura energia elettrica scuola infanzia Spicchio mese di marzo 2017;1664;1;3;2;5;4
EDISON ENERGIA S.P.A.;15/05/2017;Energia elettrica;47,12;IVA-Liquidazione Fattura Nr. 5750409291  del 12/04/2017 - Fornitura energia elettrica casa natale Leonardo mese di marzo 2017;1676;1;3;2;5;4
EDISON ENERGIA S.P.A.;15/05/2017;Energia elettrica;63,84;IVA-Liquidazione Fattura Nr. 5750409782  del 12/04/2017 - Fornitura energia elettrica Villa Reghini mese di marzo 2017;1689;1;3;2;5;4
EDISON ENERGIA S.P.A.;15/05/2017;Energia elettrica;65,32;IVA-Liquidazione Fattura Nr. 5750409826  del 12/04/2017 - Fornitura energia elettrica magazzino comunale mese di marzo 2017;1656;1;3;2;5;4
EDISON ENERGIA S.P.A.;15/05/2017;Energia elettrica;69,54;IVA-Liquidazione Fattura Nr. 5750409903  del 12/04/2017 - Fornitura energia elettrica uffici comunali Via Battisti mese di marzo 2017;1656;1;3;2;5;4
EDISON ENERGIA S.P.A.;15/05/2017;Energia elettrica;76,01;IVA-Liquidazione Fattura Nr. 5750410020  del 12/04/2017 - Fornitura energia elettrica nido comunale mese di marzo 2017;1687;1;3;2;5;4
EDISON ENERGIA S.P.A.;15/05/2017;Energia elettrica;82,23;IVA-Liquidazione Fattura Nr. 5750410093  del 12/04/2017 - Fornitura energia elettrica scuola infanzia Vinci mese di marzo 2017;1664;1;3;2;5;4
EDISON ENERGIA S.P.A.;15/05/2017;Energia elettrica;85,15;IVA-Liquidazione Fattura Nr. 5750410136  del 12/04/2017 - Fornitura energia elettrica residenza per anziani mese di marzo 2017;1694;1;3;2;5;4
EDISON ENERGIA S.P.A.;15/05/2017;Energia elettrica;88,26;IVA-Liquidazione Fattura Nr. 5750410178  del 12/04/2017 - Fornitura energia elettrica teatro misericordia mese di marzo 2017;1677;1;3;2;5;4
EDISON ENERGIA S.P.A.;15/05/2017;Energia elettrica;92,92;IVA-Liquidazione Fattura Nr. 5750410230  del 12/04/2017 - Fornitura energia elettrica biblioteca mese di marzo 2017;1673;1;3;2;5;4
EDISON ENERGIA S.P.A.;15/05/2017;Energia elettrica;118,51;IVA-Liquidazione Fattura Nr. 5750410464  del 12/04/2017 - Fornitura energia elettrica Palasport mese di marzo 2017;1680;1;3;2;5;4
EDISON ENERGIA S.P.A.;15/05/2017;Energia elettrica;129,50;IVA-Liquidazione Fattura Nr. 5750410532  del 12/04/2017 - Fornitura energia elettrica scuola primaria di Spicchio mese di marzo 2017;1667;1;3;2;5;4
EDISON ENERGIA S.P.A.;15/05/2017;Energia elettrica;130,76;IVA-Liquidazione Fattura Nr. 5750410540  del 12/04/2017 - Fornitura energia elettrica scuola infanzia Sovigliana mese di marzo 2017;1664;1;3;2;5;4
EDISON ENERGIA S.P.A.;15/05/2017;Energia elettrica;179,36;IVA-Liquidazione Fattura Nr. 5750410790  del 12/04/2017 - Fornitura energia elettrica scuola secondaria 1� grado di Sovigliana mese di marzo 2017;1671;1;3;2;5;4
EDISON ENERGIA S.P.A.;15/05/2017;Energia elettrica;96,15;IVA-Liquidazione Fattura Nr. 5750410841  del 12/04/2017 - Fornitura energia elettrica scuola primaria e secondaria di 1� grado di Vinci;1667;1;3;2;5;4
EDISON ENERGIA S.P.A.;15/05/2017;Energia elettrica;96,15;IVA-Liquidazione Fattura Nr. 5750410841  del 12/04/2017 - Fornitura energia elettrica scuola primaria e secondaria di 1� grado di Vinci;1671;1;3;2;5;4
EDISON ENERGIA S.P.A.;15/05/2017;Energia elettrica;211,52;IVA-Liquidazione Fattura Nr. 5750410898  del 12/04/2017 - Fornitura energia elettrica museo Leonardiano mese di marzo 2017;1676;1;3;2;5;4
EDISON ENERGIA S.P.A.;15/05/2017;Energia elettrica;219,69;IVA-Liquidazione Fattura Nr. 5750410917  del 12/04/2017 - Fornitura energia elettrica palazzina uzielli mese di marzo 2017;1676;1;3;2;5;4
EDISON ENERGIA S.P.A.;15/05/2017;Energia elettrica;236,54;IVA-Liquidazione Fattura Nr. 5750410941  del 12/04/2017 - Fornitura energia elettrica edificio comunale mese di marzo 2017;1656;1;3;2;5;4
EDISON ENERGIA S.P.A.;15/05/2017;Energia elettrica;6,00;Liquidazione Fattura Nr. 5750404928  del 12/04/2017 - Fornitura energia elettrica bagni pubblici mese di marzo 2017;1684;1;3;2;5;4
EDISON ENERGIA S.P.A.;15/05/2017;Energia elettrica;21,12;Liquidazione Fattura Nr. 5750405683  del 12/04/2017 - Fornitura energia elettrica locali ex macelli mese di marzo 2017;1656;1;3;2;5;4
EDISON ENERGIA S.P.A.;15/05/2017;Energia elettrica;21,12;Liquidazione Fattura Nr. 5750405718  del 12/04/2017 - Fornitura energia elettrica casa comparini mese di marzo 2017;1656;1;3;2;5;4
EDISON ENERGIA S.P.A.;15/05/2017;Energia elettrica;21,12;Liquidazione Fattura Nr. 5750405731  del 12/04/2017 - Fornitura energia elettrica uff. dismesso Via Torre, 3 mese di marzo 2017;1656;1;3;2;5;4
EDISON ENERGIA S.P.A.;15/05/2017;Energia elettrica;26,55;Liquidazione Fattura Nr. 5750406034  del 12/04/2017 - Fornitura energia elettrica alloggi Petroio mese di marzo 2017;1656;1;3;2;5;4
EDISON ENERGIA S.P.A.;15/05/2017;Energia elettrica;36,88;Liquidazione Fattura Nr. 5750406615  del 12/04/2017 - Fornitura energia elettrica ex scuola di Anchiano mese di marzo 2017;1656;1;3;2;5;4
EDISON ENERGIA S.P.A.;15/05/2017;Energia elettrica;38,25;Liquidazione Fattura Nr. 5750406639  del 12/04/2017 - fornitura  energia elettrica Via Poggio alla Cavalla;1656;1;3;2;5;4
EDISON ENERGIA S.P.A.;15/05/2017;Energia elettrica;44,11;Liquidazione Fattura Nr. 5750406795  del 12/04/2017 - Fornitura energia elettrica archivio comunale mese di marzo 2017;1658;1;3;2;5;4
EDISON ENERGIA S.P.A.;15/05/2017;Energia elettrica;45,46;Liquidazione Fattura Nr. 5750406826  del 12/04/2017 - Fornitura energia elettrica mercato settimanale e impianto irrigazione mese di Marzo 2017;1681;1;3;2;5;4
EDISON ENERGIA S.P.A.;15/05/2017;Energia elettrica;50,72;Liquidazione Fattura Nr. 5750406951  del 12/04/2017 - Fornitura energia elettrica uff. comunali Via Torre, 9 mese di marzo 2017;1656;1;3;2;5;4
EDISON ENERGIA S.P.A.;15/05/2017;Energia elettrica;50,85;Liquidazione Fattura Nr. 5750406954  del 12/04/2017 - Fornitura energia elettrica fontanello parco mille mese di marzo 2017;1686;1;3;2;5;4
EDISON ENERGIA S.P.A.;15/05/2017;Energia elettrica;81,65;Liquidazione Fattura Nr. 5750407775  del 12/04/2017 - Fornitura energia elettrica Cassa Espansione Piccaratico mese di Marzo 2017;1681;1;3;2;5;4
EDISON ENERGIA S.P.A.;15/05/2017;Energia elettrica;150,04;Liquidazione Fattura Nr. 5750408825  del 12/04/2017 - Fornitura energia elettrica area esterna campo sportivo Petroio mese di Marzo 2017;1680;1;3;2;5;4
EDISON ENERGIA S.P.A.;15/05/2017;Energia elettrica;154,69;Liquidazione Fattura Nr. 5750408857  del 12/04/2017 - Fornitura energia elettrica ufficio turistico nuovo mese di marzo 2017;1684;1;3;2;5;4
EDISON ENERGIA S.P.A.;15/05/2017;Energia elettrica;197,92;Liquidazione Fattura Nr. 5750409168  del 12/04/2017 - Fornitura energia elettrica uffici comunali URP Via Fucini;1658;1;3;2;5;4
EDISON ENERGIA S.P.A.;15/05/2017;Energia elettrica;198,54;Liquidazione Fattura Nr. 5750409171  del 12/04/2017 - Fornitura energia elettrica scuola infanzia Spicchio mese di marzo 2017;1664;1;3;2;5;4
EDISON ENERGIA S.P.A.;15/05/2017;Energia elettrica;214,16;Liquidazione Fattura Nr. 5750409291  del 12/04/2017 - Fornitura energia elettrica casa natale Leonardo mese di marzo 2017;1676;1;3;2;5;4
EDISON ENERGIA S.P.A.;15/05/2017;Energia elettrica;290,20;Liquidazione Fattura Nr. 5750409782  del 12/04/2017 - Fornitura energia elettrica Villa Reghini mese di marzo 2017;1689;1;3;2;5;4
EDISON ENERGIA S.P.A.;15/05/2017;Energia elettrica;296,92;Liquidazione Fattura Nr. 5750409826  del 12/04/2017 - Fornitura energia elettrica magazzino comunale mese di marzo 2017;1656;1;3;2;5;4
EDISON ENERGIA S.P.A.;15/05/2017;Energia elettrica;316,09;Liquidazione Fattura Nr. 5750409903  del 12/04/2017 - Fornitura energia elettrica uffici comunali Via Battisti mese di marzo 2017;1656;1;3;2;5;4
EDISON ENERGIA S.P.A.;15/05/2017;Energia elettrica;345,50;Liquidazione Fattura Nr. 5750410020  del 12/04/2017 - Fornitura energia elettrica nido comunale mese di marzo 2017;1687;1;3;2;5;4
EDISON ENERGIA S.P.A.;15/05/2017;Energia elettrica;373,77;Liquidazione Fattura Nr. 5750410093  del 12/04/2017 - Fornitura energia elettrica scuola infanzia Vinci mese di marzo 2017;1664;1;3;2;5;4
EDISON ENERGIA S.P.A.;15/05/2017;Energia elettrica;387,05;Liquidazione Fattura Nr. 5750410136  del 12/04/2017 - Fornitura energia elettrica residenza per anziani mese di marzo 2017;1694;1;3;2;5;4
EDISON ENERGIA S.P.A.;15/05/2017;Energia elettrica;401,17;Liquidazione Fattura Nr. 5750410178  del 12/04/2017 - Fornitura energia elettrica teatro misericordia mese di marzo 2017;1677;1;3;2;5;4
EDISON ENERGIA S.P.A.;15/05/2017;Energia elettrica;422,38;Liquidazione Fattura Nr. 5750410230  del 12/04/2017 - Fornitura energia elettrica biblioteca mese di marzo 2017;1673;1;3;2;5;4
EDISON ENERGIA S.P.A.;15/05/2017;Energia elettrica;538,67;Liquidazione Fattura Nr. 5750410464  del 12/04/2017 - Fornitura energia elettrica Palasport mese di marzo 2017;1680;1;3;2;5;4
EDISON ENERGIA S.P.A.;15/05/2017;Energia elettrica;588,65;Liquidazione Fattura Nr. 5750410532  del 12/04/2017 - Fornitura energia elettrica scuola primaria di Spicchio mese di marzo 2017;1667;1;3;2;5;4
EDISON ENERGIA S.P.A.;15/05/2017;Energia elettrica;594,36;Liquidazione Fattura Nr. 5750410540  del 12/04/2017 - Fornitura energia elettrica scuola infanzia Sovigliana mese di marzo 2017;1664;1;3;2;5;4
EDISON ENERGIA S.P.A.;15/05/2017;Energia elettrica;815,28;Liquidazione Fattura Nr. 5750410790  del 12/04/2017 - Fornitura energia elettrica scuola secondaria 1� grado di Sovigliana mese di marzo 2017;1671;1;3;2;5;4
EDISON ENERGIA S.P.A.;15/05/2017;Energia elettrica;437,05;Liquidazione Fattura Nr. 5750410841  del 12/04/2017 - Fornitura energia elettrica scuola primaria e secondaria di 1� grado di Vinci;1667;1;3;2;5;4
EDISON ENERGIA S.P.A.;15/05/2017;Energia elettrica;437,05;Liquidazione Fattura Nr. 5750410841  del 12/04/2017 - Fornitura energia elettrica scuola primaria e secondaria di 1� grado di Vinci;1671;1;3;2;5;4
EDISON ENERGIA S.P.A.;15/05/2017;Energia elettrica;961,46;Liquidazione Fattura Nr. 5750410898  del 12/04/2017 - Fornitura energia elettrica museo Leonardiano mese di marzo 2017;1676;1;3;2;5;4
EDISON ENERGIA S.P.A.;15/05/2017;Energia elettrica;998,57;Liquidazione Fattura Nr. 5750410917  del 12/04/2017 - Fornitura energia elettrica palazzina uzielli mese di marzo 2017;1676;1;3;2;5;4
EDISON ENERGIA S.P.A.;15/05/2017;Energia elettrica;1.075,20;Liquidazione Fattura Nr. 5750410941  del 12/04/2017 - Fornitura energia elettrica edificio comunale mese di marzo 2017;1656;1;3;2;5;4
EDISON ENERGIA S.P.A.;19/05/2017;Energia elettrica;123,68;IVA-Liquidazione Fattura Nr. 5750415330  del 20/04/2017 - Fornitura energia elettrica Area esterna campo sportivo Petroio marzo 2017 (aumento potenza);1748;1;3;2;5;4
EDISON ENERGIA S.P.A.;19/05/2017;Energia elettrica;562,17;Liquidazione Fattura Nr. 5750415330  del 20/04/2017 - Fornitura energia elettrica Area esterna campo sportivo Petroio marzo 2017 (aumento potenza);1748;1;3;2;5;4
ENERGRID S.P.A.;05/06/2017;Energia elettrica;2.745,27;IVA-Liquidazione Fattura Nr. 174013765  del 12/05/2017 (di cui Split per euro 2.745,27) - FORNITURA ENERGIA ELETTRICA PER PUBBLICA ILLUMINAZIONE-APRILE 2017;1923;1;3;2;5;4
ENERGRID S.P.A.;05/06/2017;Energia elettrica;12.478,51;Liquidazione Fattura Nr. 174013765  del 12/05/2017 - FORNITURA ENERGIA ELETTRICA PER PUBBLICA ILLUMINAZIONE-APRILE 2017;1923;1;3;2;5;4
GALA S.P.A.;05/06/2017;Energia elettrica;9,52;IVA-Liquidazione Fattura Nr. E000119440  del 15/05/2017 - FORNITURA ENERGIA ELETTRICA PER FONTANELLO VITOLINI;1924;1;3;2;5;4
GALA S.P.A.;05/06/2017;Energia elettrica;43,26;Liquidazione Fattura Nr. E000119440  del 15/05/2017 - FORNITURA ENERGIA ELETTRICA PER FONTANELLO VITOLINI;1924;1;3;2;5;4
EDISON ENERGIA S.P.A.;12/06/2017;Energia elettrica;208,44;IVA-LIQUIDAZIONE FATTURA NR. 5750419248  DEL 11/05/2017 (DI CUI SPLIT PER EURO 208,44) - IT001E04919523 -- FORNITURA ENERGIA ELETTRICA EDIFICIO COMUNALE APRILE 2017;1964;1;3;2;5;4
EDISON ENERGIA S.P.A.;12/06/2017;Energia elettrica;166,85;IVA-LIQUIDAZIONE FATTURA NR. 5750419442  DEL 11/05/2017 (DI CUI SPLIT PER EURO 166,85) - IT001E04919531 -- FORNITURA ENERGIA ELETTRICA MUSEO LEONARDIANO APRILE 2017;1973;1;3;2;5;4
EDISON ENERGIA S.P.A.;12/06/2017;Energia elettrica;138,01;IVA-LIQUIDAZIONE FATTURA NR. 5750419672  DEL 11/05/2017 (DI CUI SPLIT PER EURO 138,01) - IT001E04919528 -- FORNITURA ENERGIA ELETTRICA PALAZZINA UZIELLI APRILE 2017;1973;1;3;2;5;4
EDISON ENERGIA S.P.A.;12/06/2017;Energia elettrica;59,82;IVA-LIQUIDAZIONE FATTURA NR. 5750419814  DEL 11/05/2017 - IT001E04919520 -- FORNITURA ENERGIA ELETTRICA SCUOLA PRIMARIA E SECONDARIA DI 1� GRADO DI VINCI APRILE 2017;1969;1;3;2;5;4
EDISON ENERGIA S.P.A.;12/06/2017;Energia elettrica;59,81;IVA-LIQUIDAZIONE FATTURA NR. 5750419814  DEL 11/05/2017 - IT001E04919520 -- FORNITURA ENERGIA ELETTRICA SCUOLA PRIMARIA E SECONDARIA DI 1� GRADO DI VINCI APRILE 2017;1971;1;3;2;5;4
EDISON ENERGIA S.P.A.;12/06/2017;Energia elettrica;116,13;IVA-LIQUIDAZIONE FATTURA NR. 5750419853  DEL 11/05/2017 (DI CUI SPLIT PER EURO 116,13) - IT001E40886806 -- FORNITURA ENERGIA ELETTRICA SCUOLA SECONDARIA DI 1� GRADO  APRILE 2017;1971;1;3;2;5;4
EDISON ENERGIA S.P.A.;12/06/2017;Energia elettrica;95,68;IVA-LIQUIDAZIONE FATTURA NR. 5750420130  DEL 11/05/2017 (DI CUI SPLIT PER EURO 95,68) - IT001E04919538 -- FORNITURA ENERGIA ELETTRICA SCUOLA INFANZIA SOVIGLIANAAPRILE 2017;1967;1;3;2;5;4
EDISON ENERGIA S.P.A.;12/06/2017;Energia elettrica;87,75;IVA-LIQUIDAZIONE FATTURA NR. 5750420298  DEL 11/05/2017 (DI CUI SPLIT PER EURO 87,75) - IT001E04919516 -- FORNITURA ENERGIA ELETTRICA SCUOLA PRIMARIA VIA GUIDUCCI APRILE 2017;1969;1;3;2;5;4
EDISON ENERGIA S.P.A.;12/06/2017;Energia elettrica;85,29;IVA-LIQUIDAZIONE FATTURA NR. 5750420343  DEL 11/05/2017 (DI CUI SPLIT PER EURO 85,29) - IT001E40889726 -- FORNITURA ENERGIA ELETTRICA TEATRO MISERICORDIA APRILE 2017;1974;1;3;2;5;4
EDISON ENERGIA S.P.A.;12/06/2017;Energia elettrica;50,45;IVA-LIQUIDAZIONE FATTURA NR. 5750420368  DEL 11/05/2017 (DI CUI SPLIT PER EURO 50,45) - IT001E41412665 -- FORNITURA ENERGIA ELETTRICA PALASPORT APRILE 2017;1976;1;3;2;5;4
EDISON ENERGIA S.P.A.;12/06/2017;Energia elettrica;33,63;IVA-LIQUIDAZIONE FATTURA NR. 5750420368  DEL 11/05/2017 (DI CUI SPLIT PER EURO 84,08) - IT001E41412665 -- FORNITURA ENERGIA ELETTRICA PALASPORT APRILE 2017;1976;1;3;2;5;4
EDISON ENERGIA S.P.A.;12/06/2017;Energia elettrica;79,53;IVA-LIQUIDAZIONE FATTURA NR. 5750420419  DEL 11/05/2017 (DI CUI SPLIT PER EURO 79,53) - IT001E04919534 -- FORNITURA ENERGIA ELETTRICA RESIDENZA PER ANZIANI APRILE 2017;1986;1;3;2;5;4
EDISON ENERGIA S.P.A.;12/06/2017;Energia elettrica;61,25;IVA-LIQUIDAZIONE FATTURA NR. 5750420644  DEL 11/05/2017 (DI CUI SPLIT PER EURO 61,25) - IT001E04919529 -- FORNITURA ENERGIA ELETTRICA CASA NATALE LEONARDO APRILE 2017;1973;1;3;2;5;4
EDISON ENERGIA S.P.A.;12/06/2017;Energia elettrica;59,22;IVA-LIQUIDAZIONE FATTURA NR. 5750420672  DEL 11/05/2017 (DI CUI SPLIT PER EURO 59,22) - IT001E04919535 -- FORNITURA ENERGIA ELETTRICA SCUOLA INFANZIA VINCI APRILE 2017;1967;1;3;2;5;4
EDISON ENERGIA S.P.A.;12/06/2017;Energia elettrica;58,04;IVA-LIQUIDAZIONE FATTURA NR. 5750420706  DEL 11/05/2017 (DI CUI SPLIT PER EURO 58,04) - IT001E04919544 -- FORNITURA ENERGIA ELETTRICA MICRO NIDO APRILE 2017;1980;1;3;2;5;4
EDISON ENERGIA S.P.A.;12/06/2017;Energia elettrica;57,71;IVA-LIQUIDAZIONE FATTURA NR. 5750420712  DEL 11/05/2017 (DI CUI SPLIT PER EURO 57,71) - IT001E04919536 -- FORNITURA ENERGIA ELETTRICA UFFICIO COMUNALI VIA BATTISTI APRILE 2017;1964;1;3;2;5;4
EDISON ENERGIA S.P.A.;12/06/2017;Energia elettrica;56,48;IVA-LIQUIDAZIONE FATTURA NR. 5750420738  DEL 11/05/2017 (DI CUI SPLIT PER EURO 56,48) - IT001E04919521 -- FORNITURA ENERGIA ELETTRICA BIBLIOTECA APRILE 2017;1972;1;3;2;5;4
EDISON ENERGIA S.P.A.;12/06/2017;Energia elettrica;54,51;IVA-LIQUIDAZIONE FATTURA NR. 5750420790  DEL 11/05/2017 (DI CUI SPLIT PER EURO 54,51) - IT001E04919524 -- FORNITURA ENERGIA ELETTRICA MAGAZZINO COMUNALE APRILE 2017;1964;1;3;2;5;4
EDISON ENERGIA S.P.A.;12/06/2017;Energia elettrica;48,60;IVA-LIQUIDAZIONE FATTURA NR. 5750420998  DEL 11/05/2017 (DI CUI SPLIT PER EURO 48,60) - IT001E04919540 -- FORNITURA ENERGIA ELETTRICA VILLA REGHINI APRILE 2017;1982;1;3;2;5;4
EDISON ENERGIA S.P.A.;12/06/2017;Energia elettrica;34,07;IVA-LIQUIDAZIONE FATTURA NR. 5750421739  DEL 11/05/2017 (DI CUI SPLIT PER EURO 34,07) - IT001E43445285 -- FORNITURA ENERGIA ELETTRICA AREA ESTERNA CAMPO SPORTIVO PETROIO APRILE 2017;1976;1;3;2;5;4
EDISON ENERGIA S.P.A.;12/06/2017;Energia elettrica;33,25;IVA-LIQUIDAZIONE FATTURA NR. 5750421769  DEL 11/05/2017 (DI CUI SPLIT PER EURO 33,25) - IT001E04919519 -- FORNITURA ENERGIA ELETTRICA UFF. COMUNALI VIA FUCINI - URP APRILE 2017;1965;1;3;2;5;4
EDISON ENERGIA S.P.A.;12/06/2017;Energia elettrica;30,83;IVA-LIQUIDAZIONE FATTURA NR. 5750421845  DEL 11/05/2017 (DI CUI SPLIT PER EURO 30,83) - IT001E04919515 -- FORNITURA ENERGIA ELETTRICA SCUOLA INFANZIA SPICCHIO APRILE 2017;1967;1;3;2;5;4
EDISON ENERGIA S.P.A.;12/06/2017;Energia elettrica;22,96;IVA-LIQUIDAZIONE FATTURA NR. 5750422115  DEL 11/05/2017 - IT001E04919525 -- FORNITURA ENERGIA ELETTRICA UFFICIO TURISTICO NUOVO APRILE 2017;1978;1;3;2;5;4
EDISON ENERGIA S.P.A.;12/06/2017;Energia elettrica;16,32;IVA-LIQUIDAZIONE FATTURA NR. 5750422420  DEL 11/05/2017 (DI CUI SPLIT PER EURO 16,32) - IT001E04919517 -- FORNITURA ENERGIA ELETTRICA CASSA ESPANSIONE PICCARATICO NUOVO APRILE 2017;1977;1;3;2;5;4
EDISON ENERGIA S.P.A.;12/06/2017;Energia elettrica;12,94;IVA-LIQUIDAZIONE FATTURA NR. 5750422743  DEL 11/05/2017 (DI CUI SPLIT PER EURO 12,94) - IT001E04919527 -- FORNITURA ENERGIA ELETTRICA ARCHIVIO COMUNALE APRILE 2017;1965;1;3;2;5;4
EDISON ENERGIA S.P.A.;12/06/2017;Energia elettrica;11,44;IVA-LIQUIDAZIONE FATTURA NR. 5750422976  DEL 11/05/2017 (DI CUI SPLIT PER EURO 11,44) - IT001E04919532 -- FORNITURA ENERGIA ELETTRICA UFFICI COMUNALI VIA TORRE, 9 APRILE 2017;1964;1;3;2;5;4
EDISON ENERGIA S.P.A.;12/06/2017;Energia elettrica;10,71;IVA-LIQUIDAZIONE FATTURA NR. 5750423102  DEL 11/05/2017 (DI CUI SPLIT PER EURO 10,71) - IT001E41398842 -- FORNITURA ENERGIA ELETTRICA FONTANELLO PARCO MILLE APRILE 2017;1979;1;3;2;5;4
EDISON ENERGIA S.P.A.;12/06/2017;Energia elettrica;7,02;IVA-LIQUIDAZIONE FATTURA NR. 5750423840  DEL 11/05/2017 (DI CUI SPLIT PER EURO 7,02) - IT001E43270098 -- FORNITURA ENERGIA ELETTRICA VIA POGGIO ALLA CAVALLA APRILE 2017;1964;1;3;2;5;4
EDISON ENERGIA S.P.A.;12/06/2017;Energia elettrica;6,95;IVA-LIQUIDAZIONE FATTURA NR. 5750423850  DEL 11/05/2017 (DI CUI SPLIT PER EURO 6,95) - IT001E04919530 -- FORNITURA ENERGIA ELETTRICA EX SCUOLA DI ANCHIANO APRILE 2017;1964;1;3;2;5;4
EDISON ENERGIA S.P.A.;12/06/2017;Energia elettrica;6,14;IVA-LIQUIDAZIONE FATTURA NR. 5750424027  DEL 11/05/2017 (DI CUI SPLIT PER EURO 6,14) - IT001E04919543 -- FORNITURA ENERGIA ELETTRICA MERCATO SETTIMANALE E IMPIANTO IRRIGAZIONE APRILE 2017;1977;1;3;2;5;4
EDISON ENERGIA S.P.A.;12/06/2017;Energia elettrica;2,52;IVA-LIQUIDAZIONE FATTURA NR. 5750424124  DEL 11/05/2017 (DI CUI SPLIT PER EURO 2,52) - IT001E41741369 -- FORNITURA ENERGIA ELETTRICA ALLOGGI PETROIO APRILE 2017;1964;1;3;2;5;4
EDISON ENERGIA S.P.A.;12/06/2017;Energia elettrica;5,40;IVA-LIQUIDAZIONE FATTURA NR. 5750424128  DEL 11/05/2017 AL NETTO DI NOTA: N. 5750404038 DEL 12/04/2017 DI 0,59 (DI CUI SPLIT PER EURO 5,51) - IT001E04919518 -- FORNITURA ENERGIA ELETTRICA PILOMAT APRILE 2017;1977;1;3;2;5;4
EDISON ENERGIA S.P.A.;12/06/2017;Energia elettrica;4,60;IVA-LIQUIDAZIONE FATTURA NR. 5750424290  DEL 11/05/2017 (DI CUI SPLIT PER EURO 4,60) - IT001E40889318 -- FORNITURA ENERGIA ELETTRICA CASA COMPARINI APRILE 2017;1964;1;3;2;5;4
EDISON ENERGIA S.P.A.;12/06/2017;Energia elettrica;4,57;IVA-LIQUIDAZIONE FATTURA NR. 5750424317  DEL 11/05/2017 (DI CUI SPLIT PER EURO 4,57) - IT001E04919522 --FORNITURA ENERGIA ELETTRICA LOCALI EX MACELLI APRILE 2017;1964;1;3;2;5;4
EDISON ENERGIA S.P.A.;12/06/2017;Energia elettrica;4,54;IVA-LIQUIDAZIONE FATTURA NR. 5750424381  DEL 11/05/2017 (DI CUI SPLIT PER EURO 4,54) - IT001E04919533 -- FORNITURA ENERGIA ELETTRICA UFFICIO DISMESSO VIA TORRE, 3 APRILE 2017;1964;1;3;2;5;4
EDISON ENERGIA S.P.A.;12/06/2017;Energia elettrica;2,05;IVA-LIQUIDAZIONE FATTURA NR. 5750424702  DEL 11/05/2017 (DI CUI SPLIT PER EURO 2,05) - IT001E04919526 -- FORNITURA ENERGIA ELETTRICA BAGNI PUBBLICI APRILE 2017;1978;1;3;2;5;4
EDISON ENERGIA S.P.A.;12/06/2017;Energia elettrica;947,47;LIQUIDAZIONE FATTURA NR. 5750419248  DEL 11/05/2017 - IT001E04919523 -- FORNITURA ENERGIA ELETTRICA EDIFICIO COMUNALE APRILE 2017;1964;1;3;2;5;4
EDISON ENERGIA S.P.A.;12/06/2017;Energia elettrica;758,42;LIQUIDAZIONE FATTURA NR. 5750419442  DEL 11/05/2017 - IT001E04919531 -- FORNITURA ENERGIA ELETTRICA MUSEO LEONARDIANO APRILE 2017;1973;1;3;2;5;4
EDISON ENERGIA S.P.A.;12/06/2017;Energia elettrica;627,33;LIQUIDAZIONE FATTURA NR. 5750419672  DEL 11/05/2017 - IT001E04919528 -- FORNITURA ENERGIA ELETTRICA PALAZZINA UZIELLI APRILE 2017;1973;1;3;2;5;4
EDISON ENERGIA S.P.A.;12/06/2017;Energia elettrica;271,89;LIQUIDAZIONE FATTURA NR. 5750419814  DEL 11/05/2017 - IT001E04919520 -- FORNITURA ENERGIA ELETTRICA SCUOLA PRIMARIA E SECONDARIA DI 1� GRADO DI VINCI APRILE 2017;1969;1;3;2;5;4
EDISON ENERGIA S.P.A.;12/06/2017;Energia elettrica;271,90;LIQUIDAZIONE FATTURA NR. 5750419814  DEL 11/05/2017 - IT001E04919520 -- FORNITURA ENERGIA ELETTRICA SCUOLA PRIMARIA E SECONDARIA DI 1� GRADO DI VINCI APRILE 2017;1971;1;3;2;5;4
EDISON ENERGIA S.P.A.;12/06/2017;Energia elettrica;527,86;LIQUIDAZIONE FATTURA NR. 5750419853  DEL 11/05/2017 - IT001E40886806 -- FORNITURA ENERGIA ELETTRICA SCUOLA SECONDARIA DI 1� GRADO  APRILE 2017;1971;1;3;2;5;4
EDISON ENERGIA S.P.A.;12/06/2017;Energia elettrica;434,93;LIQUIDAZIONE FATTURA NR. 5750420130  DEL 11/05/2017 - IT001E04919538 -- FORNITURA ENERGIA ELETTRICA SCUOLA INFANZIA SOVIGLIANAAPRILE 2017;1967;1;3;2;5;4
EDISON ENERGIA S.P.A.;12/06/2017;Energia elettrica;398,85;LIQUIDAZIONE FATTURA NR. 5750420298  DEL 11/05/2017 - IT001E04919516 -- FORNITURA ENERGIA ELETTRICA SCUOLA PRIMARIA VIA GUIDUCCI APRILE 2017;1969;1;3;2;5;4
EDISON ENERGIA S.P.A.;12/06/2017;Energia elettrica;387,70;LIQUIDAZIONE FATTURA NR. 5750420343  DEL 11/05/2017 - IT001E40889726 -- FORNITURA ENERGIA ELETTRICA TEATRO MISERICORDIA APRILE 2017;1974;1;3;2;5;4
EDISON ENERGIA S.P.A.;12/06/2017;Energia elettrica;382,17;LIQUIDAZIONE FATTURA NR. 5750420368  DEL 11/05/2017 - IT001E41412665 -- FORNITURA ENERGIA ELETTRICA PALASPORT APRILE 2017;1976;1;3;2;5;4
EDISON ENERGIA S.P.A.;12/06/2017;Energia elettrica;361,48;LIQUIDAZIONE FATTURA NR. 5750420419  DEL 11/05/2017 - IT001E04919534 -- FORNITURA ENERGIA ELETTRICA RESIDENZA PER ANZIANI APRILE 2017;1986;1;3;2;5;4
EDISON ENERGIA S.P.A.;12/06/2017;Energia elettrica;278,42;LIQUIDAZIONE FATTURA NR. 5750420644  DEL 11/05/2017 - IT001E04919529 -- FORNITURA ENERGIA ELETTRICA CASA NATALE LEONARDO APRILE 2017;1973;1;3;2;5;4
EDISON ENERGIA S.P.A.;12/06/2017;Energia elettrica;269,19;LIQUIDAZIONE FATTURA NR. 5750420672  DEL 11/05/2017 - IT001E04919535 -- FORNITURA ENERGIA ELETTRICA SCUOLA INFANZIA VINCI APRILE 2017;1967;1;3;2;5;4
EDISON ENERGIA S.P.A.;12/06/2017;Energia elettrica;263,83;LIQUIDAZIONE FATTURA NR. 5750420706  DEL 11/05/2017 - IT001E04919544 -- FORNITURA ENERGIA ELETTRICA MICRO NIDO APRILE 2017;1980;1;3;2;5;4
EDISON ENERGIA S.P.A.;12/06/2017;Energia elettrica;262,34;LIQUIDAZIONE FATTURA NR. 5750420712  DEL 11/05/2017 - IT001E04919536 -- FORNITURA ENERGIA ELETTRICA UFFICIO COMUNALI VIA BATTISTI APRILE 2017;1964;1;3;2;5;4
EDISON ENERGIA S.P.A.;12/06/2017;Energia elettrica;256,74;LIQUIDAZIONE FATTURA NR. 5750420738  DEL 11/05/2017 - IT001E04919521 -- FORNITURA ENERGIA ELETTRICA BIBLIOTECA APRILE 2017;1972;1;3;2;5;4
EDISON ENERGIA S.P.A.;12/06/2017;Energia elettrica;247,78;LIQUIDAZIONE FATTURA NR. 5750420790  DEL 11/05/2017 - IT001E04919524 -- FORNITURA ENERGIA ELETTRICA MAGAZZINO COMUNALE APRILE 2017;1964;1;3;2;5;4
EDISON ENERGIA S.P.A.;12/06/2017;Energia elettrica;220,91;LIQUIDAZIONE FATTURA NR. 5750420998  DEL 11/05/2017 - IT001E04919540 -- FORNITURA ENERGIA ELETTRICA VILLA REGHINI APRILE 2017;1982;1;3;2;5;4
EDISON ENERGIA S.P.A.;12/06/2017;Energia elettrica;154,86;LIQUIDAZIONE FATTURA NR. 5750421739  DEL 11/05/2017 - IT001E43445285 -- FORNITURA ENERGIA ELETTRICA AREA ESTERNA CAMPO SPORTIVO PETROIO APRILE 2017;1976;1;3;2;5;4
EDISON ENERGIA S.P.A.;12/06/2017;Energia elettrica;151,14;LIQUIDAZIONE FATTURA NR. 5750421769  DEL 11/05/2017 - IT001E04919519 -- FORNITURA ENERGIA ELETTRICA UFF. COMUNALI VIA FUCINI - URP APRILE 2017;1965;1;3;2;5;4
EDISON ENERGIA S.P.A.;12/06/2017;Energia elettrica;140,13;LIQUIDAZIONE FATTURA NR. 5750421845  DEL 11/05/2017 - IT001E04919515 -- FORNITURA ENERGIA ELETTRICA SCUOLA INFANZIA SPICCHIO APRILE 2017;1967;1;3;2;5;4
EDISON ENERGIA S.P.A.;12/06/2017;Energia elettrica;104,36;LIQUIDAZIONE FATTURA NR. 5750422115  DEL 11/05/2017 - IT001E04919525 -- FORNITURA ENERGIA ELETTRICA UFFICIO TURISTICO NUOVO APRILE 2017;1978;1;3;2;5;4
EDISON ENERGIA S.P.A.;12/06/2017;Energia elettrica;74,20;LIQUIDAZIONE FATTURA NR. 5750422420  DEL 11/05/2017 - IT001E04919517 -- FORNITURA ENERGIA ELETTRICA CASSA ESPANSIONE PICCARATICO NUOVO APRILE 2017;1977;1;3;2;5;4
EDISON ENERGIA S.P.A.;12/06/2017;Energia elettrica;58,84;LIQUIDAZIONE FATTURA NR. 5750422743  DEL 11/05/2017 - IT001E04919527 -- FORNITURA ENERGIA ELETTRICA ARCHIVIO COMUNALE APRILE 2017;1965;1;3;2;5;4
EDISON ENERGIA S.P.A.;12/06/2017;Energia elettrica;51,99;LIQUIDAZIONE FATTURA NR. 5750422976  DEL 11/05/2017 - IT001E04919532 -- FORNITURA ENERGIA ELETTRICA UFFICI COMUNALI VIA TORRE, 9 APRILE 2017;1964;1;3;2;5;4
EDISON ENERGIA S.P.A.;12/06/2017;Energia elettrica;48,68;LIQUIDAZIONE FATTURA NR. 5750423102  DEL 11/05/2017 - IT001E41398842 -- FORNITURA ENERGIA ELETTRICA FONTANELLO PARCO MILLE APRILE 2017;1979;1;3;2;5;4
EDISON ENERGIA S.P.A.;12/06/2017;Energia elettrica;31,89;LIQUIDAZIONE FATTURA NR. 5750423840  DEL 11/05/2017 - IT001E43270098 -- FORNITURA ENERGIA ELETTRICA VIA POGGIO ALLA CAVALLA APRILE 2017;1964;1;3;2;5;4
EDISON ENERGIA S.P.A.;12/06/2017;Energia elettrica;31,61;LIQUIDAZIONE FATTURA NR. 5750423850  DEL 11/05/2017 - IT001E04919530 -- FORNITURA ENERGIA ELETTRICA EX SCUOLA DI ANCHIANO APRILE 2017;1964;1;3;2;5;4
EDISON ENERGIA S.P.A.;12/06/2017;Energia elettrica;27,92;LIQUIDAZIONE FATTURA NR. 5750424027  DEL 11/05/2017 - IT001E04919543 -- FORNITURA ENERGIA ELETTRICA MERCATO SETTIMANALE E IMPIANTO IRRIGAZIONE APRILE 2017;1977;1;3;2;5;4
EDISON ENERGIA S.P.A.;12/06/2017;Energia elettrica;25,19;LIQUIDAZIONE FATTURA NR. 5750424124  DEL 11/05/2017 - IT001E41741369 -- FORNITURA ENERGIA ELETTRICA ALLOGGI PETROIO APRILE 2017;1964;1;3;2;5;4
EDISON ENERGIA S.P.A.;12/06/2017;Energia elettrica;24,58;LIQUIDAZIONE FATTURA NR. 5750424128  DEL 11/05/2017 AL NETTO DI NOTA: N. 5750404038 DEL 12/04/2017 DI 0,59 - IT001E04919518 -- FORNITURA ENERGIA ELETTRICA PILOMAT APRILE 2017;1977;1;3;2;5;4
EDISON ENERGIA S.P.A.;12/06/2017;Energia elettrica;20,91;LIQUIDAZIONE FATTURA NR. 5750424290  DEL 11/05/2017 - IT001E40889318 -- FORNITURA ENERGIA ELETTRICA CASA COMPARINI APRILE 2017;1964;1;3;2;5;4
EDISON ENERGIA S.P.A.;12/06/2017;Energia elettrica;20,77;LIQUIDAZIONE FATTURA NR. 5750424317  DEL 11/05/2017 - IT001E04919522 --FORNITURA ENERGIA ELETTRICA LOCALI EX MACELLI APRILE 2017;1964;1;3;2;5;4
EDISON ENERGIA S.P.A.;12/06/2017;Energia elettrica;20,62;LIQUIDAZIONE FATTURA NR. 5750424381  DEL 11/05/2017 - IT001E04919533 -- FORNITURA ENERGIA ELETTRICA UFFICIO DISMESSO VIA TORRE, 3 APRILE 2017;1964;1;3;2;5;4
EDISON ENERGIA S.P.A.;12/06/2017;Energia elettrica;9,30;LIQUIDAZIONE FATTURA NR. 5750424702  DEL 11/05/2017 - IT001E04919526 -- FORNITURA ENERGIA ELETTRICA BAGNI PUBBLICI APRILE 2017;1978;1;3;2;5;4
AUTOGAMMA DI DIMITRIO P. & C. SNC;13/04/2017;Equipaggiamento;360,66;IVA-Liqu. Fattura Nr. 3  del 01/02/2017 (di cui Split per euro 360,66) - FORNITURA ABBIGLIAMENTO DPI PER IL PERSONALE ESTERNO Fattura Nr. 3 del 01-02-2017;1337;1;3;1;2;3
AUTOGAMMA DI DIMITRIO P. & C. SNC;13/04/2017;Equipaggiamento;718,03;IVA-Liqu. Fattura Nr. 3  del 01/02/2017 (di cui Split per euro 718,03) - FORNITURA ABBIGLIAMENTO DPI PER IL PERSONALE ESTERNO Fattura Nr. 3 del 01-02-2017;1339;1;3;1;2;3
AUTOGAMMA DI DIMITRIO P. & C. SNC;13/04/2017;Equipaggiamento;721,31;IVA-Liqu. Fattura Nr. 3  del 01/02/2017 (di cui Split per euro 721,31) - FORNITURA ABBIGLIAMENTO DPI PER IL PERSONALE ESTERNO Fattura Nr. 3 del 01-02-2017;1338;1;3;1;2;3
AUTOGAMMA DI DIMITRIO P. & C. SNC;13/04/2017;Equipaggiamento;1.639,34;Liquidazione Fattura Nr. 3  del 01/02/2017 - FORNITURA ABBIGLIAMENTO DPI PER IL PERSONALE ESTERNO;1337;1;3;1;2;3
AUTOGAMMA DI DIMITRIO P. & C. SNC;13/04/2017;Equipaggiamento;3.278,69;Liquidazione Fattura Nr. 3  del 01/02/2017 - FORNITURA ABBIGLIAMENTO DPI PER IL PERSONALE ESTERNO;1338;1;3;1;2;3
AUTOGAMMA DI DIMITRIO P. & C. SNC;13/04/2017;Equipaggiamento;3.263,77;Liquidazione Fattura Nr. 3  del 01/02/2017 - FORNITURA ABBIGLIAMENTO DPI PER IL PERSONALE ESTERNO;1339;1;3;1;2;3
BINI S.R.L. - MANIFATTURA SPECCHI E     VETRI;14/04/2017;Fabbricati ad uso scolastico;279,40;IVA - Liquidazione Fattura Nr. 717/E  del 31/12/2016 (di cui Split per euro 279,40) - FORNITURA E POSA SPECCHI PRESSO SCUOLA SIBILLA ALERAMO;1375;2;2;1;9;3
BINI S.R.L. - MANIFATTURA SPECCHI E     VETRI;14/04/2017;Fabbricati ad uso scolastico;1.270,00;Liquidazione Fattura Nr. 717/E  del 31/12/2016 - FORNITURA E POSA SPECCHI PRESSO SCUOLA SIBILLA ALERAMO;1375;2;2;1;9;3
STUDIO TECNICO SALVAGGIO MICHELE & MARCHETTI DANIELE;15/05/2017;Fabbricati ad uso scolastico;1.669,30;LIQUIDAZIONE FATTURA NR. 03/PA  DEL 23/03/2017 - PRESTAZIONI PROFESSIONALI RIFERITE ALLA SCUOLA PRIMARIA SIBILLA ALERAMO: INTEGRAZIONE AD INCARICO PER DL PREVENZIONE INCENDI, DL E PROGETTAZIONE ESECUTIVA IMPIANTO ELETTRICO;1703;2;2;1;9;3
SICURING S.R.L.;19/05/2017;Fabbricati ad uso scolastico;1.363,65;IVA - Liquidazione Fattura Nr. 15/PA  del 27/03/2017 - Fornitura generica;1751;2;2;1;9;3
SICURING S.R.L.;19/05/2017;Fabbricati ad uso scolastico;6.198,40;Liquidazione Fattura Nr. 15/PA  del 27/03/2017 - Fornitura generica;1751;2;2;1;9;3
STUDIO TECNICO SALVAGGIO MICHELE & MARCHETTI DANIELE;07/06/2017;Fabbricati ad uso scolastico;3.462,95;LIQUIDAZIONE FATTURA NR. 05/PA  DEL 10/04/2017 - ACCONTO N2 PER PRESTAZIONI PROFESSIONALI RIFERITE ALLA SCUOLA PRIMARIA SIBILLA ALERAMO: INCARICO PER PREVENZIONE INCENDI E PROGETTAZIONE ESECUTIVA IMPIANTO ELETTRICO;1947;2;2;1;9;3
STUDIO TECNICO SALVAGGIO MICHELE & MARCHETTI DANIELE;15/06/2017;Fabbricati ad uso scolastico;5.916,81;LIQUIDAZIONE FATTURA NR. 07/PA  DEL 09/05/2017 - ACCONTO N1 PER PRESTAZIONI PROFESSIONALI RIFERITE ALLA SCUOLA PRIMARIA SIBILLA ALERAMO: INCARICO DI DIREZIONE LAVORI PER LA PREVENZIONE INCENDI E LA REALIZZAZIONE DELL'IMPIANTO ELETTRICO;2002;2;2;1;9;3
ENERGETIC S.P.A.;13/04/2017;Gas;91,41;IVA - Liquidazione Fattura Nr. EX11687/2017  del 13/03/2017 - FORNITURA RISCALDAMENTO SCUOLA INFANZIA DI VINCI;1305;1;3;2;5;6
ENERGETIC S.P.A.;13/04/2017;Gas;82,33;IVA - Liquidazione Fattura Nr. EX11688/2017  del 13/03/2017 - FORNITURA RISCALDAMENTO SCUOLA INFANZIA DI SPICCHIO;1305;1;3;2;5;6
ENERGETIC S.P.A.;13/04/2017;Gas;236,43;IVA - Liquidazione Fattura Nr. EX12032/2017  del 13/03/2017 - FORNITURA RISCALDAMENTO SCUOLA INFANZIA DI SOVIGLIANA;1305;1;3;2;5;6
ENERGETIC S.P.A.;13/04/2017;Gas;158,24;IVA - Liquidazione Fattura Nr. EX12130/2017  del 13/03/2017 - FORNITURA RISCALDAMENTO NIDO;1309;1;3;2;5;6
ENERGETIC S.P.A.;13/04/2017;Gas;97,30;IVA - Liquidazione Fattura Nr. EX12131/2017  del 13/03/2017 - FORNITURA RISCALDAMENTO VILLA REGHINI;1310;1;3;2;5;6
ENERGETIC S.P.A.;13/04/2017;Gas;399,08;IVA - Liquidazione Fattura Nr. EX12157/2017  del 13/03/2017 - FORNITURA RISCALDAMENTO SCUOLA SECONDARIA DI PRIMO GRADO DI SOVIGLIANA;1307;1;3;2;5;6
ENERGETIC S.P.A.;13/04/2017;Gas;398,82;IVA - Liquidazione Fattura Nr. EX12158/2017  del 13/03/2017 - FORNITURA RISCALDAMENTO SCUOLA PRIMARIA DI SPICCHIO;1306;1;3;2;5;6
ENERGETIC S.P.A.;13/04/2017;Gas;73,42;IVA - Liquidazione Fattura Nr. EX12160/2017  del 13/03/2017 - FORNITURA RISCALDAMENTO UFFICI SPICCHIO;1304;1;3;2;5;6
ENERGETIC S.P.A.;13/04/2017;Gas;247,70;IVA - Liquidazione Fattura Nr. EX12172/2017  del 13/03/2017 - FORNITURA RISCALDAMENTO R.S.A.;1311;1;3;2;5;6
ENERGETIC S.P.A.;13/04/2017;Gas;173,16;IVA - Liquidazione Fattura Nr. EX12198/2017  del 13/03/2017 - FORNITURA RISCALDAMENTO PALAZZO COMUNALE;1304;1;3;2;5;6
ENERGETIC S.P.A.;13/04/2017;Gas;194,93;IVA - Liquidazione Fattura Nr. EX12201/2017  del 13/03/2017 - FORNITURA RISCALDAMENTO MAGAZZINO;1304;1;3;2;5;6
ENERGETIC S.P.A.;13/04/2017;Gas;212,91;IVA - Liquidazione Fattura Nr. EX12212/2017  del 13/03/2017 - FORNITURA RISCALDAMENTO SCUOLA PRIMARIA E SECONDARIA DI PRIMO GRADO VINCI;1306;1;3;2;5;6
ENERGETIC S.P.A.;13/04/2017;Gas;212,90;IVA - Liquidazione Fattura Nr. EX12212/2017  del 13/03/2017 - FORNITURA RISCALDAMENTO SCUOLA PRIMARIA E SECONDARIA DI PRIMO GRADO VINCI;1307;1;3;2;5;6
ENERGETIC S.P.A.;13/04/2017;Gas;72,70;IVA - Liquidazione Fattura Nr. EX12216/2017  del 13/03/2017 - FORNITURA RISCALDAMENTO PALASPORT 40%;1308;1;3;2;5;6
ENERGETIC S.P.A.;13/04/2017;Gas;109,50;IVA - Liquidazione Fattura Nr. EX12216/2017  del 13/03/2017 - FORNITURA RISCALDAMENTO PALASPORT 60%;1308;1;3;2;5;6
ENERGETIC S.P.A.;13/04/2017;Gas;415,50;Liquidazione Fattura Nr. EX11687/2017  del 13/03/2017 - FORNITURA RISCALDAMENTO SCUOLA INFANZIA DI VINCI;1305;1;3;2;5;6
ENERGETIC S.P.A.;13/04/2017;Gas;374,22;Liquidazione Fattura Nr. EX11688/2017  del 13/03/2017 - FORNITURA RISCALDAMENTO SCUOLA INFANZIA DI SPICCHIO;1305;1;3;2;5;6
ENERGETIC S.P.A.;13/04/2017;Gas;1.074,70;Liquidazione Fattura Nr. EX12032/2017  del 13/03/2017 - FORNITURA RISCALDAMENTO SCUOLA INFANZIA DI SOVIGLIANA;1305;1;3;2;5;6
ENERGETIC S.P.A.;13/04/2017;Gas;719,28;Liquidazione Fattura Nr. EX12130/2017  del 13/03/2017 - FORNITURA RISCALDAMENTO NIDO;1309;1;3;2;5;6
ENERGETIC S.P.A.;13/04/2017;Gas;442,25;Liquidazione Fattura Nr. EX12131/2017  del 13/03/2017 - FORNITURA RISCALDAMENTO VILLA REGHINI;1310;1;3;2;5;6
ENERGETIC S.P.A.;13/04/2017;Gas;1.813,98;Liquidazione Fattura Nr. EX12157/2017  del 13/03/2017 - FORNITURA RISCALDAMENTO SCUOLA SECONDARIA DI PRIMO GRADO DI SOVIGLIANA;1307;1;3;2;5;6
ENERGETIC S.P.A.;13/04/2017;Gas;1.812,81;Liquidazione Fattura Nr. EX12158/2017  del 13/03/2017 - FORNITURA RISCALDAMENTO SCUOLA PRIMARIA DI SPICCHIO;1306;1;3;2;5;6
ENERGETIC S.P.A.;13/04/2017;Gas;333,73;Liquidazione Fattura Nr. EX12160/2017  del 13/03/2017 - FORNITURA RISCALDAMENTO UFFICI SPICCHIO;1304;1;3;2;5;6
ENERGETIC S.P.A.;13/04/2017;Gas;1.125,93;Liquidazione Fattura Nr. EX12172/2017  del 13/03/2017 - FORNITURA RISCALDAMENTO R.S.A.;1311;1;3;2;5;6
ENERGETIC S.P.A.;13/04/2017;Gas;787,09;Liquidazione Fattura Nr. EX12198/2017  del 13/03/2017 - FORNITURA RISCALDAMENTO PALAZZO COMUNALE;1304;1;3;2;5;6
ENERGETIC S.P.A.;13/04/2017;Gas;886,05;Liquidazione Fattura Nr. EX12201/2017  del 13/03/2017 - FORNITURA RISCALDAMENTO MAGAZZINO;1304;1;3;2;5;6
ENERGETIC S.P.A.;13/04/2017;Gas;967,78;Liquidazione Fattura Nr. EX12212/2017  del 13/03/2017 - FORNITURA RISCALDAMENTO SCUOLA PRIMARIA E SECONDARIA DI PRIMO GRADO VINCI;1306;1;3;2;5;6
ENERGETIC S.P.A.;13/04/2017;Gas;967,78;Liquidazione Fattura Nr. EX12212/2017  del 13/03/2017 - FORNITURA RISCALDAMENTO SCUOLA PRIMARIA E SECONDARIA DI PRIMO GRADO VINCI;1307;1;3;2;5;6
ENERGETIC S.P.A.;13/04/2017;Gas;330,45;Liquidazione Fattura Nr. EX12216/2017  del 13/03/2017 - FORNITURA RISCALDAMENTO PALASPORT 40%;1308;1;3;2;5;6
ENERGETIC S.P.A.;13/04/2017;Gas;495,90;Liquidazione Fattura Nr. EX12216/2017  del 13/03/2017 - FORNITURA RISCALDAMENTO PALASPORT 60%;1308;1;3;2;5;6
ENERGETIC S.P.A.;02/05/2017;Gas;87,77;IVA - LIQUIDAZIONE FATTURA NR. EX00463/2017  DEL 10/01/2017 - FORNITURA RISCALDAMENTO SCUOLA INFANZIA DI VINCI;1545;1;3;2;5;6
ENERGETIC S.P.A.;02/05/2017;Gas;94,62;IVA - LIQUIDAZIONE FATTURA NR. EX00464/2017  DEL 10/01/2017 - FORNITURA RISCALDAMENTO SCUOLA INFANZIA SPICCHIO;1545;1;3;2;5;6
ENERGETIC S.P.A.;02/05/2017;Gas;186,98;IVA - LIQUIDAZIONE FATTURA NR. EX00810/2017  DEL 10/01/2017 - FORNITURA RISCALDAMENTO SCUOLA INFANZIA DI SOVIGLIANA;1544;1;3;2;5;6
ENERGETIC S.P.A.;02/05/2017;Gas;69,84;IVA - LIQUIDAZIONE FATTURA NR. EX00810/2017  DEL 10/01/2017 - FORNITURA RISCALDAMENTO SCUOLA INFANZIA DI SOVIGLIANA;1545;1;3;2;5;6
ENERGETIC S.P.A.;02/05/2017;Gas;98,44;IVA - LIQUIDAZIONE FATTURA NR. EX00908/2017  DEL 10/01/2017 - FORNITURA RISCALDAMENTO NIDO;1552;1;3;2;5;6
ENERGETIC S.P.A.;02/05/2017;Gas;38,36;IVA - LIQUIDAZIONE FATTURA NR. EX00908/2017  DEL 10/01/2017 - FORNITURA RISCALDAMENTO NIDO;1553;1;3;2;5;6
ENERGETIC S.P.A.;02/05/2017;Gas;111,59;IVA - LIQUIDAZIONE FATTURA NR. EX00909/2017  DEL 10/01/2017 - FORNITURA RISCALDAMENTO VILLA REGHINI;1554;1;3;2;5;6
ENERGETIC S.P.A.;02/05/2017;Gas;187,75;IVA - LIQUIDAZIONE FATTURA NR. EX00935/2017  DEL 10/01/2017 - FORNITURA RISCALDAMENTO SCUOLA SECONDARIA DI PRIMO GRADO SOVIGLIANA;1548;1;3;2;5;6
ENERGETIC S.P.A.;02/05/2017;Gas;147,16;IVA - LIQUIDAZIONE FATTURA NR. EX00935/2017  DEL 10/01/2017 - FORNITURA RISCALDAMENTO SCUOLA SECONDARIA DI PRIMO GRADO SOVIGLIANA;1549;1;3;2;5;6
ENERGETIC S.P.A.;02/05/2017;Gas;68,16;IVA - LIQUIDAZIONE FATTURA NR. EX00936/2017  DEL 10/01/2017 - FORNITURA RISCALDAMENTO SCUOLA PRIMARIA DI SPICCHIO;1546;1;3;2;5;6
ENERGETIC S.P.A.;02/05/2017;Gas;231,72;IVA - LIQUIDAZIONE FATTURA NR. EX00936/2017  DEL 10/01/2017 - FORNITURA RISCALDAMENTO SCUOLA PRIMARIA DI SPICCHIO;1547;1;3;2;5;6
ENERGETIC S.P.A.;02/05/2017;Gas;84,43;IVA - LIQUIDAZIONE FATTURA NR. EX00938/2017  DEL 10/01/2017 - FORNITURA RISCALDAMENTO UFFICI SPICCHIO;1543;1;3;2;5;6
ENERGETIC S.P.A.;02/05/2017;Gas;118,00;IVA - LIQUIDAZIONE FATTURA NR. EX00950/2017  DEL 10/01/2017 - FORNITURA RISCALDAMENTO R.S.A.;1555;1;3;2;5;6
ENERGETIC S.P.A.;02/05/2017;Gas;155,47;IVA - LIQUIDAZIONE FATTURA NR. EX00950/2017  DEL 10/01/2017 - FORNITURA RISCALDAMENTO R.S.A.;1556;1;3;2;5;6
ENERGETIC S.P.A.;02/05/2017;Gas;92,38;IVA - LIQUIDAZIONE FATTURA NR. EX00976/2017  DEL 10/01/2017 - FORNITURA RISCALDAMENTO PALAZZO COMUNALE;1542;1;3;2;5;6
ENERGETIC S.P.A.;02/05/2017;Gas;80,87;IVA - LIQUIDAZIONE FATTURA NR. EX00976/2017  DEL 10/01/2017 - FORNITURA RISCALDAMENTO PALAZZO COMUNALE;1543;1;3;2;5;6
ENERGETIC S.P.A.;02/05/2017;Gas;124,13;IVA - LIQUIDAZIONE FATTURA NR. EX00979/2017  DEL 10/01/2017 - FORNITURA RISCALDAMENTO MAGAZZINO;1543;1;3;2;5;6
ENERGETIC S.P.A.;02/05/2017;Gas;176,63;IVA - LIQUIDAZIONE FATTURA NR. EX00990/2017  DEL 10/01/2017 - FORNITURA RISCALDAMENTO SCUOLA PRIMARIA E SECONDARIA DI PRIMO GRADO VINCI;1547;1;3;2;5;6
ENERGETIC S.P.A.;02/05/2017;Gas;176,63;IVA - LIQUIDAZIONE FATTURA NR. EX00990/2017  DEL 10/01/2017 - FORNITURA RISCALDAMENTO SCUOLA PRIMARIA E SECONDARIA DI PRIMO GRADO VINCI;1549;1;3;2;5;6
ENERGETIC S.P.A.;02/05/2017;Gas;93,16;IVA - LIQUIDAZIONE FATTURA NR. EX00994/2017  DEL 10/01/2017 - FORNITURA RISCALDAMENTO PALASPORT;1550;1;3;2;5;6
ENERGETIC S.P.A.;02/05/2017;Gas;131,86;IVA - LIQUIDAZIONE FATTURA NR. EX00994/2017  DEL 10/01/2017 - FORNITURA RISCALDAMENTO PALASPORT;1551;1;3;2;5;6
ENERGETIC S.P.A.;02/05/2017;Gas;5,19;IVA - LIQUIDAZIONE FATTURA NR. EX39931/2016  DEL 21/11/2016 - FORNITURA RISCALDAMENTO SCUOLA INFANZIA VINCI;1558;1;3;2;5;6
ENERGETIC S.P.A.;02/05/2017;Gas;12,47;IVA - LIQUIDAZIONE FATTURA NR. EX39932/2016  DEL 21/11/2016 - FORNITURA RISCALDAMENTO SCUOLA INFANZIA DI SPICCHIO;1558;1;3;2;5;6
ENERGETIC S.P.A.;02/05/2017;Gas;73,17;IVA - LIQUIDAZIONE FATTURA NR. EX40379/2016  DEL 21/11/2016 - FORNITURA RISCALDAMENTO SCUOLA INFANZIA DI SOVIGLIANA;1558;1;3;2;5;6
ENERGETIC S.P.A.;02/05/2017;Gas;15,62;IVA - LIQUIDAZIONE FATTURA NR. EX40496/2016  DEL 21/11/2016 - FORNITURA RISCALDAMENTO NIDO;1562;1;3;2;5;6
ENERGETIC S.P.A.;02/05/2017;Gas;14,53;IVA - LIQUIDAZIONE FATTURA NR. EX40497/2016  DEL 21/11/2016 - FORNITURA RISCALDAMENTO VILLA REGHINI;1563;1;3;2;5;6
ENERGETIC S.P.A.;02/05/2017;Gas;5,19;IVA - LIQUIDAZIONE FATTURA NR. EX40526/2016  DEL 21/11/2016 - FORNITURA RISCALDAMENTO SCUOLA SECONDARIA DI PRIMO GRADO SOVIGLIANA;1560;1;3;2;5;6
ENERGETIC S.P.A.;02/05/2017;Gas;5,19;IVA - Liquidazione Fattura Nr. EX40527/2016  del 21/11/2016 - FORNITURA RISCALDAMENTO SCUOLA PRIMARIA DI SPICCHIO;1559;1;3;2;5;6
ENERGETIC S.P.A.;02/05/2017;Gas;11,14;IVA - LIQUIDAZIONE FATTURA NR. EX40529/2016  DEL 21/11/2016 - FORNITURA RISCALDAMENTO UFFICI SPICCHIO;1557;1;3;2;5;6
ENERGETIC S.P.A.;02/05/2017;Gas;51,82;IVA - LIQUIDAZIONE FATTURA NR. EX40542/2016  DEL 21/11/2016 - FORNITURA RISCALDAMENTO R.S.A.;1564;1;3;2;5;6
ENERGETIC S.P.A.;02/05/2017;Gas;5,19;IVA - LIQUIDAZIONE FATTURA NR. EX40570/2016  DEL 21/11/2016 - FORNITURA RISCALDAMENTO PALAZZO COMUNALE;1557;1;3;2;5;6
ENERGETIC S.P.A.;02/05/2017;Gas;8,65;IVA - LIQUIDAZIONE FATTURA NR. EX40584/2016  DEL 21/11/2016 - FORNITURA RISCALDAMENTO SCUOLA PRIMARIA E SECONDARIA DI PRIMO GRADO VINCI;1559;1;3;2;5;6
ENERGETIC S.P.A.;02/05/2017;Gas;8,66;IVA - LIQUIDAZIONE FATTURA NR. EX40584/2016  DEL 21/11/2016 - FORNITURA RISCALDAMENTO SCUOLA PRIMARIA E SECONDARIA DI PRIMO GRADO VINCI;1560;1;3;2;5;6
ENERGETIC S.P.A.;02/05/2017;Gas;56,32;IVA - LIQUIDAZIONE FATTURA NR. EX40588/2016  DEL 21/11/2016 - FORNITURA RISCALDAMENTO PALASPORT;1561;1;3;2;5;6
ENERGETIC S.P.A.;02/05/2017;Gas;74,03;IVA - LIQUIDAZIONE FATTURA NR. EX45128/2016  DEL 21/12/2016 - FORNITURA RISCALDAMENTO SCUOLA INFANZIA VINCI;1567;1;3;2;5;6
ENERGETIC S.P.A.;02/05/2017;Gas;65,34;IVA - LIQUIDAZIONE FATTURA NR. EX45129/2016  DEL 21/12/2016 - FORNITURA RISCALDAMENTO SCUOLA INFANZIA SPICCHIO;1567;1;3;2;5;6
ENERGETIC S.P.A.;02/05/2017;Gas;199,90;IVA - LIQUIDAZIONE FATTURA NR. EX45515/2016  DEL 21/12/2016 - FORNITURA RISCALDAMENTO SCUOLA INFANZIA SOVIGLIANA;1567;1;3;2;5;6
ENERGETIC S.P.A.;02/05/2017;Gas;87,73;IVA - LIQUIDAZIONE FATTURA NR. EX45628/2016  DEL 21/12/2016 - FORNITURA RISCALDAMENTO NIDO;1571;1;3;2;5;6
ENERGETIC S.P.A.;02/05/2017;Gas;77,20;IVA - LIQUIDAZIONE FATTURA NR. EX45629/2016  DEL 21/12/2016 - FORNITURA RISCALDAMENTO VILLA REGHINI;1572;1;3;2;5;6
ENERGETIC S.P.A.;02/05/2017;Gas;211,90;IVA - LIQUIDAZIONE FATTURA NR. EX45655/2016  DEL 21/12/2016 - FORNITURA RISCALDAMENTO SCUOLA SECONDARIA DI PRIMO GRADO SOVIGLIANA;1569;1;3;2;5;6
ENERGETIC S.P.A.;02/05/2017;Gas;218,71;IVA - LIQUIDAZIONE FATTURA NR. EX45656/2016  DEL 21/12/2016 - FORNITURA RISCALDAMENTO SCUOLA PRIMARIA DI SPICCHIO;1568;1;3;2;5;6
ENERGETIC S.P.A.;02/05/2017;Gas;58,45;IVA - LIQUIDAZIONE FATTURA NR. EX45658/2016  DEL 21/12/2016 - FORNITURA RISCALDAMENTO UFFICI SPICCHIO;1566;1;3;2;5;6
ENERGETIC S.P.A.;02/05/2017;Gas;182,70;IVA - LIQUIDAZIONE FATTURA NR. EX45671/2016  DEL 21/12/2016 - FORNITURA RISCALDAMENTO R.S.A.;1573;1;3;2;5;6
ENERGETIC S.P.A.;02/05/2017;Gas;107,54;IVA - LIQUIDAZIONE FATTURA NR. EX45697/2016  DEL 21/12/2016 - FORNITURA RISCALDAMENTO PALAZZO COMUNALE;1566;1;3;2;5;6
ENERGETIC S.P.A.;02/05/2017;Gas;9,92;IVA - LIQUIDAZIONE FATTURA NR. EX45700/2016  DEL 21/12/2016 - FORNITURA RISCALDAMENTO MAGAZZINO;1566;1;3;2;5;6
ENERGETIC S.P.A.;02/05/2017;Gas;175,54;IVA - LIQUIDAZIONE FATTURA NR. EX45711/2016  DEL 21/12/2016 - FORNITURA RISCALDAMENTO SCUOLA PRIMARIA E SECONDARIA DI PRIMO GRADO VINCI;1568;1;3;2;5;6
ENERGETIC S.P.A.;02/05/2017;Gas;146,81;IVA - LIQUIDAZIONE FATTURA NR. EX45715/2016  DEL 21/12/2016 - FORNITURA RISCALDAMENTO PALASPORT;1570;1;3;2;5;6
ENERGETIC S.P.A.;02/05/2017;Gas;54,55;IVA - UIDAZIONE FATTURA NR. EX40573/2016  DEL 21/11/2016 - FORNITURA RISCALDAMENTO MAGAZZINO FATTURA NR. EX40573/2016 DEL 21-11-2016;1557;1;3;2;5;6
ENERGETIC S.P.A.;02/05/2017;Gas;398,94;LIQUIDAZIONE FATTURA NR. EX00463/2017  DEL 10/01/2017 - FORNITURA RISCALDAMENTO SCUOLA INFANZIA DI VINCI;1545;1;3;2;5;6
ENERGETIC S.P.A.;02/05/2017;Gas;430,11;LIQUIDAZIONE FATTURA NR. EX00464/2017  DEL 10/01/2017 - FORNITURA RISCALDAMENTO SCUOLA INFANZIA SPICCHIO;1545;1;3;2;5;6
ENERGETIC S.P.A.;02/05/2017;Gas;849,93;LIQUIDAZIONE FATTURA NR. EX00810/2017  DEL 10/01/2017 - FORNITURA RISCALDAMENTO SCUOLA INFANZIA DI SOVIGLIANA;1544;1;3;2;5;6
ENERGETIC S.P.A.;02/05/2017;Gas;317,45;LIQUIDAZIONE FATTURA NR. EX00810/2017  DEL 10/01/2017 - FORNITURA RISCALDAMENTO SCUOLA INFANZIA DI SOVIGLIANA;1545;1;3;2;5;6
ENERGETIC S.P.A.;02/05/2017;Gas;447,44;LIQUIDAZIONE FATTURA NR. EX00908/2017  DEL 10/01/2017 - FORNITURA RISCALDAMENTO NIDO;1552;1;3;2;5;6
ENERGETIC S.P.A.;02/05/2017;Gas;174,38;LIQUIDAZIONE FATTURA NR. EX00908/2017  DEL 10/01/2017 - FORNITURA RISCALDAMENTO NIDO;1553;1;3;2;5;6
ENERGETIC S.P.A.;02/05/2017;Gas;507,23;LIQUIDAZIONE FATTURA NR. EX00909/2017  DEL 10/01/2017 - FORNITURA RISCALDAMENTO VILLA REGHINI;1554;1;3;2;5;6
ENERGETIC S.P.A.;02/05/2017;Gas;853,43;LIQUIDAZIONE FATTURA NR. EX00935/2017  DEL 10/01/2017 - FORNITURA RISCALDAMENTO SCUOLA SECONDARIA DI PRIMO GRADO SOVIGLIANA;1548;1;3;2;5;6
ENERGETIC S.P.A.;02/05/2017;Gas;668,88;LIQUIDAZIONE FATTURA NR. EX00935/2017  DEL 10/01/2017 - FORNITURA RISCALDAMENTO SCUOLA SECONDARIA DI PRIMO GRADO SOVIGLIANA;1549;1;3;2;5;6
ENERGETIC S.P.A.;02/05/2017;Gas;309,83;LIQUIDAZIONE FATTURA NR. EX00936/2017  DEL 10/01/2017 - FORNITURA RISCALDAMENTO SCUOLA PRIMARIA DI SPICCHIO;1546;1;3;2;5;6
ENERGETIC S.P.A.;02/05/2017;Gas;1.053,25;LIQUIDAZIONE FATTURA NR. EX00936/2017  DEL 10/01/2017 - FORNITURA RISCALDAMENTO SCUOLA PRIMARIA DI SPICCHIO;1547;1;3;2;5;6
ENERGETIC S.P.A.;02/05/2017;Gas;383,78;LIQUIDAZIONE FATTURA NR. EX00938/2017  DEL 10/01/2017 - FORNITURA RISCALDAMENTO UFFICI SPICCHIO;1543;1;3;2;5;6
ENERGETIC S.P.A.;02/05/2017;Gas;536,34;LIQUIDAZIONE FATTURA NR. EX00950/2017  DEL 10/01/2017 - FORNITURA RISCALDAMENTO R.S.A.;1555;1;3;2;5;6
ENERGETIC S.P.A.;02/05/2017;Gas;706,70;LIQUIDAZIONE FATTURA NR. EX00950/2017  DEL 10/01/2017 - FORNITURA RISCALDAMENTO R.S.A.;1556;1;3;2;5;6
ENERGETIC S.P.A.;02/05/2017;Gas;419,91;LIQUIDAZIONE FATTURA NR. EX00976/2017  DEL 10/01/2017 - FORNITURA RISCALDAMENTO PALAZZO COMUNALE;1542;1;3;2;5;6
ENERGETIC S.P.A.;02/05/2017;Gas;367,59;LIQUIDAZIONE FATTURA NR. EX00976/2017  DEL 10/01/2017 - FORNITURA RISCALDAMENTO PALAZZO COMUNALE;1543;1;3;2;5;6
ENERGETIC S.P.A.;02/05/2017;Gas;564,21;LIQUIDAZIONE FATTURA NR. EX00979/2017  DEL 10/01/2017 - FORNITURA RISCALDAMENTO MAGAZZINO;1543;1;3;2;5;6
ENERGETIC S.P.A.;02/05/2017;Gas;802,85;LIQUIDAZIONE FATTURA NR. EX00990/2017  DEL 10/01/2017 - FORNITURA RISCALDAMENTO SCUOLA PRIMARIA E SECONDARIA DI PRIMO GRADO VINCI;1547;1;3;2;5;6
ENERGETIC S.P.A.;02/05/2017;Gas;802,86;LIQUIDAZIONE FATTURA NR. EX00990/2017  DEL 10/01/2017 - FORNITURA RISCALDAMENTO SCUOLA PRIMARIA E SECONDARIA DI PRIMO GRADO VINCI;1549;1;3;2;5;6
ENERGETIC S.P.A.;02/05/2017;Gas;423,44;LIQUIDAZIONE FATTURA NR. EX00994/2017  DEL 10/01/2017 - FORNITURA RISCALDAMENTO PALASPORT;1550;1;3;2;5;6
ENERGETIC S.P.A.;02/05/2017;Gas;599,37;LIQUIDAZIONE FATTURA NR. EX00994/2017  DEL 10/01/2017 - FORNITURA RISCALDAMENTO PALASPORT;1551;1;3;2;5;6
ENERGETIC S.P.A.;02/05/2017;Gas;23,60;LIQUIDAZIONE FATTURA NR. EX39931/2016  DEL 21/11/2016 - FORNITURA RISCALDAMENTO SCUOLA INFANZIA VINCI;1558;1;3;2;5;6
ENERGETIC S.P.A.;02/05/2017;Gas;56,70;LIQUIDAZIONE FATTURA NR. EX39932/2016  DEL 21/11/2016 - FORNITURA RISCALDAMENTO SCUOLA INFANZIA DI SPICCHIO;1558;1;3;2;5;6
ENERGETIC S.P.A.;02/05/2017;Gas;332,59;LIQUIDAZIONE FATTURA NR. EX40379/2016  DEL 21/11/2016 - FORNITURA RISCALDAMENTO SCUOLA INFANZIA DI SOVIGLIANA;1558;1;3;2;5;6
ENERGETIC S.P.A.;02/05/2017;Gas;71,00;LIQUIDAZIONE FATTURA NR. EX40496/2016  DEL 21/11/2016 - FORNITURA RISCALDAMENTO NIDO;1562;1;3;2;5;6
ENERGETIC S.P.A.;02/05/2017;Gas;66,05;LIQUIDAZIONE FATTURA NR. EX40497/2016  DEL 21/11/2016 - FORNITURA RISCALDAMENTO VILLA REGHINI;1563;1;3;2;5;6
ENERGETIC S.P.A.;02/05/2017;Gas;23,60;LIQUIDAZIONE FATTURA NR. EX40526/2016  DEL 21/11/2016 - FORNITURA RISCALDAMENTO SCUOLA SECONDARIA DI PRIMO GRADO SOVIGLIANA;1560;1;3;2;5;6
ENERGETIC S.P.A.;02/05/2017;Gas;23,60;LIQUIDAZIONE FATTURA NR. EX40527/2016  DEL 21/11/2016 - FORNITURA RISCALDAMENTO SCUOLA PRIMARIA DI SPICCHIO;1559;1;3;2;5;6
ENERGETIC S.P.A.;02/05/2017;Gas;50,65;LIQUIDAZIONE FATTURA NR. EX40529/2016  DEL 21/11/2016 - FORNITURA RISCALDAMENTO UFFICI SPICCHIO;1557;1;3;2;5;6
ENERGETIC S.P.A.;02/05/2017;Gas;235,54;LIQUIDAZIONE FATTURA NR. EX40542/2016  DEL 21/11/2016 - FORNITURA RISCALDAMENTO R.S.A.;1564;1;3;2;5;6
